Body_Code,Body_Name,Service_Area,Responsible_Unit,Expense_Type,Expense_Code,Narrative,Date,Transaction_Number,Amount,Supplier_Name
http://statistics.data.gov.uk/id/local-authority/38,Oxfordshire County Council,SCS Other Cost Centres,Control Account Trojan Residential Care,Balance Sheet General,B2040,ABACUS Accounts Payable Control A/c,18/04/2012,3100030936,-683.82,Deeside
http://statistics.data.gov.uk/id/local-authority/38,Oxfordshire County Council,Education & Early Intervention,Out of County,Transport Related,33101,Home to School Trans,17/04/2012,3100044845,-2169.92,Phoenix Cars
http://statistics.data.gov.uk/id/local-authority/38,Oxfordshire County Council,Education & Early Intervention,Out of County,Transport Related,33300,Transport (General),17/04/2012,3100044846,-500.8,Phoenix Cars
http://statistics.data.gov.uk/id/local-authority/38,Oxfordshire County Council,Education & Early Intervention,Hill End,WATER,25200,Metered Water,02/04/2012,3100045003,-1579.79,Thames Water Utilities Ltd
http://statistics.data.gov.uk/id/local-authority/38,Oxfordshire County Council,Education & Early Intervention,Hill End,WATER,25200,Metered Water,02/04/2012,3100045004,-635.17,Thames Water Utilities Ltd
http://statistics.data.gov.uk/id/local-authority/38,Oxfordshire County Council,Education & Early Intervention,Hill End,WATER,25200,Metered Water,02/04/2012,3100045005,-3336.4,Thames Water Utilities Ltd
http://statistics.data.gov.uk/id/local-authority/38,Oxfordshire County Council,Education & Early Intervention,Hill End,WATER,25200,Metered Water,02/04/2012,3100045006,-934.12,Thames Water Utilities Ltd
http://statistics.data.gov.uk/id/local-authority/38,Oxfordshire County Council,Children's Social Care,Maltfield House,WATER,25200,Metered Water,02/04/2012,3100045007,-570.54,Thames Water Utilities Ltd
http://statistics.data.gov.uk/id/local-authority/38,Oxfordshire County Council,SCS Other Cost Centres,Control Account Trojan Residential Care,Balance Sheet General,B2040,ABACUS Accounts Payable Control A/c,12/04/2012,3100045069,-6700.43,Stowford House
http://statistics.data.gov.uk/id/local-authority/38,Oxfordshire County Council,SCS Other Cost Centres,Control Account Trojan Residential Care,Balance Sheet General,B2040,ABACUS Accounts Payable Control A/c,12/04/2012,3100045087,-1414.37,REDACTED PERSONAL DATA
http://statistics.data.gov.uk/id/local-authority/38,Oxfordshire County Council,SCS Other Cost Centres,Control Account Trojan Residential Care,Balance Sheet General,B2040,ABACUS Accounts Payable Control A/c,12/04/2012,3100045088,-5400,Leafield Rest Home
http://statistics.data.gov.uk/id/local-authority/38,Oxfordshire County Council,SCS Other Cost Centres,Control Account Trojan Residential Care,Balance Sheet General,B2040,ABACUS Accounts Payable Control A/c,12/04/2012,3100045422,-6550.95,Chacombe Park Care Home
http://statistics.data.gov.uk/id/local-authority/38,Oxfordshire County Council,SCS Other Cost Centres,Control Account Trojan Residential Care,Balance Sheet General,B2040,ABACUS Accounts Payable Control A/c,12/04/2012,3100045442,-5571.43,ST ANNES RESIDENTIAL  HOME
http://statistics.data.gov.uk/id/local-authority/38,Oxfordshire County Council,SCS Other Cost Centres,Control Account Trojan Residential Care,Balance Sheet General,B2040,ABACUS Accounts Payable Control A/c,12/04/2012,3100045445,-1339.8,OSJ - Isis Centre
http://statistics.data.gov.uk/id/local-authority/38,Oxfordshire County Council,SCS Other Cost Centres,Control Account Trojan Residential Care,Balance Sheet General,B2040,ABACUS Accounts Payable Control A/c,12/04/2012,3100045499,-4633.71,Cedar Court Care Home
http://statistics.data.gov.uk/id/local-authority/38,Oxfordshire County Council,Education & Early Intervention,Wantage SEN Trans,Transport Related,33101,Home to School Trans,11/04/2012,3100045524,-1450,Webb Cars
http://statistics.data.gov.uk/id/local-authority/38,Oxfordshire County Council,Education & Early Intervention,Wantage SEN Trans,Transport Related,33101,Home to School Trans,11/04/2012,3100045525,-1702.56,Webb Cars
http://statistics.data.gov.uk/id/local-authority/38,Oxfordshire County Council,Education & Early Intervention,Wantage SEN Trans,Transport Related,33300,Transport (General),11/04/2012,3100045526,-421.76,Webb Cars
http://statistics.data.gov.uk/id/local-authority/38,Oxfordshire County Council,Education & Early Intervention,Oxford Nth SEN Trans,Transport Related,33101,Home to School Trans,11/04/2012,3100045527,-1721.25,Webb Cars
http://statistics.data.gov.uk/id/local-authority/38,Oxfordshire County Council,Education & Early Intervention,Oxford Nth SEN Trans,Transport Related,33300,Transport (General),11/04/2012,3100045528,-469.5,Webb Cars
http://statistics.data.gov.uk/id/local-authority/38,Oxfordshire County Council,Education & Early Intervention,Zone 4 - Vale,Transport Related,33101,Home to School Trans,11/04/2012,3100045529,-480,Webb Cars
http://statistics.data.gov.uk/id/local-authority/38,Oxfordshire County Council,Education & Early Intervention,Oxford Nth SEN Trans,Transport Related,33101,Home to School Trans,11/04/2012,3100045530,-1440,Webb Cars
http://statistics.data.gov.uk/id/local-authority/38,Oxfordshire County Council,Education & Early Intervention,Wantage SEN Trans,Transport Related,33300,Transport (General),11/04/2012,3100045532,-506.24,Webb Cars
http://statistics.data.gov.uk/id/local-authority/38,Oxfordshire County Council,Education & Early Intervention,Wantage SEN Trans,Transport Related,33101,Home to School Trans,11/04/2012,3100045533,-1468.8,Webb Cars
http://statistics.data.gov.uk/id/local-authority/38,Oxfordshire County Council,Education & Early Intervention,Wantage SEN Trans,Transport Related,33101,Home to School Trans,11/04/2012,3100045552,-1450,Webb Cars
http://statistics.data.gov.uk/id/local-authority/38,Oxfordshire County Council,SCS Other Cost Centres,Control Account Trojan Residential Care,Balance Sheet General,B2040,ABACUS Accounts Payable Control A/c,12/04/2012,3100045578,-6424,The Langston
http://statistics.data.gov.uk/id/local-authority/38,Oxfordshire County Council,SCS Other Cost Centres,Control Account Trojan Residential Care,Balance Sheet General,B2040,ABACUS Accounts Payable Control A/c,12/04/2012,3100045587,-2085.14,Livability
http://statistics.data.gov.uk/id/local-authority/38,Oxfordshire County Council,SCS Other Cost Centres,Control Account Trojan Residential Care,Balance Sheet General,B2040,ABACUS Accounts Payable Control A/c,12/04/2012,3100045595,-8880,Chervil Cottage
http://statistics.data.gov.uk/id/local-authority/38,Oxfordshire County Council,SCS Other Cost Centres,Control Account Trojan Residential Care,Balance Sheet General,B2040,ABACUS Accounts Payable Control A/c,12/04/2012,3100045596,-23295.7,The Close Nursing Home
http://statistics.data.gov.uk/id/local-authority/38,Oxfordshire County Council,SCS Other Cost Centres,Control Account Trojan Residential Care,Balance Sheet General,B2040,ABACUS Accounts Payable Control A/c,12/04/2012,3100045597,-6051.21,OSJ - Isis Centre
http://statistics.data.gov.uk/id/local-authority/38,Oxfordshire County Council,SCS Other Cost Centres,Control Account Trojan Residential Care,Balance Sheet General,B2040,ABACUS Accounts Payable Control A/c,12/04/2012,3100045598,-34028.34,Carebase (Abingdon) Limited
http://statistics.data.gov.uk/id/local-authority/38,Oxfordshire County Council,SCS Other Cost Centres,Control Account Trojan Residential Care,Balance Sheet General,B2040,ABACUS Accounts Payable Control A/c,12/04/2012,3100045599,-6641.7,Meadow View Nursing Home
http://statistics.data.gov.uk/id/local-authority/38,Oxfordshire County Council,SCS Other Cost Centres,Control Account Trojan Residential Care,Balance Sheet General,B2040,ABACUS Accounts Payable Control A/c,12/04/2012,3100045613,-3060.86,The Cotswold Home
http://statistics.data.gov.uk/id/local-authority/38,Oxfordshire County Council,SCS Other Cost Centres,Control Account Trojan Residential Care,Balance Sheet General,B2040,ABACUS Accounts Payable Control A/c,12/04/2012,3100045646,-824.34,Orders of St John
http://statistics.data.gov.uk/id/local-authority/38,Oxfordshire County Council,SCS Other Cost Centres,Control Account Trojan Residential Care,Balance Sheet General,B2040,ABACUS Accounts Payable Control A/c,12/04/2012,3100045647,-4232.94,Orders of St John
http://statistics.data.gov.uk/id/local-authority/38,Oxfordshire County Council,Education & Early Intervention,Supp Graduate Leader,"Equipment, Furniture and Materials",41100,Educational Supplies,23/04/2012,3100045784,-950,Grimsbury Family Association
http://statistics.data.gov.uk/id/local-authority/38,Oxfordshire County Council,SCS Other Cost Centres,Home Support trading account for PBs,Other Agency and Contracted Services,57300,Home Support (Ext) OS&HCD,18/04/2012,3100045835,-964.27,Day & Night Care Assistance
http://statistics.data.gov.uk/id/local-authority/38,Oxfordshire County Council,SCS Other Cost Centres,Home Support trading account for PBs,Other Agency and Contracted Services,57300,Home Support (Ext) OS&HCD,18/04/2012,3100045844,-572.69,Secure Care (Oxford) Ltd
http://statistics.data.gov.uk/id/local-authority/38,Oxfordshire County Council,SCS Other Cost Centres,Home Support trading account for PBs,Other Agency and Contracted Services,57300,Home Support (Ext) OS&HCD,18/04/2012,3100045846,-550.58,Sevacare (UK) Ltd
http://statistics.data.gov.uk/id/local-authority/38,Oxfordshire County Council,SCS Other Cost Centres,Control Account Trojan Residential Care,Balance Sheet General,B2040,ABACUS Accounts Payable Control A/c,27/04/2012,3100045887,-2728.77,Orders of St John
http://statistics.data.gov.uk/id/local-authority/38,Oxfordshire County Council,Oxfordshire Customer Services,Central Team SSC,Communications and Computing,45100,Postage,01/04/2012,3150002955,-1593.51,Royal Mail Group Plc
http://statistics.data.gov.uk/id/local-authority/38,Oxfordshire County Council,Oxfordshire Customer Services,Central Team SSC,Communications and Computing,45100,Postage,01/04/2012,3150004374,1593.51,Royal Mail Group Plc
http://statistics.data.gov.uk/id/local-authority/38,Oxfordshire County Council,Oxfordshire Customer Services,Central Team SSC,Communications and Computing,45100,Postage,11/04/2012,3150004375,-1593.51,Royal Mail
http://statistics.data.gov.uk/id/local-authority/38,Oxfordshire County Council,Highways & Transport,Traffic Signals Principal Roads,Private Contractors,56202,Maint Costs 2nd Sche,24/04/2012,3150004376,-21645,SIEMENS PLC
http://statistics.data.gov.uk/id/local-authority/38,Oxfordshire County Council,SCS Pooled Budgets,OP Pool Order of St John Block,Other Agency and Contracted Services,57150,Extra Care Housing Personal Care Charges,18/04/2012,3150004377,-20854.28,Orders of St John
http://statistics.data.gov.uk/id/local-authority/38,Oxfordshire County Council,Children's Social Care,Agency Residential - Disabilities,Other Agency and Contracted Services,57790,Other Residential Placements,18/04/2012,3150004378,-5029.36,Hampshire Autistic Society
http://statistics.data.gov.uk/id/local-authority/38,Oxfordshire County Council,Children's Social Care,MTFC,Services,44200,Consultants Fees,19/04/2012,3150004379,-4858.34,Oxford Health NHS Foundation
http://statistics.data.gov.uk/id/local-authority/38,Oxfordshire County Council,Miscellaneous,Developer Contributions - General,Balance Sheet General,B4430,Developer Contributions Holding Account,25/04/2012,3150004382,-61090.04,Oxford City Council
http://statistics.data.gov.uk/id/local-authority/38,Oxfordshire County Council,Scheduled Bodies,Oxford City Council,Contributions Leaving the Fund,PR401,Transfers out,05/04/2012,3300001748,111572.03,Lambeth HR Pensions
http://statistics.data.gov.uk/id/local-authority/38,Oxfordshire County Council,In-House,Miscellaneous,Pension Fund Balance Sheet,PB810,Give As You Earn,11/04/2012,3300001771,638.05,Charities Aid Foundation
http://statistics.data.gov.uk/id/local-authority/38,Oxfordshire County Council,Scheduled Bodies,South Oxfordshire District Council,Pension Fund Revenue,PR507,Combined Benefits Basic Pension,16/04/2012,3300001789,1540.52,Dorset County Council
http://statistics.data.gov.uk/id/local-authority/38,Oxfordshire County Council,Admitted Bodies,Oxford Archaelogical Unit,Contributions Leaving the Fund,PR401,Transfers out,20/04/2012,3300001809,168155.01,Isle of Man Government
http://statistics.data.gov.uk/id/local-authority/38,Oxfordshire County Council,Scheduled Bodies,Oxfordshire County Council,Contributions Leaving the Fund,PR401,Transfers out,20/04/2012,3300001815,10067.01,Univs Superann Scheme Ltd Trust Fun
http://statistics.data.gov.uk/id/local-authority/38,Oxfordshire County Council,Scheduled Bodies,Oxfordshire County Council,Contributions Leaving the Fund,PR401,Transfers out,24/04/2012,3300001816,9027.07,NHS Pensions Scheme Account
http://statistics.data.gov.uk/id/local-authority/38,Oxfordshire County Council,Scheduled Bodies,Oxfordshire County Council,Contributions Leaving the Fund,PR401,Transfers out,23/04/2012,3300001830,1003.89,BUCKINGHAMSHIRE COUNTY COUNCIL
http://statistics.data.gov.uk/id/local-authority/38,Oxfordshire County Council,Scheduled Bodies,Oxford Brookes Univeristy,Pension Fund Revenue,PR601,Normal Retirement Grant,23/04/2012,3300001831,32725.82,Univs Superann Scheme Ltd Trust Fun
http://statistics.data.gov.uk/id/local-authority/38,Oxfordshire County Council,Education & Early Intervention,Supp Graduate Leader,Recharged Employee Costs,19970,Recharge of Internal Employee Costs,01/04/2012,3301473641,1666,REDACTED PERSONAL DATA
http://statistics.data.gov.uk/id/local-authority/38,Oxfordshire County Council,Education & Early Intervention,Hill End,WATER,25200,Metered Water,02/04/2012,3301481973,1542.01,Thames Water Utilities Ltd
http://statistics.data.gov.uk/id/local-authority/38,Oxfordshire County Council,Children's Social Care,Thornbury - Open,WATER,25200,Metered Water,02/04/2012,3301481983,1369.18,Thames Water Utilities Ltd
http://statistics.data.gov.uk/id/local-authority/38,Oxfordshire County Council,Social & Community Services,"Older Pers Day Cntrs, Wantage DC",WATER,25200,Metered Water,02/04/2012,3301481998,605.48,Thames Water Utilities Ltd
http://statistics.data.gov.uk/id/local-authority/38,Oxfordshire County Council,Education & Early Intervention,Zone 1 - North,Transport Related,33101,Home to School Trans,17/04/2012,3301482911,896,Phoenix Cars
http://statistics.data.gov.uk/id/local-authority/38,Oxfordshire County Council,Education & Early Intervention,Zone 1 - North,Transport Related,33101,Home to School Trans,17/04/2012,3301482912,1248,Phoenix Cars
http://statistics.data.gov.uk/id/local-authority/38,Oxfordshire County Council,Education & Early Intervention,Banbury SEN Trans,Transport Related,33101,Home to School Trans,17/04/2012,3301482913,639.68,Phoenix Cars
http://statistics.data.gov.uk/id/local-authority/38,Oxfordshire County Council,Education & Early Intervention,Supp Graduate Leader,"Equipment, Furniture and Materials",41100,Educational Supplies,03/04/2012,3301485750,3165,Jack & Jill Playgroup&Toddler Group
http://statistics.data.gov.uk/id/local-authority/38,Oxfordshire County Council,Education & Early Intervention,Supp Graduate Leader,"Equipment, Furniture and Materials",41100,Educational Supplies,04/04/2012,3301485763,648.24,Ashbury Pre-School
http://statistics.data.gov.uk/id/local-authority/38,Oxfordshire County Council,Growth & Infrastructure,Witney Resource Centre,Fuel,23100,Electricity,04/04/2012,3301489859,499.88,Npower Ltd
http://statistics.data.gov.uk/id/local-authority/38,Oxfordshire County Council,Social & Community Services,"Older Pers Day Cntrs, Abingdon DC",Fuel,23100,Electricity,04/04/2012,3301489860,1413.47,Npower Ltd
http://statistics.data.gov.uk/id/local-authority/38,Oxfordshire County Council,Education & Early Intervention,East St Ctr-Premises,Fuel,23100,Electricity,04/04/2012,3301489879,429.39,Npower Ltd
http://statistics.data.gov.uk/id/local-authority/38,Oxfordshire County Council,Highways & Transport,Bridges General,Fuel,23100,Electricity,04/04/2012,3301489881,760.8,Npower Ltd
http://statistics.data.gov.uk/id/local-authority/38,Oxfordshire County Council,Highways & Transport,Bridges General,Fuel,23100,Electricity,04/04/2012,3301489882,760.8,Npower Ltd
http://statistics.data.gov.uk/id/local-authority/38,Oxfordshire County Council,Highways & Transport,Bridges General,Fuel,23100,Electricity,04/04/2012,3301489883,786.07,Npower Ltd
http://statistics.data.gov.uk/id/local-authority/38,Oxfordshire County Council,Highways & Transport,Bridges General,Fuel,23100,Electricity,04/04/2012,3301489884,786.12,Npower Ltd
http://statistics.data.gov.uk/id/local-authority/38,Oxfordshire County Council,Highways & Transport,Bridges General,Fuel,23100,Electricity,04/04/2012,3301489885,786.12,Npower Ltd
http://statistics.data.gov.uk/id/local-authority/38,Oxfordshire County Council,Highways & Transport,Bridges General,Fuel,23100,Electricity,04/04/2012,3301489886,786.21,Npower Ltd
http://statistics.data.gov.uk/id/local-authority/38,Oxfordshire County Council,Highways & Transport,Bridges General,Fuel,23100,Electricity,04/04/2012,3301489887,858.39,Npower Ltd
http://statistics.data.gov.uk/id/local-authority/38,Oxfordshire County Council,Highways & Transport,Bridges General,Fuel,23100,Electricity,04/04/2012,3301489888,888.2,Npower Ltd
http://statistics.data.gov.uk/id/local-authority/38,Oxfordshire County Council,Highways & Transport,Bridges General,Fuel,23100,Electricity,04/04/2012,3301489889,917.76,Npower Ltd
http://statistics.data.gov.uk/id/local-authority/38,Oxfordshire County Council,Highways & Transport,Bridges General,Fuel,23100,Electricity,04/04/2012,3301489890,917.77,Npower Ltd
http://statistics.data.gov.uk/id/local-authority/38,Oxfordshire County Council,Highways & Transport,Bridges General,Fuel,23100,Electricity,04/04/2012,3301489891,917.88,Npower Ltd
http://statistics.data.gov.uk/id/local-authority/38,Oxfordshire County Council,Social & Community Services,Service Delivery Utilities,Fuel,23100,Electricity,04/04/2012,3301489892,522.76,Npower Ltd
http://statistics.data.gov.uk/id/local-authority/38,Oxfordshire County Council,Highways & Transport,Highways General,Fuel,23100,Electricity,04/04/2012,3301489901,655.88,Npower Ltd
http://statistics.data.gov.uk/id/local-authority/38,Oxfordshire County Council,Highways & Transport,Highways General,Fuel,23100,Electricity,04/04/2012,3301489902,679.09,Npower Ltd
http://statistics.data.gov.uk/id/local-authority/38,Oxfordshire County Council,Education & Early Intervention,Witney Hub,Fuel,23100,Electricity,04/04/2012,3301489903,706.1,Npower Ltd
http://statistics.data.gov.uk/id/local-authority/38,Oxfordshire County Council,Highways & Transport,Highways General,Fuel,23100,Electricity,04/04/2012,3301489915,1853.64,Npower Ltd
http://statistics.data.gov.uk/id/local-authority/38,Oxfordshire County Council,Transport,"N Area, Ox City, Prin Rd, Drainage",Fuel,23100,Electricity,04/04/2012,3301489916,481.19,Npower Ltd
http://statistics.data.gov.uk/id/local-authority/38,Oxfordshire County Council,Social & Community Services,Holton Site,Fuel,23100,Electricity,04/04/2012,3301489921,946.41,Npower Ltd
http://statistics.data.gov.uk/id/local-authority/38,Oxfordshire County Council,Quality & Compliance,The Harlow Centre,Fuel,23100,Electricity,04/04/2012,3301489941,553,Npower Ltd
http://statistics.data.gov.uk/id/local-authority/38,Oxfordshire County Council,Highways & Transport,Highways General,Fuel,23100,Electricity,04/04/2012,3301489947,2240.91,Npower Ltd
http://statistics.data.gov.uk/id/local-authority/38,Oxfordshire County Council,Social & Community Services,Fletchers House Site,Fuel,23100,Electricity,04/04/2012,3301489950,1050.08,Npower Ltd
http://statistics.data.gov.uk/id/local-authority/38,Oxfordshire County Council,Social & Community Services,Witney Library,Fuel,23100,Electricity,04/04/2012,3301489987,427.65,Npower Ltd
http://statistics.data.gov.uk/id/local-authority/38,Oxfordshire County Council,Social & Community Services,Service Delivery Utilities,Fuel,23100,Electricity,04/04/2012,3301489988,686.89,Npower Ltd
http://statistics.data.gov.uk/id/local-authority/38,Oxfordshire County Council,Growth & Infrastructure,Corporate Properties,Fuel,23100,Electricity,04/04/2012,3301490024,450.16,Npower Ltd
http://statistics.data.gov.uk/id/local-authority/38,Oxfordshire County Council,Social & Community Services,Service Delivery Utilities,Fuel,23100,Electricity,04/04/2012,3301490034,806.98,Npower Ltd
http://statistics.data.gov.uk/id/local-authority/38,Oxfordshire County Council,Schools,Abbey Sch Swim Pool,Fuel,23100,Electricity,04/04/2012,3301490037,1733.08,Npower Ltd
http://statistics.data.gov.uk/id/local-authority/38,Oxfordshire County Council,Education & Early Intervention,Didcot Hub,Fuel,23100,Electricity,04/04/2012,3301490043,639.51,Npower Ltd
http://statistics.data.gov.uk/id/local-authority/38,Oxfordshire County Council,Schools,B/B-Leys Swim Pool,Fuel,23100,Electricity,04/04/2012,3301490050,647.11,Npower Ltd
http://statistics.data.gov.uk/id/local-authority/38,Oxfordshire County Council,Children's Social Care,Thornbury - Open,Fuel,23100,Electricity,04/04/2012,3301490055,463.48,Npower Ltd
http://statistics.data.gov.uk/id/local-authority/38,Oxfordshire County Council,Children's Social Care,Thornbury - Open,Fuel,23100,Electricity,04/04/2012,3301490056,478.85,Npower Ltd
http://statistics.data.gov.uk/id/local-authority/38,Oxfordshire County Council,Children's Social Care,Thornbury - Open,Fuel,23100,Electricity,04/04/2012,3301490057,493.92,Npower Ltd
http://statistics.data.gov.uk/id/local-authority/38,Oxfordshire County Council,Children's Social Care,Thornbury - Open,Fuel,23100,Electricity,04/04/2012,3301490058,501.23,Npower Ltd
http://statistics.data.gov.uk/id/local-authority/38,Oxfordshire County Council,Children's Social Care,Thornbury - Open,Fuel,23100,Electricity,04/04/2012,3301490059,517.8,Npower Ltd
http://statistics.data.gov.uk/id/local-authority/38,Oxfordshire County Council,Children's Social Care,Thornbury - Open,Fuel,23100,Electricity,04/04/2012,3301490060,517.8,Npower Ltd
http://statistics.data.gov.uk/id/local-authority/38,Oxfordshire County Council,Children's Social Care,Thornbury - Open,Fuel,23100,Electricity,04/04/2012,3301490061,958.79,Npower Ltd
http://statistics.data.gov.uk/id/local-authority/38,Oxfordshire County Council,Children's Social Care,Thornbury - Open,Fuel,23100,Electricity,04/04/2012,3301490062,1452.71,Npower Ltd
http://statistics.data.gov.uk/id/local-authority/38,Oxfordshire County Council,Children's Social Care,Thornbury - Open,Fuel,23100,Electricity,04/04/2012,3301490063,1468.71,Npower Ltd
http://statistics.data.gov.uk/id/local-authority/38,Oxfordshire County Council,Social & Community Services,Faringdon Library,Fuel,23100,Electricity,04/04/2012,3301490098,869.35,Npower Ltd
http://statistics.data.gov.uk/id/local-authority/38,Oxfordshire County Council,Redundant or Blocked Cost Centres,Banbury,Fuel,23100,Electricity,04/04/2012,3301490099,1062.19,Npower Ltd
http://statistics.data.gov.uk/id/local-authority/38,Oxfordshire County Council,Social & Community Services,Chinnor Library,Fuel,23100,Electricity,04/04/2012,3301490100,785.04,Npower Ltd
http://statistics.data.gov.uk/id/local-authority/38,Oxfordshire County Council,Social & Community Services,Service Delivery Utilities,Fuel,23100,Electricity,04/04/2012,3301490124,687.2,Npower Ltd
http://statistics.data.gov.uk/id/local-authority/38,Oxfordshire County Council,Education & Early Intervention,Mid SENSS Area Co-ordinator,Fuel,23100,Electricity,04/04/2012,3301490128,1105.77,Npower Ltd
http://statistics.data.gov.uk/id/local-authority/38,Oxfordshire County Council,Highways & Transport,Thornhill P & R,Fuel,23100,Electricity,04/04/2012,3301490129,1267.08,Npower Ltd
http://statistics.data.gov.uk/id/local-authority/38,Oxfordshire County Council,Highways & Transport,Water Eaton P & R (North Oxford),Fuel,23100,Electricity,04/04/2012,3301490130,1568.88,Npower Ltd
http://statistics.data.gov.uk/id/local-authority/38,Oxfordshire County Council,Growth & Infrastructure,Wheatley Centre,Fuel,23100,Electricity,04/04/2012,3301490131,2217.78,Npower Ltd
http://statistics.data.gov.uk/id/local-authority/38,Oxfordshire County Council,Social & Community Services,Service Delivery Utilities,Fuel,23100,Electricity,04/04/2012,3301490132,1023.46,Npower Ltd
http://statistics.data.gov.uk/id/local-authority/38,Oxfordshire County Council,Social & Community Services,The Mill,Fuel,23100,Electricity,04/04/2012,3301490133,915.4,Npower Ltd
http://statistics.data.gov.uk/id/local-authority/38,Oxfordshire County Council,Social & Community Services,Standlake Store,Fuel,23100,Electricity,04/04/2012,3301490135,1197.74,Npower Ltd
http://statistics.data.gov.uk/id/local-authority/38,Oxfordshire County Council,Education & Early Intervention,Kilvrough Manor,Fuel,23100,Electricity,04/04/2012,3301490168,420.84,Npower Ltd
http://statistics.data.gov.uk/id/local-authority/38,Oxfordshire County Council,Social & Community Services,Service Delivery Utilities,Fuel,23100,Electricity,04/04/2012,3301490170,3765.84,Npower Ltd
http://statistics.data.gov.uk/id/local-authority/38,Oxfordshire County Council,Children's Social Care,Nash Court,Fuel,23100,Electricity,04/04/2012,3301490171,429.65,Npower Ltd
http://statistics.data.gov.uk/id/local-authority/38,Oxfordshire County Council,Oxfordshire Customer Services,ICT Operations,Fuel,23100,Electricity,04/04/2012,3301490188,1479.1,Npower Ltd
http://statistics.data.gov.uk/id/local-authority/38,Oxfordshire County Council,Growth & Infrastructure,Cambridge Terrace,Fuel,23100,Electricity,04/04/2012,3301490190,595.3,Npower Ltd
http://statistics.data.gov.uk/id/local-authority/38,Oxfordshire County Council,Growth & Infrastructure,Cambridge Terrace,Fuel,23100,Electricity,04/04/2012,3301490193,424.82,Npower Ltd
http://statistics.data.gov.uk/id/local-authority/38,Oxfordshire County Council,Highways & Transport,"Special Transport, Trans Co-ordination",Fuel,23200,Gas,02/04/2012,3301490665,664.1,British Gas Business (Invoices A***
http://statistics.data.gov.uk/id/local-authority/38,Oxfordshire County Council,Social & Community Services,"Multi Purpose Day Ctrs, Oxford Options",Fuel,23200,Gas,02/04/2012,3301490666,1348.33,British Gas Business (Invoices A***
http://statistics.data.gov.uk/id/local-authority/38,Oxfordshire County Council,Highways & Transport,Highways General,Fuel,23200,Gas,02/04/2012,3301490679,1394.95,British Gas Business (Invoices A***
http://statistics.data.gov.uk/id/local-authority/38,Oxfordshire County Council,Highways & Transport,Highways General,Fuel,23200,Gas,02/04/2012,3301490705,669.31,British Gas Business (Invoices A***
http://statistics.data.gov.uk/id/local-authority/38,Oxfordshire County Council,Social & Community Services,Service Delivery Utilities,Fuel,23200,Gas,02/04/2012,3301490708,424.64,British Gas Business (Invoices A***
http://statistics.data.gov.uk/id/local-authority/38,Oxfordshire County Council,Education & Early Intervention,Didcot Hub,Fuel,23200,Gas,02/04/2012,3301490714,1117.13,British Gas Business (Invoices A***
http://statistics.data.gov.uk/id/local-authority/38,Oxfordshire County Council,Social & Community Services,"Older Pers Day Cntrs, Banbury DC",Fuel,23200,Gas,02/04/2012,3301490717,483.38,British Gas Business (Invoices A***
http://statistics.data.gov.uk/id/local-authority/38,Oxfordshire County Council,Social & Community Services,Abingdon Library,Fuel,23200,Gas,02/04/2012,3301490722,433.43,British Gas Business (Invoices A***
http://statistics.data.gov.uk/id/local-authority/38,Oxfordshire County Council,Redundant or Blocked Cost Centres,Wallingford,Fuel,23200,Gas,02/04/2012,3301490723,545.94,British Gas Business (Invoices A***
http://statistics.data.gov.uk/id/local-authority/38,Oxfordshire County Council,SCS Unused Cost Centres,"Admin, West Bar, Banbury",Fuel,23200,Gas,02/04/2012,3301490724,544.56,British Gas Business (Invoices A***
http://statistics.data.gov.uk/id/local-authority/38,Oxfordshire County Council,Growth & Infrastructure,Mount House,Fuel,23200,Gas,02/04/2012,3301490727,874.03,British Gas Business (Invoices A***
http://statistics.data.gov.uk/id/local-authority/38,Oxfordshire County Council,Social & Community Services,"Multi Purpose Day Ctrs, Bicester Day C",Fuel,23200,Gas,02/04/2012,3301490730,1192.06,British Gas Business (Invoices A***
http://statistics.data.gov.uk/id/local-authority/38,Oxfordshire County Council,Social & Community Services,Wallingford and Henley DTS,Fuel,23200,Gas,02/04/2012,3301490731,714.52,British Gas Business (Invoices A***
http://statistics.data.gov.uk/id/local-authority/38,Oxfordshire County Council,Social & Community Services,Service Delivery Utilities,Fuel,23200,Gas,02/04/2012,3301490734,1000.02,British Gas Business (Invoices A***
http://statistics.data.gov.uk/id/local-authority/38,Oxfordshire County Council,Social & Community Services,County Print Finishers,Fuel,23200,Gas,02/04/2012,3301490738,1200.19,British Gas Business (Invoices A***
http://statistics.data.gov.uk/id/local-authority/38,Oxfordshire County Council,Growth & Infrastructure,Corporate Properties,Fuel,23200,Gas,02/04/2012,3301490739,494.81,British Gas Business (Invoices A***
http://statistics.data.gov.uk/id/local-authority/38,Oxfordshire County Council,Education & Early Intervention,East Oxford Hub,Fuel,23200,Gas,02/04/2012,3301490740,1005.84,British Gas Business (Invoices A***
http://statistics.data.gov.uk/id/local-authority/38,Oxfordshire County Council,Social & Community Services,Cowley Library  (Was Temple Cowley),Fuel,23200,Gas,02/04/2012,3301490741,1010.29,British Gas Business (Invoices A***
http://statistics.data.gov.uk/id/local-authority/38,Oxfordshire County Council,Social & Community Services,Service Delivery Utilities,Fuel,23200,Gas,02/04/2012,3301490742,1329.57,British Gas Business (Invoices A***
http://statistics.data.gov.uk/id/local-authority/38,Oxfordshire County Council,Social & Community Services,Redlands and St Johns DTS,Fuel,23200,Gas,02/04/2012,3301490744,1582.93,British Gas Business (Invoices A***
http://statistics.data.gov.uk/id/local-authority/38,Oxfordshire County Council,Quality & Compliance,The Harlow Centre,Fuel,23200,Gas,02/04/2012,3301490745,1879.81,British Gas Business (Invoices A***
http://statistics.data.gov.uk/id/local-authority/38,Oxfordshire County Council,Social & Community Services,Service Delivery Utilities,Fuel,23200,Gas,02/04/2012,3301490746,1990.11,British Gas Business (Invoices A***
http://statistics.data.gov.uk/id/local-authority/38,Oxfordshire County Council,Growth & Infrastructure,Speedwell House,Fuel,23200,Gas,02/04/2012,3301490747,2382.46,British Gas Business (Invoices A***
http://statistics.data.gov.uk/id/local-authority/38,Oxfordshire County Council,Social & Community Services,St. Luke's Church,Fuel,23200,Gas,02/04/2012,3301490748,1375.87,British Gas Business (Invoices A***
http://statistics.data.gov.uk/id/local-authority/38,Oxfordshire County Council,Social & Community Services,Service Delivery Utilities,Fuel,23200,Gas,02/04/2012,3301490751,2559.71,British Gas Business (Invoices A***
http://statistics.data.gov.uk/id/local-authority/38,Oxfordshire County Council,Growth & Infrastructure,Wheatley Centre,Fuel,23200,Gas,02/04/2012,3301490752,650.95,British Gas Business (Invoices A***
http://statistics.data.gov.uk/id/local-authority/38,Oxfordshire County Council,Growth & Infrastructure,Wheatley Centre,Fuel,23200,Gas,02/04/2012,3301490753,1759.97,British Gas Business (Invoices A***
http://statistics.data.gov.uk/id/local-authority/38,Oxfordshire County Council,Social & Community Services,Service Delivery Utilities,Fuel,23200,Gas,02/04/2012,3301490755,2896.18,British Gas Business (Invoices A***
http://statistics.data.gov.uk/id/local-authority/38,Oxfordshire County Council,Education & Early Intervention,Mid SENSS Area Co-ordinator,Fuel,23200,Gas,02/04/2012,3301490756,2165.56,British Gas Business (Invoices A***
http://statistics.data.gov.uk/id/local-authority/38,Oxfordshire County Council,Social & Community Services,Banbury Library,Fuel,23200,Gas,02/04/2012,3301490757,757.72,British Gas Business (Invoices A***
http://statistics.data.gov.uk/id/local-authority/38,Oxfordshire County Council,Education & Early Intervention,East St Ctr-Premises,Fuel,23200,Gas,02/04/2012,3301490758,499.93,British Gas Business (Invoices A***
http://statistics.data.gov.uk/id/local-authority/38,Oxfordshire County Council,Social & Community Services,Service Delivery Utilities,Fuel,23200,Gas,02/04/2012,3301490759,974.77,British Gas Business (Invoices A***
http://statistics.data.gov.uk/id/local-authority/38,Oxfordshire County Council,Social & Community Services,Service Delivery Utilities,Fuel,23200,Gas,02/04/2012,3301490760,861.9,British Gas Business (Invoices A***
http://statistics.data.gov.uk/id/local-authority/38,Oxfordshire County Council,Social & Community Services,The Mill,Fuel,23200,Gas,02/04/2012,3301490762,1815.58,British Gas Business (Invoices A***
http://statistics.data.gov.uk/id/local-authority/38,Oxfordshire County Council,Social & Community Services,"Older Pers Day Cntrs, Abingdon DC",Fuel,23200,Gas,02/04/2012,3301490767,1339.19,British Gas Business (Invoices A***
http://statistics.data.gov.uk/id/local-authority/38,Oxfordshire County Council,Highways & Transport,Highways General,Fuel,23200,Gas,02/04/2012,3301490768,3938.09,British Gas Business (Invoices A***
http://statistics.data.gov.uk/id/local-authority/38,Oxfordshire County Council,Highways & Transport,Thornhill P & R,Fuel,23200,Gas,02/04/2012,3301490776,497.83,British Gas Business (Invoices A***
http://statistics.data.gov.uk/id/local-authority/38,Oxfordshire County Council,SCS Pooled Budgets,Home Support - Laundry Service,Fuel,23200,Gas,02/04/2012,3301490777,641.16,British Gas Business (Invoices A***
http://statistics.data.gov.uk/id/local-authority/38,Oxfordshire County Council,Growth & Infrastructure,Witney Resource Centre,Fuel,23200,Gas,02/04/2012,3301490780,556.62,British Gas Business (Invoices A***
http://statistics.data.gov.uk/id/local-authority/38,Oxfordshire County Council,Growth & Infrastructure,Nuffield Way,Fuel,23200,Gas,02/04/2012,3301490783,461.22,British Gas Business (Invoices A***
http://statistics.data.gov.uk/id/local-authority/38,Oxfordshire County Council,Growth & Infrastructure,Electric Avenue,Fuel,23200,Gas,02/04/2012,3301490784,975.43,British Gas Business (Invoices A***
http://statistics.data.gov.uk/id/local-authority/38,Oxfordshire County Council,Education & Early Intervention,Meadowbrook HQ,Fuel,23200,Gas,02/04/2012,3301490794,565.25,British Gas Business (Invoices A***
http://statistics.data.gov.uk/id/local-authority/38,Oxfordshire County Council,Social & Community Services,Holton Site,Fuel,23200,Gas,02/04/2012,3301490795,993.83,British Gas Business (Invoices A***
http://statistics.data.gov.uk/id/local-authority/38,Oxfordshire County Council,Highways & Transport,Rising Bollards,Private Contractors,56400,Major Contracts,02/04/2012,3301493252,908.75,ATG Access Ltd
http://statistics.data.gov.uk/id/local-authority/38,Oxfordshire County Council,STD Insurance,LMS,Insurance Permiums Holding A/c,Z5846,Insurance Premiums Holding Account External Premiu,12/04/2012,3301493957,6152.8,Perkins Slade Ltd
http://statistics.data.gov.uk/id/local-authority/38,Oxfordshire County Council,Highways & Transport,"Electrical NP Rds, Street Lighting",Private Contractors,56400,Major Contracts,16/04/2012,3301494010,2100,Westcotec Ltd
http://statistics.data.gov.uk/id/local-authority/38,Oxfordshire County Council,Education & Early Intervention,Wantage SEN Trans,Transport Related,33101,Home to School Trans,11/04/2012,3301494229,1450,Webb Cars
http://statistics.data.gov.uk/id/local-authority/38,Oxfordshire County Council,Education & Early Intervention,Supp Graduate Leader,"Equipment, Furniture and Materials",41100,Educational Supplies,05/04/2012,3301494396,3165,Pippins Day Nursery
http://statistics.data.gov.uk/id/local-authority/38,Oxfordshire County Council,Education & Early Intervention,Positive Activities,Grants and Subscriptions,47100,Grants to Voluntary,10/04/2012,3301496168,1990,Gillotts School (Academy)
http://statistics.data.gov.uk/id/local-authority/38,Oxfordshire County Council,Education & Early Intervention,Sufficiency & Access - Intervention Grnt,Grants and Subscriptions,47100,Grants to Voluntary,05/04/2012,3301496176,800,Little Pippins Pre-School
http://statistics.data.gov.uk/id/local-authority/38,Oxfordshire County Council,Education & Early Intervention,Supp Graduate Leader,"Equipment, Furniture and Materials",41100,Educational Supplies,05/04/2012,3301496188,3165,Pippins Day Nursery
http://statistics.data.gov.uk/id/local-authority/38,Oxfordshire County Council,Education & Early Intervention,Inclusion Support - City,Grants and Subscriptions,47150,Grants to Individuals,10/04/2012,3301496229,500,St Thomas Day Nursery Limited
http://statistics.data.gov.uk/id/local-authority/38,Oxfordshire County Council,Highways & Transport,"Electrical NP Rds, Street Lighting",Private Contractors,56400,Major Contracts,16/04/2012,3301496232,4200,Westcotec Ltd
http://statistics.data.gov.uk/id/local-authority/38,Oxfordshire County Council,STD Insurance,Motor Fleet,Motor Insurance Fund Rev AC,Z5151,Motor IF Own Damage,05/04/2012,3301496661,832.25,AWP Body Repairs
http://statistics.data.gov.uk/id/local-authority/38,Oxfordshire County Council,Education & Early Intervention,EYFS (FS) - Training,"Equipment, Furniture and Materials",41100,Educational Supplies,12/04/2012,3301496663,3000,Tiddliwinks Playgroup
http://statistics.data.gov.uk/id/local-authority/38,Oxfordshire County Council,STD Insurance,LMS,Insurance Permiums Holding A/c,Z5846,Insurance Premiums Holding Account External Premiu,12/04/2012,3301496678,3027.6,Perkins Slade Ltd
http://statistics.data.gov.uk/id/local-authority/38,Oxfordshire County Council,Education & Early Intervention,Supp Graduate Leader,"Equipment, Furniture and Materials",41100,Educational Supplies,05/04/2012,3301496679,3165,Great Tew Pre-School
http://statistics.data.gov.uk/id/local-authority/38,Oxfordshire County Council,Education & Early Intervention,Supp Graduate Leader,"Equipment, Furniture and Materials",41100,Educational Supplies,04/04/2012,3301496684,2560,The Bix Montessori School
http://statistics.data.gov.uk/id/local-authority/38,Oxfordshire County Council,Education & Early Intervention,Supp Graduate Leader,"Equipment, Furniture and Materials",41100,Educational Supplies,04/04/2012,3301496685,3200,The Bix Montessori School
http://statistics.data.gov.uk/id/local-authority/38,Oxfordshire County Council,Education & Early Intervention,"Outcomes, Quality & Inclusion Projects",Grants and Subscriptions,47100,Grants to Voluntary,02/04/2012,3301496690,2000,Badgemore Pre-school
http://statistics.data.gov.uk/id/local-authority/38,Oxfordshire County Council,Highways & Transport,"Electrical NP Rds, Street Lighting",Private Contractors,56400,Major Contracts,10/04/2012,3301496696,4050,MAYRISE LTD
http://statistics.data.gov.uk/id/local-authority/38,Oxfordshire County Council,SCS Pooled Budgets,Direct Payments North Team,Voluntary Associations,55400,Service Agreements-A,19/04/2012,3301497374,47045.08,A4e Ltd
http://statistics.data.gov.uk/id/local-authority/38,Oxfordshire County Council,Oxfordshire Customer Services,Recruitment & Retention,Expenses,46512,Criminal Records Bureau Charges Invoiced,02/04/2012,3301497495,1395,Capita Education Resourcing
http://statistics.data.gov.uk/id/local-authority/38,Oxfordshire County Council,Children's Social Care,Aim Higher Funding,"Equipment, Furniture and Materials",40101,Furniture & Equipment,03/04/2012,3301497501,4177.14,Barnardo's Midland
http://statistics.data.gov.uk/id/local-authority/38,Oxfordshire County Council,Social & Community Services,Community Support Budget - City East,Other Agency and Contracted Services,57300,Home Support (Ext) OS&HCD,02/04/2012,3301497951,880,Robert & Doris Watts Residential
http://statistics.data.gov.uk/id/local-authority/38,Oxfordshire County Council,Social & Community Services,Community Support Budget - City East,Other Agency and Contracted Services,57300,Home Support (Ext) OS&HCD,02/04/2012,3301497952,880,Robert & Doris Watts Residential
http://statistics.data.gov.uk/id/local-authority/38,Oxfordshire County Council,Social & Community Services,Community Support Budget - City East,Other Agency and Contracted Services,57300,Home Support (Ext) OS&HCD,02/04/2012,3301497954,3861,Kcare Nursing Agency
http://statistics.data.gov.uk/id/local-authority/38,Oxfordshire County Council,SCS Pooled Budgets,PCT Carers,Other Agency and Contracted Services,57401,Direct Payments,02/04/2012,3301497955,750,REDACTED PERSONAL DATA
http://statistics.data.gov.uk/id/local-authority/38,Oxfordshire County Council,SCS Pooled Budgets,PCT Carers,Other Agency and Contracted Services,57401,Direct Payments,02/04/2012,3301497956,750,REDACTED PERSONAL DATA
http://statistics.data.gov.uk/id/local-authority/38,Oxfordshire County Council,Social & Community Services,Community Support Budget - City East,Other Agency and Contracted Services,57300,Home Support (Ext) OS&HCD,02/04/2012,3301497961,975.55,OXFORDSHIRE GROUP HOMES
http://statistics.data.gov.uk/id/local-authority/38,Oxfordshire County Council,Social & Community Services,PCT SDS Funding,Other Agency and Contracted Services,57300,Home Support (Ext) OS&HCD,02/04/2012,3301497962,638.46,OXFORDSHIRE GROUP HOMES
http://statistics.data.gov.uk/id/local-authority/38,Oxfordshire County Council,Social & Community Services,PCT SDS Funding,Other Agency and Contracted Services,57300,Home Support (Ext) OS&HCD,02/04/2012,3301497969,573.91,OXFORDSHIRE GROUP HOMES
http://statistics.data.gov.uk/id/local-authority/38,Oxfordshire County Council,Social & Community Services,PCT SDS Funding,Other Agency and Contracted Services,57300,Home Support (Ext) OS&HCD,02/04/2012,3301497976,638.46,OXFORDSHIRE GROUP HOMES
http://statistics.data.gov.uk/id/local-authority/38,Oxfordshire County Council,SCS Unused Cost Centres,Eth/Comm Wkrs,Services,44500,Other Hired & Contract Services,02/04/2012,3301497982,7000,Oxfordshire Chinese Community & Adv
http://statistics.data.gov.uk/id/local-authority/38,Oxfordshire County Council,Social & Community Services,Community Support Budget - City East,Other Agency and Contracted Services,57850,Rented Accomodation,02/04/2012,3301497985,891,F Aziz
http://statistics.data.gov.uk/id/local-authority/38,Oxfordshire County Council,Social & Community Services,Carers SAs -  Carers Grant Funded,Voluntary Associations,55400,Service Agreements-A,02/04/2012,3301497987,17500,Carers UK
http://statistics.data.gov.uk/id/local-authority/38,Oxfordshire County Council,SCS Unused Cost Centres,Eth/Comm Wkrs,Services,44500,Other Hired & Contract Services,02/04/2012,3301497988,3168,The Oxfordshire Wheel Ltd
http://statistics.data.gov.uk/id/local-authority/38,Oxfordshire County Council,SCS Pooled Budgets,Direct Payments City Team,Other Agency and Contracted Services,57401,Direct Payments,03/04/2012,3301498047,1716.6,REDACTED PERSONAL DATA
http://statistics.data.gov.uk/id/local-authority/38,Oxfordshire County Council,SCS Pooled Budgets,PD Comm Supp Purchasg Budget - City,Other Agency and Contracted Services,57401,Direct Payments,03/04/2012,3301498049,1154.29,REDACTED PERSONAL DATA
http://statistics.data.gov.uk/id/local-authority/38,Oxfordshire County Council,SCS Pooled Budgets,Community Support Budget - City,Other Agency and Contracted Services,57401,Direct Payments,03/04/2012,3301498050,2064.8,REDACTED PERSONAL DATA
http://statistics.data.gov.uk/id/local-authority/38,Oxfordshire County Council,SCS Pooled Budgets,PD Comm Supp Purchasg Budget - City,Other Agency and Contracted Services,57401,Direct Payments,03/04/2012,3301498051,993.56,REDACTED PERSONAL DATA
http://statistics.data.gov.uk/id/local-authority/38,Oxfordshire County Council,SCS Pooled Budgets,PD Comm Supp Purchasg Budget - City,Other Agency and Contracted Services,57401,Direct Payments,03/04/2012,3301498054,1540.6,REDACTED PERSONAL DATA
http://statistics.data.gov.uk/id/local-authority/38,Oxfordshire County Council,SCS Pooled Budgets,PD Comm Supp Purchasg Budget - City,Other Agency and Contracted Services,57401,Direct Payments,03/04/2012,3301498055,1115.88,REDACTED PERSONAL DATA
http://statistics.data.gov.uk/id/local-authority/38,Oxfordshire County Council,SCS Pooled Budgets,PD Comm Supp Budget - Banbury,Other Agency and Contracted Services,57401,Direct Payments,03/04/2012,3301498056,2291.84,REDACTED PERSONAL DATA
http://statistics.data.gov.uk/id/local-authority/38,Oxfordshire County Council,SCS Pooled Budgets,Direct Payments South Team,Other Agency and Contracted Services,57401,Direct Payments,03/04/2012,3301498057,3600,REDACTED PERSONAL DATA
http://statistics.data.gov.uk/id/local-authority/38,Oxfordshire County Council,SCS Pooled Budgets,PD Comm Supp Purchasg Budget - Witney,Other Agency and Contracted Services,57401,Direct Payments,03/04/2012,3301498058,2789.28,REDACTED PERSONAL DATA
http://statistics.data.gov.uk/id/local-authority/38,Oxfordshire County Council,SCS Pooled Budgets,Community Support Budget - Banbury,Other Agency and Contracted Services,57401,Direct Payments,03/04/2012,3301498060,2680.28,REDACTED PERSONAL DATA
http://statistics.data.gov.uk/id/local-authority/38,Oxfordshire County Council,SCS Pooled Budgets,Community Support Budget - Kidlington,Other Agency and Contracted Services,57401,Direct Payments,03/04/2012,3301498061,1232,REDACTED PERSONAL DATA
http://statistics.data.gov.uk/id/local-authority/38,Oxfordshire County Council,SCS Pooled Budgets,Community Support Budget - Banbury,Other Agency and Contracted Services,57401,Direct Payments,03/04/2012,3301498062,652,REDACTED PERSONAL DATA
http://statistics.data.gov.uk/id/local-authority/38,Oxfordshire County Council,SCS Pooled Budgets,Community Support Budget - Banbury,Other Agency and Contracted Services,57401,Direct Payments,03/04/2012,3301498063,852.32,REDACTED PERSONAL DATA
http://statistics.data.gov.uk/id/local-authority/38,Oxfordshire County Council,SCS Pooled Budgets,Direct Payments North Team,Other Agency and Contracted Services,57401,Direct Payments,03/04/2012,3301498064,933.6,REDACTED PERSONAL DATA
http://statistics.data.gov.uk/id/local-authority/38,Oxfordshire County Council,SCS Pooled Budgets,Community Support Budget - Witney,Other Agency and Contracted Services,57401,Direct Payments,03/04/2012,3301498065,716,REDACTED PERSONAL DATA
http://statistics.data.gov.uk/id/local-authority/38,Oxfordshire County Council,SCS Pooled Budgets,Personal Health Budgets PD (PCT),Other Agency and Contracted Services,57401,Direct Payments,03/04/2012,3301498067,4247.92,REDACTED PERSONAL DATA
http://statistics.data.gov.uk/id/local-authority/38,Oxfordshire County Council,SCS Pooled Budgets,Community Support Budget - Witney,Other Agency and Contracted Services,57401,Direct Payments,03/04/2012,3301498069,1520,REDACTED PERSONAL DATA
http://statistics.data.gov.uk/id/local-authority/38,Oxfordshire County Council,SCS Pooled Budgets,Community Support Budget - Didcot,Other Agency and Contracted Services,57401,Direct Payments,03/04/2012,3301498070,1131.4,REDACTED PERSONAL DATA
http://statistics.data.gov.uk/id/local-authority/38,Oxfordshire County Council,SCS Pooled Budgets,Community Support Budget - City,Other Agency and Contracted Services,57401,Direct Payments,03/04/2012,3301498071,2535.4,REDACTED PERSONAL DATA
http://statistics.data.gov.uk/id/local-authority/38,Oxfordshire County Council,SCS Pooled Budgets,Community Support Budget - City,Other Agency and Contracted Services,57401,Direct Payments,03/04/2012,3301498072,2391.52,REDACTED PERSONAL DATA
http://statistics.data.gov.uk/id/local-authority/38,Oxfordshire County Council,SCS Pooled Budgets,Community Support Budget - Bicester,Other Agency and Contracted Services,57401,Direct Payments,03/04/2012,3301498073,1362,REDACTED PERSONAL DATA
http://statistics.data.gov.uk/id/local-authority/38,Oxfordshire County Council,SCS Pooled Budgets,Community Support Budget - Bicester,Other Agency and Contracted Services,57401,Direct Payments,03/04/2012,3301498075,680,REDACTED PERSONAL DATA
http://statistics.data.gov.uk/id/local-authority/38,Oxfordshire County Council,SCS Pooled Budgets,Community Support Budget - Banbury,Other Agency and Contracted Services,57401,Direct Payments,03/04/2012,3301498077,900,REDACTED PERSONAL DATA
http://statistics.data.gov.uk/id/local-authority/38,Oxfordshire County Council,SCS Pooled Budgets,Community Support Budget - City,Other Agency and Contracted Services,57401,Direct Payments,03/04/2012,3301498078,1079.36,REDACTED PERSONAL DATA
http://statistics.data.gov.uk/id/local-authority/38,Oxfordshire County Council,SCS Pooled Budgets,Community Support Budget - Thame,Other Agency and Contracted Services,57401,Direct Payments,03/04/2012,3301498079,1902.76,REDACTED PERSONAL DATA
http://statistics.data.gov.uk/id/local-authority/38,Oxfordshire County Council,SCS Pooled Budgets,Community Support Budget - Thame,Other Agency and Contracted Services,57401,Direct Payments,03/04/2012,3301498082,1189.32,REDACTED PERSONAL DATA
http://statistics.data.gov.uk/id/local-authority/38,Oxfordshire County Council,SCS Pooled Budgets,Community Support Budget - Abingdon,Other Agency and Contracted Services,57401,Direct Payments,03/04/2012,3301498083,1207,REDACTED PERSONAL DATA
http://statistics.data.gov.uk/id/local-authority/38,Oxfordshire County Council,Social & Community Services,Community Support Budget - City East,Other Agency and Contracted Services,57401,Direct Payments,03/04/2012,3301498085,640,REDACTED PERSONAL DATA
http://statistics.data.gov.uk/id/local-authority/38,Oxfordshire County Council,SCS Pooled Budgets,Community Support Budget - Abingdon,Other Agency and Contracted Services,57401,Direct Payments,03/04/2012,3301498086,1896,REDACTED PERSONAL DATA
http://statistics.data.gov.uk/id/local-authority/38,Oxfordshire County Council,SCS Pooled Budgets,Community Support Budget - Banbury,Other Agency and Contracted Services,57401,Direct Payments,03/04/2012,3301498087,912,REDACTED PERSONAL DATA
http://statistics.data.gov.uk/id/local-authority/38,Oxfordshire County Council,SCS Pooled Budgets,Community Support Budget - Didcot,Other Agency and Contracted Services,57401,Direct Payments,03/04/2012,3301498088,1600,REDACTED PERSONAL DATA
http://statistics.data.gov.uk/id/local-authority/38,Oxfordshire County Council,SCS Pooled Budgets,Direct Payments South Team,Other Agency and Contracted Services,57401,Direct Payments,03/04/2012,3301498092,954.68,REDACTED PERSONAL DATA
http://statistics.data.gov.uk/id/local-authority/38,Oxfordshire County Council,SCS Pooled Budgets,Direct Payments South Team,Other Agency and Contracted Services,57401,Direct Payments,03/04/2012,3301498093,954.68,REDACTED PERSONAL DATA
http://statistics.data.gov.uk/id/local-authority/38,Oxfordshire County Council,SCS Pooled Budgets,Community Support Budget - Didcot,Other Agency and Contracted Services,57401,Direct Payments,03/04/2012,3301498095,633.84,REDACTED PERSONAL DATA
http://statistics.data.gov.uk/id/local-authority/38,Oxfordshire County Council,SCS Pooled Budgets,Community Support Budget - Bicester,Other Agency and Contracted Services,57401,Direct Payments,03/04/2012,3301498097,972,REDACTED PERSONAL DATA
http://statistics.data.gov.uk/id/local-authority/38,Oxfordshire County Council,SCS Pooled Budgets,OP Pool Continuing Care Delegated Health,Other Agency and Contracted Services,57401,Direct Payments,03/04/2012,3301498098,1800,REDACTED PERSONAL DATA
http://statistics.data.gov.uk/id/local-authority/38,Oxfordshire County Council,SCS Pooled Budgets,Community Support Budget - Henley,Other Agency and Contracted Services,57401,Direct Payments,03/04/2012,3301498098,3292,REDACTED PERSONAL DATA
http://statistics.data.gov.uk/id/local-authority/38,Oxfordshire County Council,SCS Pooled Budgets,Personal Health Budgets PD (PCT),Other Agency and Contracted Services,57401,Direct Payments,03/04/2012,3301498100,8959.2,REDACTED PERSONAL DATA
http://statistics.data.gov.uk/id/local-authority/38,Oxfordshire County Council,SCS Pooled Budgets,Community Support Budget - Abingdon,Other Agency and Contracted Services,57401,Direct Payments,03/04/2012,3301498101,2580,REDACTED PERSONAL DATA
http://statistics.data.gov.uk/id/local-authority/38,Oxfordshire County Council,SCS Pooled Budgets,Community Support Budget - Didcot,Other Agency and Contracted Services,57401,Direct Payments,03/04/2012,3301498102,887.39,REDACTED PERSONAL DATA
http://statistics.data.gov.uk/id/local-authority/38,Oxfordshire County Council,SCS Pooled Budgets,PD Comm Supp Purchasg Budget - City,Other Agency and Contracted Services,57401,Direct Payments,03/04/2012,3301498104,2087.4,REDACTED PERSONAL DATA
http://statistics.data.gov.uk/id/local-authority/38,Oxfordshire County Council,SCS Pooled Budgets,Direct Payments South Team,Other Agency and Contracted Services,57401,Direct Payments,03/04/2012,3301498107,2307.68,REDACTED PERSONAL DATA
http://statistics.data.gov.uk/id/local-authority/38,Oxfordshire County Council,SCS Pooled Budgets,Direct Payments North Team,Other Agency and Contracted Services,57401,Direct Payments,03/04/2012,3301498108,4860,REDACTED PERSONAL DATA
http://statistics.data.gov.uk/id/local-authority/38,Oxfordshire County Council,SCS Pooled Budgets,Direct Payments South Team,Other Agency and Contracted Services,57401,Direct Payments,03/04/2012,3301498109,1537.6,REDACTED PERSONAL DATA
http://statistics.data.gov.uk/id/local-authority/38,Oxfordshire County Council,SCS Pooled Budgets,PD Comm Supp Purchasg Budget - Henley,Other Agency and Contracted Services,57401,Direct Payments,03/04/2012,3301498110,1280,REDACTED PERSONAL DATA
http://statistics.data.gov.uk/id/local-authority/38,Oxfordshire County Council,SCS Pooled Budgets,PD Comm Supp Purchasg Budget - Thame,Other Agency and Contracted Services,57401,Direct Payments,03/04/2012,3301498111,880,REDACTED PERSONAL DATA
http://statistics.data.gov.uk/id/local-authority/38,Oxfordshire County Council,SCS Pooled Budgets,PD Comm Supp Purchasg Budget - Abingdon,Other Agency and Contracted Services,57401,Direct Payments,03/04/2012,3301498112,879.78,REDACTED PERSONAL DATA
http://statistics.data.gov.uk/id/local-authority/38,Oxfordshire County Council,SCS Pooled Budgets,Community Support Budget - Banbury,Other Agency and Contracted Services,57401,Direct Payments,03/04/2012,3301498113,1406.32,REDACTED PERSONAL DATA
http://statistics.data.gov.uk/id/local-authority/38,Oxfordshire County Council,SCS Pooled Budgets,OP Pool Continuing Care Delegated Health,Other Agency and Contracted Services,57401,Direct Payments,03/04/2012,3301498113,552,REDACTED PERSONAL DATA
http://statistics.data.gov.uk/id/local-authority/38,Oxfordshire County Council,SCS Pooled Budgets,PD Comm Supp Purchasg Budget - Witney,Other Agency and Contracted Services,57401,Direct Payments,03/04/2012,3301498115,4162.4,REDACTED PERSONAL DATA
http://statistics.data.gov.uk/id/local-authority/38,Oxfordshire County Council,SCS Pooled Budgets,Direct Payments City Team,Other Agency and Contracted Services,57401,Direct Payments,03/04/2012,3301498116,560,REDACTED PERSONAL DATA
http://statistics.data.gov.uk/id/local-authority/38,Oxfordshire County Council,SCS Pooled Budgets,Community Support Budget - Witney,Other Agency and Contracted Services,57401,Direct Payments,03/04/2012,3301498117,1084,REDACTED PERSONAL DATA
http://statistics.data.gov.uk/id/local-authority/38,Oxfordshire County Council,SCS Pooled Budgets,PD Comm Supp Purchasg Budget - Wantage,Other Agency and Contracted Services,57401,Direct Payments,03/04/2012,3301498118,516,REDACTED PERSONAL DATA
http://statistics.data.gov.uk/id/local-authority/38,Oxfordshire County Council,SCS Pooled Budgets,PD Comm Supp Purchasg Budget - Witney,Other Agency and Contracted Services,57401,Direct Payments,03/04/2012,3301498120,1200,REDACTED PERSONAL DATA
http://statistics.data.gov.uk/id/local-authority/38,Oxfordshire County Council,SCS Pooled Budgets,Community Support Budget - City,Other Agency and Contracted Services,57401,Direct Payments,03/04/2012,3301498121,548,REDACTED PERSONAL DATA
http://statistics.data.gov.uk/id/local-authority/38,Oxfordshire County Council,SCS Pooled Budgets,Community Support Budget - Henley,Other Agency and Contracted Services,57401,Direct Payments,03/04/2012,3301498123,712,REDACTED PERSONAL DATA
http://statistics.data.gov.uk/id/local-authority/38,Oxfordshire County Council,SCS Pooled Budgets,Community Support Budget - Henley,Other Agency and Contracted Services,57401,Direct Payments,03/04/2012,3301498124,1680,REDACTED PERSONAL DATA
http://statistics.data.gov.uk/id/local-authority/38,Oxfordshire County Council,SCS Pooled Budgets,Direct Payments South Team,Other Agency and Contracted Services,57401,Direct Payments,03/04/2012,3301498125,1059.31,REDACTED PERSONAL DATA
http://statistics.data.gov.uk/id/local-authority/38,Oxfordshire County Council,SCS Pooled Budgets,Community Support Budget - Bicester,Other Agency and Contracted Services,57401,Direct Payments,03/04/2012,3301498126,508.92,REDACTED PERSONAL DATA
http://statistics.data.gov.uk/id/local-authority/38,Oxfordshire County Council,SCS Pooled Budgets,Direct Payments North Team,Other Agency and Contracted Services,57401,Direct Payments,03/04/2012,3301498128,5593.09,REDACTED PERSONAL DATA
http://statistics.data.gov.uk/id/local-authority/38,Oxfordshire County Council,Social & Community Services,"LD Day Services, Service Managers",Other Agency and Contracted Services,57401,Direct Payments,03/04/2012,3301498128,1227.75,REDACTED PERSONAL DATA
http://statistics.data.gov.uk/id/local-authority/38,Oxfordshire County Council,SCS Pooled Budgets,PD Comm Supp Purchasg Budget - Witney,Other Agency and Contracted Services,57401,Direct Payments,03/04/2012,3301498129,1846.44,REDACTED PERSONAL DATA
http://statistics.data.gov.uk/id/local-authority/38,Oxfordshire County Council,SCS Pooled Budgets,Direct Payments South Team,Other Agency and Contracted Services,57401,Direct Payments,03/04/2012,3301498130,15370.2,REDACTED PERSONAL DATA
http://statistics.data.gov.uk/id/local-authority/38,Oxfordshire County Council,SCS Pooled Budgets,Community Support Budget - Wantage,Other Agency and Contracted Services,57401,Direct Payments,03/04/2012,3301498131,2520,REDACTED PERSONAL DATA
http://statistics.data.gov.uk/id/local-authority/38,Oxfordshire County Council,SCS Pooled Budgets,PD Comm Supp Purchasg Budget - Didcot,Other Agency and Contracted Services,57401,Direct Payments,03/04/2012,3301498133,1240,REDACTED PERSONAL DATA
http://statistics.data.gov.uk/id/local-authority/38,Oxfordshire County Council,SCS Pooled Budgets,PD Comm Supp Purchasg Budget - Abingdon,Other Agency and Contracted Services,57401,Direct Payments,03/04/2012,3301498134,1457.04,REDACTED PERSONAL DATA
http://statistics.data.gov.uk/id/local-authority/38,Oxfordshire County Council,SCS Pooled Budgets,Community Support Budget - Abingdon,Other Agency and Contracted Services,57401,Direct Payments,03/04/2012,3301498135,1634.12,REDACTED PERSONAL DATA
http://statistics.data.gov.uk/id/local-authority/38,Oxfordshire County Council,SCS Pooled Budgets,PD Comm Supp Purchasg Budget - Abingdon,Other Agency and Contracted Services,57401,Direct Payments,03/04/2012,3301498136,1077.6,REDACTED PERSONAL DATA
http://statistics.data.gov.uk/id/local-authority/38,Oxfordshire County Council,SCS Pooled Budgets,PD Comm Supp Purchasg Budget - City,Other Agency and Contracted Services,57401,Direct Payments,03/04/2012,3301498138,1520.52,REDACTED PERSONAL DATA
http://statistics.data.gov.uk/id/local-authority/38,Oxfordshire County Council,SCS Pooled Budgets,PD Comm Supp Purchasg Budget - Chip. N.,Other Agency and Contracted Services,57401,Direct Payments,03/04/2012,3301498140,640,REDACTED PERSONAL DATA
http://statistics.data.gov.uk/id/local-authority/38,Oxfordshire County Council,SCS Pooled Budgets,Personal Health Budgets PD (PCT),Other Agency and Contracted Services,57401,Direct Payments,03/04/2012,3301498141,3652.16,REDACTED PERSONAL DATA
http://statistics.data.gov.uk/id/local-authority/38,Oxfordshire County Council,SCS Pooled Budgets,PD CS Purch Budget - Health S28a JC,Other Agency and Contracted Services,57401,Direct Payments,03/04/2012,3301498142,2028,REDACTED PERSONAL DATA
http://statistics.data.gov.uk/id/local-authority/38,Oxfordshire County Council,SCS Pooled Budgets,PD Comm Supp Purchasg Budget - Didcot,Other Agency and Contracted Services,57401,Direct Payments,03/04/2012,3301498142,2032,REDACTED PERSONAL DATA
http://statistics.data.gov.uk/id/local-authority/38,Oxfordshire County Council,SCS Pooled Budgets,Community Support Budget - Chipping Nort,Other Agency and Contracted Services,57401,Direct Payments,03/04/2012,3301498143,1520,REDACTED PERSONAL DATA
http://statistics.data.gov.uk/id/local-authority/38,Oxfordshire County Council,SCS Pooled Budgets,Direct Payments South Team,Other Agency and Contracted Services,57401,Direct Payments,03/04/2012,3301498145,5684.16,REDACTED PERSONAL DATA
http://statistics.data.gov.uk/id/local-authority/38,Oxfordshire County Council,SCS Pooled Budgets,Direct Payments South Team,Other Agency and Contracted Services,57401,Direct Payments,03/04/2012,3301498146,3842.2,REDACTED PERSONAL DATA
http://statistics.data.gov.uk/id/local-authority/38,Oxfordshire County Council,SCS Pooled Budgets,PD Community Support Budget - Kidlington,Other Agency and Contracted Services,57401,Direct Payments,03/04/2012,3301498147,1903.72,REDACTED PERSONAL DATA
http://statistics.data.gov.uk/id/local-authority/38,Oxfordshire County Council,SCS Pooled Budgets,PD CS Purch Budget - Health S28a JC,Other Agency and Contracted Services,57401,Direct Payments,03/04/2012,3301498147,815.88,REDACTED PERSONAL DATA
http://statistics.data.gov.uk/id/local-authority/38,Oxfordshire County Council,SCS Pooled Budgets,Direct Payments City Team,Other Agency and Contracted Services,57401,Direct Payments,03/04/2012,3301498148,720.16,REDACTED PERSONAL DATA
http://statistics.data.gov.uk/id/local-authority/38,Oxfordshire County Council,SCS Pooled Budgets,PD Comm Supp Budgt - Bicester/Kidlington,Other Agency and Contracted Services,57401,Direct Payments,03/04/2012,3301498149,1993.84,REDACTED PERSONAL DATA
http://statistics.data.gov.uk/id/local-authority/38,Oxfordshire County Council,SCS Pooled Budgets,PD Comm Supp Budgt - Bicester/Kidlington,Other Agency and Contracted Services,57401,Direct Payments,03/04/2012,3301498149,2492.3,REDACTED PERSONAL DATA
http://statistics.data.gov.uk/id/local-authority/38,Oxfordshire County Council,SCS Pooled Budgets,PD Comm Supp Budgt - Bicester/Kidlington,Other Agency and Contracted Services,57401,Direct Payments,03/04/2012,3301498149,-2427.35,REDACTED PERSONAL DATA
http://statistics.data.gov.uk/id/local-authority/38,Oxfordshire County Council,SCS Pooled Budgets,Direct Payments City Team,Other Agency and Contracted Services,57401,Direct Payments,03/04/2012,3301498150,1302,REDACTED PERSONAL DATA
http://statistics.data.gov.uk/id/local-authority/38,Oxfordshire County Council,SCS Pooled Budgets,PD Comm Supp Budget - Banbury,Other Agency and Contracted Services,57401,Direct Payments,03/04/2012,3301498151,1637.04,REDACTED PERSONAL DATA
http://statistics.data.gov.uk/id/local-authority/38,Oxfordshire County Council,SCS Pooled Budgets,Community Support Budget - Kidlington,Other Agency and Contracted Services,57401,Direct Payments,03/04/2012,3301498152,2564,REDACTED PERSONAL DATA
http://statistics.data.gov.uk/id/local-authority/38,Oxfordshire County Council,SCS Pooled Budgets,Community Support Budget - Banbury,Other Agency and Contracted Services,57401,Direct Payments,03/04/2012,3301498153,2008.28,REDACTED PERSONAL DATA
http://statistics.data.gov.uk/id/local-authority/38,Oxfordshire County Council,SCS Pooled Budgets,Community Support Budget - Banbury,Other Agency and Contracted Services,57401,Direct Payments,03/04/2012,3301498153,6383.46,REDACTED PERSONAL DATA
http://statistics.data.gov.uk/id/local-authority/38,Oxfordshire County Council,SCS Pooled Budgets,Community Support Budget - Banbury,Other Agency and Contracted Services,57401,Direct Payments,03/04/2012,3301498153,-4595.71,REDACTED PERSONAL DATA
http://statistics.data.gov.uk/id/local-authority/38,Oxfordshire County Council,SCS Pooled Budgets,OP Pool Continuing Care Delegated Health,Other Agency and Contracted Services,57401,Direct Payments,03/04/2012,3301498153,-1045.62,REDACTED PERSONAL DATA
http://statistics.data.gov.uk/id/local-authority/38,Oxfordshire County Council,SCS Pooled Budgets,Direct Payments North Team,Other Agency and Contracted Services,57401,Direct Payments,03/04/2012,3301498154,585,REDACTED PERSONAL DATA
http://statistics.data.gov.uk/id/local-authority/38,Oxfordshire County Council,SCS Pooled Budgets,Direct Payments South Team,Other Agency and Contracted Services,57401,Direct Payments,03/04/2012,3301498155,-837.66,REDACTED PERSONAL DATA
http://statistics.data.gov.uk/id/local-authority/38,Oxfordshire County Council,SCS Pooled Budgets,Direct Payments South Team,Other Agency and Contracted Services,57401,Direct Payments,03/04/2012,3301498155,960,REDACTED PERSONAL DATA
http://statistics.data.gov.uk/id/local-authority/38,Oxfordshire County Council,SCS Pooled Budgets,Direct Payments South Team,Other Agency and Contracted Services,57401,Direct Payments,03/04/2012,3301498155,576,REDACTED PERSONAL DATA
http://statistics.data.gov.uk/id/local-authority/38,Oxfordshire County Council,SCS Pooled Budgets,PD Community Support Budget - Kidlington,Other Agency and Contracted Services,57401,Direct Payments,03/04/2012,3301498157,2759.2,A4e Management Ltd Week 3
http://statistics.data.gov.uk/id/local-authority/38,Oxfordshire County Council,SCS Pooled Budgets,Community Support Budget - Didcot,Other Agency and Contracted Services,57401,Direct Payments,03/04/2012,3301498158,592,A4e Management Ltd Week 3
http://statistics.data.gov.uk/id/local-authority/38,Oxfordshire County Council,SCS Pooled Budgets,Community Support Budget - Abingdon,Other Agency and Contracted Services,57401,Direct Payments,03/04/2012,3301498160,1940,A4e Management Ltd Week 3
http://statistics.data.gov.uk/id/local-authority/38,Oxfordshire County Council,SCS Pooled Budgets,Community Support Budget - Kidlington,Other Agency and Contracted Services,57401,Direct Payments,03/04/2012,3301498161,606.24,A4e Management Ltd Week 3
http://statistics.data.gov.uk/id/local-authority/38,Oxfordshire County Council,SCS Pooled Budgets,Community Support Budget - Banbury,Other Agency and Contracted Services,57401,Direct Payments,03/04/2012,3301498162,1364,A4e Management Ltd Week 3
http://statistics.data.gov.uk/id/local-authority/38,Oxfordshire County Council,SCS Pooled Budgets,Community Support Budget - Henley,Other Agency and Contracted Services,57401,Direct Payments,03/04/2012,3301498165,519.28,A4e Management Ltd Week 3
http://statistics.data.gov.uk/id/local-authority/38,Oxfordshire County Council,SCS Pooled Budgets,PD Comm Supp Purchasg Budget - City,Other Agency and Contracted Services,57401,Direct Payments,03/04/2012,3301498166,737.8,A4e Management Ltd Week 3
http://statistics.data.gov.uk/id/local-authority/38,Oxfordshire County Council,SCS Pooled Budgets,Community Support Budget - Bicester,Other Agency and Contracted Services,57401,Direct Payments,03/04/2012,3301498167,680,A4e Management Ltd Week 3
http://statistics.data.gov.uk/id/local-authority/38,Oxfordshire County Council,SCS Pooled Budgets,Community Support Budget - Chipping Nort,Other Agency and Contracted Services,57401,Direct Payments,03/04/2012,3301498168,977.6,A4e Management Ltd Week 3
http://statistics.data.gov.uk/id/local-authority/38,Oxfordshire County Council,SCS Pooled Budgets,Community Support Budget - Chipping Nort,Other Agency and Contracted Services,57401,Direct Payments,03/04/2012,3301498169,792.76,A4e Management Ltd Week 3
http://statistics.data.gov.uk/id/local-authority/38,Oxfordshire County Council,SCS Pooled Budgets,Community Support Budget - Banbury,Other Agency and Contracted Services,57401,Direct Payments,03/04/2012,3301498170,688,A4e Management Ltd Week 3
http://statistics.data.gov.uk/id/local-authority/38,Oxfordshire County Council,SCS Pooled Budgets,PD Comm Supp Purchasg Budget - Didcot,Other Agency and Contracted Services,57401,Direct Payments,03/04/2012,3301498171,1098.56,A4e Management Ltd Week 3
http://statistics.data.gov.uk/id/local-authority/38,Oxfordshire County Council,SCS Pooled Budgets,Direct Payments South Team,Other Agency and Contracted Services,57401,Direct Payments,03/04/2012,3301498173,907.2,A4e Management Ltd Week 3
http://statistics.data.gov.uk/id/local-authority/38,Oxfordshire County Council,SCS Pooled Budgets,Community Support Budget - Chipping Nort,Other Agency and Contracted Services,57401,Direct Payments,03/04/2012,3301498174,900,A4e Management Ltd Week 3
http://statistics.data.gov.uk/id/local-authority/38,Oxfordshire County Council,SCS Pooled Budgets,Direct Payments South Team,Other Agency and Contracted Services,57401,Direct Payments,03/04/2012,3301498177,583.2,A4e Management Ltd Week 3
http://statistics.data.gov.uk/id/local-authority/38,Oxfordshire County Council,SCS Pooled Budgets,Community Support Budget - Witney,Other Agency and Contracted Services,57401,Direct Payments,03/04/2012,3301498178,943.68,A4e Management Ltd Week 3
http://statistics.data.gov.uk/id/local-authority/38,Oxfordshire County Council,SCS Pooled Budgets,Personal Health Budgets PD (PCT),Other Agency and Contracted Services,57401,Direct Payments,03/04/2012,3301498179,6504.56,A4e Management Ltd Week 3
http://statistics.data.gov.uk/id/local-authority/38,Oxfordshire County Council,SCS Pooled Budgets,Direct Payments South Team,Other Agency and Contracted Services,57401,Direct Payments,03/04/2012,3301498181,907.2,A4e Management Ltd Week 3
http://statistics.data.gov.uk/id/local-authority/38,Oxfordshire County Council,SCS Pooled Budgets,PD Comm Supp Purchasg Budget - Witney,Other Agency and Contracted Services,57401,Direct Payments,03/04/2012,3301498182,1440,A4e Management Ltd Week 3
http://statistics.data.gov.uk/id/local-authority/38,Oxfordshire County Council,SCS Pooled Budgets,Community Support Budget - Banbury,Other Agency and Contracted Services,57401,Direct Payments,03/04/2012,3301498183,944,A4e Management Ltd Week 3
http://statistics.data.gov.uk/id/local-authority/38,Oxfordshire County Council,SCS Pooled Budgets,Community Support Budget - Abingdon,Other Agency and Contracted Services,57401,Direct Payments,03/04/2012,3301498184,512,A4e Management Ltd Week 3
http://statistics.data.gov.uk/id/local-authority/38,Oxfordshire County Council,SCS Pooled Budgets,Community Support Budget - Didcot,Other Agency and Contracted Services,57401,Direct Payments,03/04/2012,3301498185,740,A4e Management Ltd Week 3
http://statistics.data.gov.uk/id/local-authority/38,Oxfordshire County Council,SCS Pooled Budgets,Community Support Budget - Banbury,Other Agency and Contracted Services,57401,Direct Payments,03/04/2012,3301498186,1268,A4e Management Ltd Week 3
http://statistics.data.gov.uk/id/local-authority/38,Oxfordshire County Council,SCS Pooled Budgets,Community Support Budget - City,Other Agency and Contracted Services,57401,Direct Payments,03/04/2012,3301498187,1300,A4e Management Ltd Week 3
http://statistics.data.gov.uk/id/local-authority/38,Oxfordshire County Council,SCS Pooled Budgets,Direct Payments South Team,Other Agency and Contracted Services,57401,Direct Payments,03/04/2012,3301498188,536,A4e Management Ltd Week 3
http://statistics.data.gov.uk/id/local-authority/38,Oxfordshire County Council,SCS Pooled Budgets,Community Support Budget - Kidlington,Other Agency and Contracted Services,57401,Direct Payments,03/04/2012,3301498189,1267.7,A4e Management Ltd Week 3
http://statistics.data.gov.uk/id/local-authority/38,Oxfordshire County Council,SCS Pooled Budgets,Community Support Budget - Bicester,Other Agency and Contracted Services,57401,Direct Payments,03/04/2012,3301498190,960,A4e Management Ltd Week 3
http://statistics.data.gov.uk/id/local-authority/38,Oxfordshire County Council,SCS Pooled Budgets,Community Support Budget - Banbury,Other Agency and Contracted Services,57401,Direct Payments,03/04/2012,3301498191,764,A4e Management Ltd Week 3
http://statistics.data.gov.uk/id/local-authority/38,Oxfordshire County Council,SCS Pooled Budgets,PD Comm Supp Purchasg Budget - Abingdon,Other Agency and Contracted Services,57401,Direct Payments,03/04/2012,3301498192,926.4,A4e Management Ltd Week 3
http://statistics.data.gov.uk/id/local-authority/38,Oxfordshire County Council,SCS Pooled Budgets,Community Support Budget - City,Other Agency and Contracted Services,57401,Direct Payments,03/04/2012,3301498195,764,A4e Management Ltd Week 3
http://statistics.data.gov.uk/id/local-authority/38,Oxfordshire County Council,SCS Pooled Budgets,PD Community Support Budget - Kidlington,Other Agency and Contracted Services,57401,Direct Payments,03/04/2012,3301498196,2628,A4e Management Ltd Week 3
http://statistics.data.gov.uk/id/local-authority/38,Oxfordshire County Council,SCS Pooled Budgets,Community Support Budget - City,Other Agency and Contracted Services,57401,Direct Payments,03/04/2012,3301498197,995.6,A4e Management Ltd Week 3
http://statistics.data.gov.uk/id/local-authority/38,Oxfordshire County Council,SCS Pooled Budgets,Community Support Budget - City,Other Agency and Contracted Services,57401,Direct Payments,03/04/2012,3301498198,608,A4e Management Ltd Week 3
http://statistics.data.gov.uk/id/local-authority/38,Oxfordshire County Council,SCS Pooled Budgets,Community Support Budget - Banbury,Other Agency and Contracted Services,57401,Direct Payments,03/04/2012,3301498199,1472,A4e Management Ltd Week 3
http://statistics.data.gov.uk/id/local-authority/38,Oxfordshire County Council,SCS Pooled Budgets,PD Comm Supp Purchasg Budget - Thame,Other Agency and Contracted Services,57401,Direct Payments,03/04/2012,3301498200,1228.24,A4e Management Ltd Week 3
http://statistics.data.gov.uk/id/local-authority/38,Oxfordshire County Council,SCS Pooled Budgets,Community Support Budget - Faringdon,Other Agency and Contracted Services,57401,Direct Payments,03/04/2012,3301498201,2312,A4e Management Ltd Week 3
http://statistics.data.gov.uk/id/local-authority/38,Oxfordshire County Council,SCS Pooled Budgets,Community Support Budget - Chipping Nort,Other Agency and Contracted Services,57401,Direct Payments,03/04/2012,3301498202,704,A4e Management Ltd Week 3
http://statistics.data.gov.uk/id/local-authority/38,Oxfordshire County Council,SCS Pooled Budgets,Direct Payments South Team,Other Agency and Contracted Services,57401,Direct Payments,03/04/2012,3301498203,959.36,A4e Management Ltd Week 3
http://statistics.data.gov.uk/id/local-authority/38,Oxfordshire County Council,SCS Pooled Budgets,PD Comm Supp Purchasg Budget - City,Other Agency and Contracted Services,57401,Direct Payments,03/04/2012,3301498205,860,A4e Management Ltd Week 3
http://statistics.data.gov.uk/id/local-authority/38,Oxfordshire County Council,SCS Pooled Budgets,Community Support Budget - Didcot,Other Agency and Contracted Services,57401,Direct Payments,03/04/2012,3301498206,1013.76,A4e Management Ltd Week 3
http://statistics.data.gov.uk/id/local-authority/38,Oxfordshire County Council,Social & Community Services,Community Support Budget - City East,Other Agency and Contracted Services,57401,Direct Payments,03/04/2012,3301498210,864.4,A4e Management Ltd Week 3
http://statistics.data.gov.uk/id/local-authority/38,Oxfordshire County Council,SCS Pooled Budgets,Community Support Budget - Abingdon,Other Agency and Contracted Services,57401,Direct Payments,03/04/2012,3301498211,1100,A4e Management Ltd Week 3
http://statistics.data.gov.uk/id/local-authority/38,Oxfordshire County Council,SCS Pooled Budgets,Direct Payments South Team,Other Agency and Contracted Services,57401,Direct Payments,03/04/2012,3301498212,907.2,A4e Management Ltd Week 3
http://statistics.data.gov.uk/id/local-authority/38,Oxfordshire County Council,SCS Pooled Budgets,Community Support Budget - Witney,Other Agency and Contracted Services,57401,Direct Payments,03/04/2012,3301498214,506.32,A4e Management Ltd Week 3
http://statistics.data.gov.uk/id/local-authority/38,Oxfordshire County Council,SCS Pooled Budgets,Community Support Budget - Wantage,Other Agency and Contracted Services,57401,Direct Payments,03/04/2012,3301498215,835.2,A4e Management Ltd Week 3
http://statistics.data.gov.uk/id/local-authority/38,Oxfordshire County Council,SCS Pooled Budgets,Community Support Budget - Banbury,Other Agency and Contracted Services,57401,Direct Payments,03/04/2012,3301498216,780,A4e Management Ltd Week 3
http://statistics.data.gov.uk/id/local-authority/38,Oxfordshire County Council,SCS Pooled Budgets,Community Support Budget - Banbury,Other Agency and Contracted Services,57401,Direct Payments,03/04/2012,3301498217,888,A4e Management Ltd Week 3
http://statistics.data.gov.uk/id/local-authority/38,Oxfordshire County Council,SCS Pooled Budgets,Community Support Budget - Bicester,Other Agency and Contracted Services,57401,Direct Payments,03/04/2012,3301498218,912,A4e Management Ltd Week 3
http://statistics.data.gov.uk/id/local-authority/38,Oxfordshire County Council,SCS Pooled Budgets,Community Support Budget - City,Other Agency and Contracted Services,57401,Direct Payments,03/04/2012,3301498219,1892,A4e Management Ltd Week 3
http://statistics.data.gov.uk/id/local-authority/38,Oxfordshire County Council,SCS Pooled Budgets,Community Support Budget - Kidlington,Other Agency and Contracted Services,57401,Direct Payments,03/04/2012,3301498220,1092,A4e Management Ltd Week 3
http://statistics.data.gov.uk/id/local-authority/38,Oxfordshire County Council,SCS Pooled Budgets,PD Comm Supp Budget - Banbury,Other Agency and Contracted Services,57401,Direct Payments,03/04/2012,3301498221,687.36,A4e Management Ltd Week 3
http://statistics.data.gov.uk/id/local-authority/38,Oxfordshire County Council,SCS Pooled Budgets,Community Support Budget - Faringdon,Other Agency and Contracted Services,57401,Direct Payments,03/04/2012,3301498224,624,A4e Management Ltd Week 3
http://statistics.data.gov.uk/id/local-authority/38,Oxfordshire County Council,SCS Pooled Budgets,Direct Payments City Team,Other Agency and Contracted Services,57401,Direct Payments,03/04/2012,3301498225,511.6,A4e Management Ltd Week 3
http://statistics.data.gov.uk/id/local-authority/38,Oxfordshire County Council,SCS Pooled Budgets,Community Support Budget - Banbury,Other Agency and Contracted Services,57401,Direct Payments,03/04/2012,3301498226,2000,A4e Management Ltd Week 3
http://statistics.data.gov.uk/id/local-authority/38,Oxfordshire County Council,SCS Pooled Budgets,PD Comm Supp Purchasg Budget - Witney,Other Agency and Contracted Services,57401,Direct Payments,03/04/2012,3301498227,516,A4e Management Ltd Week 3
http://statistics.data.gov.uk/id/local-authority/38,Oxfordshire County Council,SCS Pooled Budgets,Community Support Budget - Witney,Other Agency and Contracted Services,57401,Direct Payments,03/04/2012,3301498228,768,A4e Management Ltd Week 3
http://statistics.data.gov.uk/id/local-authority/38,Oxfordshire County Council,SCS Pooled Budgets,Community Support Budget - City,Other Agency and Contracted Services,57401,Direct Payments,03/04/2012,3301498230,1014.16,A4e Management Ltd Week 3
http://statistics.data.gov.uk/id/local-authority/38,Oxfordshire County Council,SCS Pooled Budgets,Community Support Budget - Bicester,Other Agency and Contracted Services,57401,Direct Payments,03/04/2012,3301498231,541.24,A4e Management Ltd Week 3
http://statistics.data.gov.uk/id/local-authority/38,Oxfordshire County Council,SCS Pooled Budgets,Direct Payments South Team,Other Agency and Contracted Services,57401,Direct Payments,03/04/2012,3301498235,735.2,A4e Management Ltd Week 3
http://statistics.data.gov.uk/id/local-authority/38,Oxfordshire County Council,SCS Pooled Budgets,PD Comm Supp Purchasg Budget - Didcot,Other Agency and Contracted Services,57401,Direct Payments,03/04/2012,3301498237,1519,A4e Management Ltd Week 3
http://statistics.data.gov.uk/id/local-authority/38,Oxfordshire County Council,SCS Pooled Budgets,Community Support Budget - Witney,Other Agency and Contracted Services,57401,Direct Payments,03/04/2012,3301498244,836,A4e Management Ltd Week 3
http://statistics.data.gov.uk/id/local-authority/38,Oxfordshire County Council,SCS Pooled Budgets,Community Support Budget - City,Other Agency and Contracted Services,57401,Direct Payments,03/04/2012,3301498245,769.92,A4e Management Ltd Week 3
http://statistics.data.gov.uk/id/local-authority/38,Oxfordshire County Council,SCS Pooled Budgets,PD Comm Supp Purchasg Budget - Witney,Other Agency and Contracted Services,57401,Direct Payments,03/04/2012,3301498246,616,A4e Management Ltd Week 3
http://statistics.data.gov.uk/id/local-authority/38,Oxfordshire County Council,SCS Pooled Budgets,PD Comm Supp Purchasg Budget - Wantage,Other Agency and Contracted Services,57401,Direct Payments,03/04/2012,3301498248,1200,A4e Management Ltd Week 3
http://statistics.data.gov.uk/id/local-authority/38,Oxfordshire County Council,SCS Pooled Budgets,Community Support Budget - Didcot,Other Agency and Contracted Services,57401,Direct Payments,03/04/2012,3301498249,776,A4e Management Ltd Week 3
http://statistics.data.gov.uk/id/local-authority/38,Oxfordshire County Council,SCS Pooled Budgets,Community Support Budget - Henley,Other Agency and Contracted Services,57401,Direct Payments,03/04/2012,3301498250,1400,A4e Management Ltd Week 3
http://statistics.data.gov.uk/id/local-authority/38,Oxfordshire County Council,SCS Pooled Budgets,Direct Payments South Team,Other Agency and Contracted Services,57401,Direct Payments,03/04/2012,3301498251,774,A4e Management Ltd Week 3
http://statistics.data.gov.uk/id/local-authority/38,Oxfordshire County Council,SCS Pooled Budgets,Direct Payments North Team,Other Agency and Contracted Services,57401,Direct Payments,03/04/2012,3301498252,1220,A4e Management Ltd Week 3
http://statistics.data.gov.uk/id/local-authority/38,Oxfordshire County Council,SCS Pooled Budgets,Direct Payments City Team,Other Agency and Contracted Services,57401,Direct Payments,03/04/2012,3301498253,576,A4e Management Ltd Week 3
http://statistics.data.gov.uk/id/local-authority/38,Oxfordshire County Council,SCS Pooled Budgets,Direct Payments North Team,Other Agency and Contracted Services,57401,Direct Payments,03/04/2012,3301498255,4260.32,A4e Management Ltd Week 3
http://statistics.data.gov.uk/id/local-authority/38,Oxfordshire County Council,SCS Pooled Budgets,Direct Payments South Team,Other Agency and Contracted Services,57401,Direct Payments,03/04/2012,3301498256,907.2,A4e Management Ltd Week 3
http://statistics.data.gov.uk/id/local-authority/38,Oxfordshire County Council,SCS Pooled Budgets,Community Support Budget - Abingdon,Other Agency and Contracted Services,57401,Direct Payments,03/04/2012,3301498258,1063.56,A4e Management Ltd Week 3
http://statistics.data.gov.uk/id/local-authority/38,Oxfordshire County Council,SCS Pooled Budgets,Direct Payments South Team,Other Agency and Contracted Services,57401,Direct Payments,03/04/2012,3301498259,972,A4e Management Ltd Week 3
http://statistics.data.gov.uk/id/local-authority/38,Oxfordshire County Council,SCS Pooled Budgets,Direct Payments South Team,Other Agency and Contracted Services,57401,Direct Payments,03/04/2012,3301498260,1060,A4e Management Ltd Week 3
http://statistics.data.gov.uk/id/local-authority/38,Oxfordshire County Council,SCS Pooled Budgets,Direct Payments South Team,Other Agency and Contracted Services,57401,Direct Payments,03/04/2012,3301498262,907.2,A4e Management Ltd Week 3
http://statistics.data.gov.uk/id/local-authority/38,Oxfordshire County Council,SCS Pooled Budgets,Direct Payments South Team,Other Agency and Contracted Services,57401,Direct Payments,03/04/2012,3301498263,907.2,A4e Management Ltd Week 3
http://statistics.data.gov.uk/id/local-authority/38,Oxfordshire County Council,SCS Pooled Budgets,Community Support Budget - Didcot,Other Agency and Contracted Services,57401,Direct Payments,03/04/2012,3301498264,876,A4e Management Ltd Week 3
http://statistics.data.gov.uk/id/local-authority/38,Oxfordshire County Council,SCS Pooled Budgets,Direct Payments South Team,Other Agency and Contracted Services,57401,Direct Payments,03/04/2012,3301498265,907.2,A4e Management Ltd Week 3
http://statistics.data.gov.uk/id/local-authority/38,Oxfordshire County Council,SCS Pooled Budgets,PD Comm Supp Purchasg Budget - Henley,Other Agency and Contracted Services,57401,Direct Payments,03/04/2012,3301498266,796,A4e Management Ltd Week 3
http://statistics.data.gov.uk/id/local-authority/38,Oxfordshire County Council,SCS Pooled Budgets,Direct Payments South Team,Other Agency and Contracted Services,57401,Direct Payments,03/04/2012,3301498269,907.2,A4e Management Ltd Week 3
http://statistics.data.gov.uk/id/local-authority/38,Oxfordshire County Council,SCS Pooled Budgets,Community Support Budget - City,Other Agency and Contracted Services,57401,Direct Payments,03/04/2012,3301498270,561.6,A4e Management Ltd Week 3
http://statistics.data.gov.uk/id/local-authority/38,Oxfordshire County Council,SCS Pooled Budgets,Direct Payments South Team,Other Agency and Contracted Services,57401,Direct Payments,03/04/2012,3301498271,777.6,A4e Management Ltd Week 3
http://statistics.data.gov.uk/id/local-authority/38,Oxfordshire County Council,SCS Pooled Budgets,Direct Payments City Team,Other Agency and Contracted Services,57401,Direct Payments,03/04/2012,3301498272,1473.6,A4e Management Ltd Week 3
http://statistics.data.gov.uk/id/local-authority/38,Oxfordshire County Council,SCS Pooled Budgets,Community Support Budget - City,Other Agency and Contracted Services,57401,Direct Payments,03/04/2012,3301498274,3110.68,A4e Management Ltd Week 3
http://statistics.data.gov.uk/id/local-authority/38,Oxfordshire County Council,SCS Pooled Budgets,OP Pool Continuing Care Delegated Health,Other Agency and Contracted Services,57401,Direct Payments,03/04/2012,3301498274,721.32,A4e Management Ltd Week 3
http://statistics.data.gov.uk/id/local-authority/38,Oxfordshire County Council,SCS Pooled Budgets,Direct Payments City Team,Other Agency and Contracted Services,57401,Direct Payments,03/04/2012,3301498276,2259.4,A4e Management Ltd Week 3
http://statistics.data.gov.uk/id/local-authority/38,Oxfordshire County Council,SCS Pooled Budgets,Direct Payments City Team,Other Agency and Contracted Services,57401,Direct Payments,03/04/2012,3301498280,1016.4,A4e Management Ltd Week 3
http://statistics.data.gov.uk/id/local-authority/38,Oxfordshire County Council,SCS Pooled Budgets,PD Comm Supp Purchasg Budget - City,Other Agency and Contracted Services,57401,Direct Payments,03/04/2012,3301498281,1673.04,A4e Management Ltd Week 3
http://statistics.data.gov.uk/id/local-authority/38,Oxfordshire County Council,SCS Pooled Budgets,PD CS Purch Budget - Health S28a JC,Other Agency and Contracted Services,57401,Direct Payments,03/04/2012,3301498281,582.28,A4e Management Ltd Week 3
http://statistics.data.gov.uk/id/local-authority/38,Oxfordshire County Council,SCS Pooled Budgets,Direct Payments South Team,Other Agency and Contracted Services,57401,Direct Payments,03/04/2012,3301498283,1101.6,A4e Management Ltd Week 3
http://statistics.data.gov.uk/id/local-authority/38,Oxfordshire County Council,SCS Pooled Budgets,Community Support Budget - Henley,Other Agency and Contracted Services,57401,Direct Payments,03/04/2012,3301498285,850.52,A4e Management Ltd Week 3
http://statistics.data.gov.uk/id/local-authority/38,Oxfordshire County Council,SCS Pooled Budgets,Direct Payments South Team,Other Agency and Contracted Services,57401,Direct Payments,03/04/2012,3301498287,907.2,A4e Management Ltd Week 3
http://statistics.data.gov.uk/id/local-authority/38,Oxfordshire County Council,SCS Pooled Budgets,Community Support Budget - Witney,Other Agency and Contracted Services,57401,Direct Payments,03/04/2012,3301498288,928,A4e Management Ltd Week 3
http://statistics.data.gov.uk/id/local-authority/38,Oxfordshire County Council,SCS Pooled Budgets,Direct Payments South Team,Other Agency and Contracted Services,57401,Direct Payments,03/04/2012,3301498289,777.6,A4e Management Ltd Week 3
http://statistics.data.gov.uk/id/local-authority/38,Oxfordshire County Council,SCS Pooled Budgets,PD Comm Supp Purchasg Budget - Thame,Other Agency and Contracted Services,57401,Direct Payments,03/04/2012,3301498290,1176.04,A4e Management Ltd Week 3
http://statistics.data.gov.uk/id/local-authority/38,Oxfordshire County Council,SCS Pooled Budgets,PD Comm Supp Budgt - Bicester/Kidlington,Other Agency and Contracted Services,57401,Direct Payments,03/04/2012,3301498291,1069.6,A4e Management Ltd Week 3
http://statistics.data.gov.uk/id/local-authority/38,Oxfordshire County Council,SCS Pooled Budgets,Direct Payments North Team,Other Agency and Contracted Services,57401,Direct Payments,03/04/2012,3301498292,7896,A4e Management Ltd Week 3
http://statistics.data.gov.uk/id/local-authority/38,Oxfordshire County Council,SCS Pooled Budgets,PD Comm Supp Budget - Banbury,Other Agency and Contracted Services,57401,Direct Payments,03/04/2012,3301498293,1080,A4e Management Ltd Week 3
http://statistics.data.gov.uk/id/local-authority/38,Oxfordshire County Council,SCS Pooled Budgets,Community Support Budget - Bicester,Other Agency and Contracted Services,57401,Direct Payments,03/04/2012,3301498294,959.84,A4e Management Ltd Week 3
http://statistics.data.gov.uk/id/local-authority/38,Oxfordshire County Council,SCS Pooled Budgets,Community Support Budget - Banbury,Other Agency and Contracted Services,57401,Direct Payments,03/04/2012,3301498295,888,A4e Management Ltd Week 3
http://statistics.data.gov.uk/id/local-authority/38,Oxfordshire County Council,SCS Pooled Budgets,Community Support Budget - Banbury,Other Agency and Contracted Services,57401,Direct Payments,03/04/2012,3301498296,1057.6,A4e Management Ltd Week 3
http://statistics.data.gov.uk/id/local-authority/38,Oxfordshire County Council,SCS Pooled Budgets,PD Comm Supp Budget - Banbury,Other Agency and Contracted Services,57401,Direct Payments,03/04/2012,3301498298,788,A4e Management Ltd Week 3
http://statistics.data.gov.uk/id/local-authority/38,Oxfordshire County Council,SCS Pooled Budgets,PD CS Purch Budget - Health S28a JC,Other Agency and Contracted Services,57401,Direct Payments,03/04/2012,3301498300,784,A4e Management Ltd Week 3
http://statistics.data.gov.uk/id/local-authority/38,Oxfordshire County Council,SCS Pooled Budgets,PD Comm Supp Budget - Banbury,Other Agency and Contracted Services,57401,Direct Payments,03/04/2012,3301498300,5349.56,A4e Management Ltd Week 3
http://statistics.data.gov.uk/id/local-authority/38,Oxfordshire County Council,SCS Pooled Budgets,Direct Payments North Team,Other Agency and Contracted Services,57401,Direct Payments,03/04/2012,3301498307,600,A4e Management Ltd Week 3
http://statistics.data.gov.uk/id/local-authority/38,Oxfordshire County Council,SCS Pooled Budgets,Community Support Budget - Bicester,Other Agency and Contracted Services,57401,Direct Payments,03/04/2012,3301498309,2128,A4e Management Ltd Week 3
http://statistics.data.gov.uk/id/local-authority/38,Oxfordshire County Council,SCS Pooled Budgets,Community Support Budget - Banbury,Other Agency and Contracted Services,57401,Direct Payments,03/04/2012,3301498310,839.2,A4e Management Ltd Week 3
http://statistics.data.gov.uk/id/local-authority/38,Oxfordshire County Council,Education & Early Intervention,Supp Graduate Leader,Recharged Employee Costs,19970,Recharge of Internal Employee Costs,01/04/2012,3301498380,-1666,REDACTED PERSONAL DATA
http://statistics.data.gov.uk/id/local-authority/38,Oxfordshire County Council,Subscriptions,MIS Payroll Workflow,Balance Sheet General,B7101,Teachers Pension Fund Scheme,03/04/2012,3301498630,2812554.37,Teachers Pensions
http://statistics.data.gov.uk/id/local-authority/38,Oxfordshire County Council,Subscriptions,MIS Payroll Workflow,Balance Sheet General,B7102,Local Government AVC,03/04/2012,3301498632,81435.53,Prudential Assurance Co. Ltd
http://statistics.data.gov.uk/id/local-authority/38,Oxfordshire County Council,Education & Early Intervention,Zone 5 - South,Transport Related,33101,Home to School Trans,03/04/2012,3301498633,3206.5,M & M Coaches
http://statistics.data.gov.uk/id/local-authority/38,Oxfordshire County Council,Subscriptions,MIS Payroll Workflow,Balance Sheet General,B7103,Teachers AVC,03/04/2012,3301498634,49481.79,Prudential Assurance
http://statistics.data.gov.uk/id/local-authority/38,Oxfordshire County Council,Education & Early Intervention,Witney SEN Trans,Transport Related,33101,Home to School Trans,03/04/2012,3301498635,2362.36,Crescent Cars Ltd
http://statistics.data.gov.uk/id/local-authority/38,Oxfordshire County Council,Education & Early Intervention,Witney SEN Trans,Transport Related,33300,Transport (General),03/04/2012,3301498636,733.48,Crescent Cars Ltd
http://statistics.data.gov.uk/id/local-authority/38,Oxfordshire County Council,Education & Early Intervention,Oxford Sth SEN Trans,Transport Related,33101,Home to School Trans,03/04/2012,3301498637,3008.46,Crescent Cars Ltd
http://statistics.data.gov.uk/id/local-authority/38,Oxfordshire County Council,Education & Early Intervention,Oxford Sth SEN Trans,Transport Related,33300,Transport (General),03/04/2012,3301498638,672,Crescent Cars Ltd
http://statistics.data.gov.uk/id/local-authority/38,Oxfordshire County Council,Education & Early Intervention,Didcot SEN Trans,Transport Related,33101,Home to School Trans,03/04/2012,3301498639,2400.2,Toot's Taxis
http://statistics.data.gov.uk/id/local-authority/38,Oxfordshire County Council,Education & Early Intervention,Didcot SEN Trans,Transport Related,33300,Transport (General),03/04/2012,3301498640,615.12,Toot's Taxis
http://statistics.data.gov.uk/id/local-authority/38,Oxfordshire County Council,Education & Early Intervention,Abingdon SEN Trans,Transport Related,33101,Home to School Trans,03/04/2012,3301498641,2203.74,Toot's Taxis
http://statistics.data.gov.uk/id/local-authority/38,Oxfordshire County Council,Education & Early Intervention,Abingdon SEN Trans,Transport Related,33300,Transport (General),03/04/2012,3301498642,695.64,Toot's Taxis
http://statistics.data.gov.uk/id/local-authority/38,Oxfordshire County Council,Education & Early Intervention,Oxford Sth SEN Trans,Transport Related,33101,Home to School Trans,03/04/2012,3301498643,2079.44,Toot's Taxis
http://statistics.data.gov.uk/id/local-authority/38,Oxfordshire County Council,Education & Early Intervention,Oxford Sth SEN Trans,Transport Related,33300,Transport (General),03/04/2012,3301498644,990.88,Toot's Taxis
http://statistics.data.gov.uk/id/local-authority/38,Oxfordshire County Council,Education & Early Intervention,FE Special Trans,Transport Related,33101,Home to School Trans,03/04/2012,3301498645,2200,Express Travel Oxford Limited
http://statistics.data.gov.uk/id/local-authority/38,Oxfordshire County Council,Education & Early Intervention,Oxford Sth SEN Trans,Transport Related,33101,Home to School Trans,03/04/2012,3301498646,2590,Express Travel Oxford Limited
http://statistics.data.gov.uk/id/local-authority/38,Oxfordshire County Council,Education & Early Intervention,Oxford Sth SEN Trans,Transport Related,33300,Transport (General),03/04/2012,3301498647,550,Express Travel Oxford Limited
http://statistics.data.gov.uk/id/local-authority/38,Oxfordshire County Council,Education & Early Intervention,LDD After School Acc,Transport Related,33101,Home to School Trans,03/04/2012,3301498648,540,Express Travel Oxford Limited
http://statistics.data.gov.uk/id/local-authority/38,Oxfordshire County Council,Education & Early Intervention,Zone 3 - West,Transport Related,33101,Home to School Trans,03/04/2012,3301498649,797.5,Rebound Coaches Ltd
http://statistics.data.gov.uk/id/local-authority/38,Oxfordshire County Council,Education & Early Intervention,Oxford Sth SEN Trans,Transport Related,33101,Home to School Trans,03/04/2012,3301498650,1904.98,W Lynch T/A N J Sarney
http://statistics.data.gov.uk/id/local-authority/38,Oxfordshire County Council,Education & Early Intervention,Oxford Sth SEN Trans,Transport Related,33101,Home to School Trans,03/04/2012,3301498651,2065.58,W Lynch T/A N J Sarney
http://statistics.data.gov.uk/id/local-authority/38,Oxfordshire County Council,Education & Early Intervention,Zone 1 - North,Transport Related,33101,Home to School Trans,03/04/2012,3301498652,4407.92,Jeffs Coaches Limited
http://statistics.data.gov.uk/id/local-authority/38,Oxfordshire County Council,Education & Early Intervention,Zone 1 - North,Transport Related,33101,Home to School Trans,03/04/2012,3301498653,5292.84,Jeffs Coaches Limited
http://statistics.data.gov.uk/id/local-authority/38,Oxfordshire County Council,Education & Early Intervention,Zone 1 - North,Transport Related,33101,Home to School Trans,03/04/2012,3301498654,4849.95,Jeffs Coaches Limited
http://statistics.data.gov.uk/id/local-authority/38,Oxfordshire County Council,Education & Early Intervention,Zone 1 - North,Transport Related,33101,Home to School Trans,03/04/2012,3301498655,5292.84,Jeffs Coaches Limited
http://statistics.data.gov.uk/id/local-authority/38,Oxfordshire County Council,Education & Early Intervention,Zone 1 - North,Transport Related,33101,Home to School Trans,03/04/2012,3301498656,2631.89,Jeffs Coaches Limited
http://statistics.data.gov.uk/id/local-authority/38,Oxfordshire County Council,Education & Early Intervention,Free Travel,Transport Related,33101,Home to School Trans,03/04/2012,3301498657,1075,Jeffs Coaches Limited
http://statistics.data.gov.uk/id/local-authority/38,Oxfordshire County Council,Education & Early Intervention,Witney SEN Trans,Transport Related,33101,Home to School Trans,03/04/2012,3301498658,2671.46,Luxicars Ltd
http://statistics.data.gov.uk/id/local-authority/38,Oxfordshire County Council,Education & Early Intervention,Witney SEN Trans,Transport Related,33300,Transport (General),03/04/2012,3301498660,504.02,Luxicars Ltd
http://statistics.data.gov.uk/id/local-authority/38,Oxfordshire County Council,Education & Early Intervention,Witney SEN Trans,Transport Related,33101,Home to School Trans,03/04/2012,3301498661,2068,Luxicars Ltd
http://statistics.data.gov.uk/id/local-authority/38,Oxfordshire County Council,Education & Early Intervention,Witney SEN Trans,Transport Related,33300,Transport (General),03/04/2012,3301498662,506,Luxicars Ltd
http://statistics.data.gov.uk/id/local-authority/38,Oxfordshire County Council,Education & Early Intervention,FE Special Trans,Transport Related,33101,Home to School Trans,03/04/2012,3301498663,1365,Luxicars Ltd
http://statistics.data.gov.uk/id/local-authority/38,Oxfordshire County Council,SCS Pooled Budgets,LD CMPB - City Transport,Transport Related,34200,Client Journeys,03/04/2012,3301498665,1638,Luxicars Ltd
http://statistics.data.gov.uk/id/local-authority/38,Oxfordshire County Council,Education & Early Intervention,FE Special Trans,Transport Related,33101,Home to School Trans,03/04/2012,3301498666,2474.01,Luxicars Ltd
http://statistics.data.gov.uk/id/local-authority/38,Oxfordshire County Council,Education & Early Intervention,FE Special Trans,Transport Related,33300,Transport (General),03/04/2012,3301498667,471.24,Luxicars Ltd
http://statistics.data.gov.uk/id/local-authority/38,Oxfordshire County Council,SCS Pooled Budgets,LD CMPB - City Transport,Transport Related,34200,Client Journeys,03/04/2012,3301498668,519.75,Luxicars Ltd
http://statistics.data.gov.uk/id/local-authority/38,Oxfordshire County Council,Education & Early Intervention,Bicester SEN Trans,Transport Related,33101,Home to School Trans,03/04/2012,3301498670,2816.6,Luxicars Ltd
http://statistics.data.gov.uk/id/local-authority/38,Oxfordshire County Council,Education & Early Intervention,Bicester SEN Trans,Transport Related,33300,Transport (General),03/04/2012,3301498671,459,Luxicars Ltd
http://statistics.data.gov.uk/id/local-authority/38,Oxfordshire County Council,Education & Early Intervention,Abingdon SEN Trans,Transport Related,33101,Home to School Trans,03/04/2012,3301498672,2753.96,Luxicars Ltd
http://statistics.data.gov.uk/id/local-authority/38,Oxfordshire County Council,Education & Early Intervention,Abingdon SEN Trans,Transport Related,33300,Transport (General),03/04/2012,3301498673,688.6,Luxicars Ltd
http://statistics.data.gov.uk/id/local-authority/38,Oxfordshire County Council,Education & Early Intervention,Abingdon SEN Trans,Transport Related,33101,Home to School Trans,03/04/2012,3301498674,2983.64,Luxicars Ltd
http://statistics.data.gov.uk/id/local-authority/38,Oxfordshire County Council,Education & Early Intervention,Abingdon SEN Trans,Transport Related,33300,Transport (General),03/04/2012,3301498675,688.6,Luxicars Ltd
http://statistics.data.gov.uk/id/local-authority/38,Oxfordshire County Council,Education & Early Intervention,Bicester SEN Trans,Transport Related,33101,Home to School Trans,03/04/2012,3301498676,2816.6,Luxicars Ltd
http://statistics.data.gov.uk/id/local-authority/38,Oxfordshire County Council,Education & Early Intervention,Bicester SEN Trans,Transport Related,33300,Transport (General),03/04/2012,3301498677,459,Luxicars Ltd
http://statistics.data.gov.uk/id/local-authority/38,Oxfordshire County Council,Education & Early Intervention,Bicester SEN Trans,Transport Related,33101,Home to School Trans,03/04/2012,3301498678,2608,Luxicars Ltd
http://statistics.data.gov.uk/id/local-authority/38,Oxfordshire County Council,Education & Early Intervention,Bicester SEN Trans,Transport Related,33300,Transport (General),03/04/2012,3301498679,626,Luxicars Ltd
http://statistics.data.gov.uk/id/local-authority/38,Oxfordshire County Council,Education & Early Intervention,Bicester SEN Trans,Transport Related,33101,Home to School Trans,03/04/2012,3301498680,2816.6,Luxicars Ltd
http://statistics.data.gov.uk/id/local-authority/38,Oxfordshire County Council,Education & Early Intervention,Bicester SEN Trans,Transport Related,33300,Transport (General),03/04/2012,3301498681,459,Luxicars Ltd
http://statistics.data.gov.uk/id/local-authority/38,Oxfordshire County Council,Education & Early Intervention,Oxford Nth SEN Trans,Transport Related,33101,Home to School Trans,03/04/2012,3301498682,2872.98,Luxicars Ltd
http://statistics.data.gov.uk/id/local-authority/38,Oxfordshire County Council,Education & Early Intervention,Oxford Nth SEN Trans,Transport Related,33300,Transport (General),03/04/2012,3301498683,598.62,Luxicars Ltd
http://statistics.data.gov.uk/id/local-authority/38,Oxfordshire County Council,Education & Early Intervention,Oxford Sth SEN Trans,Transport Related,33101,Home to School Trans,03/04/2012,3301498684,2513.91,Luxicars Ltd
http://statistics.data.gov.uk/id/local-authority/38,Oxfordshire County Council,Education & Early Intervention,Oxford Sth SEN Trans,Transport Related,33300,Transport (General),03/04/2012,3301498685,685.65,Luxicars Ltd
http://statistics.data.gov.uk/id/local-authority/38,Oxfordshire County Council,Education & Early Intervention,Oxford Nth SEN Trans,Transport Related,33101,Home to School Trans,03/04/2012,3301498686,2753.08,Luxicars Ltd
http://statistics.data.gov.uk/id/local-authority/38,Oxfordshire County Council,Education & Early Intervention,Oxford Nth SEN Trans,Transport Related,33300,Transport (General),03/04/2012,3301498687,533.72,Luxicars Ltd
http://statistics.data.gov.uk/id/local-authority/38,Oxfordshire County Council,Education & Early Intervention,Oxford Nth SEN Trans,Transport Related,33101,Home to School Trans,03/04/2012,3301498688,3213.1,Luxicars Ltd
http://statistics.data.gov.uk/id/local-authority/38,Oxfordshire County Council,Education & Early Intervention,Oxford Nth SEN Trans,Transport Related,33300,Transport (General),03/04/2012,3301498689,688.6,Luxicars Ltd
http://statistics.data.gov.uk/id/local-authority/38,Oxfordshire County Council,Education & Early Intervention,Oxford Nth SEN Trans,Transport Related,33101,Home to School Trans,03/04/2012,3301498690,2154.68,Luxicars Ltd
http://statistics.data.gov.uk/id/local-authority/38,Oxfordshire County Council,Education & Early Intervention,Oxford Sth SEN Trans,Transport Related,33101,Home to School Trans,03/04/2012,3301498692,3452.9,Luxicars Ltd
http://statistics.data.gov.uk/id/local-authority/38,Oxfordshire County Council,Education & Early Intervention,Oxford Sth SEN Trans,Transport Related,33300,Transport (General),03/04/2012,3301498693,598.62,Luxicars Ltd
http://statistics.data.gov.uk/id/local-authority/38,Oxfordshire County Council,Education & Early Intervention,Wantage SEN Trans,Transport Related,33101,Home to School Trans,03/04/2012,3301498694,2958.12,Luxicars Ltd
http://statistics.data.gov.uk/id/local-authority/38,Oxfordshire County Council,Education & Early Intervention,Zone 2 - East,Transport Related,33101,Home to School Trans,03/04/2012,3301498695,1836.12,Luxicars Ltd
http://statistics.data.gov.uk/id/local-authority/38,Oxfordshire County Council,Education & Early Intervention,Zone 2 - East,Transport Related,33101,Home to School Trans,03/04/2012,3301498696,1376.98,Luxicars Ltd
http://statistics.data.gov.uk/id/local-authority/38,Oxfordshire County Council,Education & Early Intervention,Oxford Sth SEN Trans,Transport Related,33101,Home to School Trans,03/04/2012,3301498698,2530,Express Travel Oxford Limited
http://statistics.data.gov.uk/id/local-authority/38,Oxfordshire County Council,Education & Early Intervention,Oxford Sth SEN Trans,Transport Related,33300,Transport (General),03/04/2012,3301498699,550,Express Travel Oxford Limited
http://statistics.data.gov.uk/id/local-authority/38,Oxfordshire County Council,Education & Early Intervention,Zone 3 - West,Transport Related,33101,Home to School Trans,03/04/2012,3301498702,4026,Chris Gilbert Travel
http://statistics.data.gov.uk/id/local-authority/38,Oxfordshire County Council,Education & Early Intervention,Zone 3 - West,Transport Related,33101,Home to School Trans,03/04/2012,3301498703,3718,Chris Gilbert Travel
http://statistics.data.gov.uk/id/local-authority/38,Oxfordshire County Council,Education & Early Intervention,Zone 1 - North,Transport Related,33101,Home to School Trans,03/04/2012,3301498704,1221,Angela's Travel
http://statistics.data.gov.uk/id/local-authority/38,Oxfordshire County Council,Education & Early Intervention,Zone 2 - East,Transport Related,33101,Home to School Trans,03/04/2012,3301498705,1407,Premier Cars
http://statistics.data.gov.uk/id/local-authority/38,Oxfordshire County Council,Education & Early Intervention,Zone 2 - East,Transport Related,33101,Home to School Trans,03/04/2012,3301498706,1124.64,Premier Cars
http://statistics.data.gov.uk/id/local-authority/38,Oxfordshire County Council,Education & Early Intervention,Zone 1 - North,Transport Related,33101,Home to School Trans,03/04/2012,3301498707,2381.06,Premier Cars
http://statistics.data.gov.uk/id/local-authority/38,Oxfordshire County Council,Education & Early Intervention,Zone 2 - East,Transport Related,33101,Home to School Trans,03/04/2012,3301498708,963.82,Premier Cars
http://statistics.data.gov.uk/id/local-authority/38,Oxfordshire County Council,Education & Early Intervention,Oxford Nth SEN Trans,Transport Related,33101,Home to School Trans,03/04/2012,3301498709,3850,Plastow's Coaches
http://statistics.data.gov.uk/id/local-authority/38,Oxfordshire County Council,Education & Early Intervention,Oxford Nth SEN Trans,Transport Related,33101,Home to School Trans,03/04/2012,3301498710,1641.22,Plastow's Coaches
http://statistics.data.gov.uk/id/local-authority/38,Oxfordshire County Council,Education & Early Intervention,Oxford Sth SEN Trans,Transport Related,33101,Home to School Trans,03/04/2012,3301498711,2100,Plastow's Coaches
http://statistics.data.gov.uk/id/local-authority/38,Oxfordshire County Council,Education & Early Intervention,Oxford Sth SEN Trans,Transport Related,33300,Transport (General),03/04/2012,3301498712,458.92,C A Pittaway Transport
http://statistics.data.gov.uk/id/local-authority/38,Oxfordshire County Council,Education & Early Intervention,Oxford Sth SEN Trans,Transport Related,33101,Home to School Trans,03/04/2012,3301498713,1721.28,C A Pittaway Transport
http://statistics.data.gov.uk/id/local-authority/38,Oxfordshire County Council,Education & Early Intervention,Temporary Transport,Transport Related,33101,Home to School Trans,03/04/2012,3301498714,1430,EXPRESS TRAVEL
http://statistics.data.gov.uk/id/local-authority/38,Oxfordshire County Council,Education & Early Intervention,Zone 3 - West,Transport Related,33101,Home to School Trans,03/04/2012,3301498715,1540,EXPRESS TRAVEL
http://statistics.data.gov.uk/id/local-authority/38,Oxfordshire County Council,Education & Early Intervention,Zone 5 - South,Transport Related,33101,Home to School Trans,03/04/2012,3301498716,2024.78,Reading Wheelchair Travel Ltd
http://statistics.data.gov.uk/id/local-authority/38,Oxfordshire County Council,Education & Early Intervention,Zone 5 - South,Transport Related,33101,Home to School Trans,03/04/2012,3301498717,2352.24,Reading Wheelchair Travel Ltd
http://statistics.data.gov.uk/id/local-authority/38,Oxfordshire County Council,Education & Early Intervention,Zone 5 - South,Transport Related,33101,Home to School Trans,03/04/2012,3301498718,2295.04,Reading Wheelchair Travel Ltd
http://statistics.data.gov.uk/id/local-authority/38,Oxfordshire County Council,Education & Early Intervention,Meadowbrook Transprt,Transport Related,33101,Home to School Trans,03/04/2012,3301498720,1020,Oxon Transport Services Limited t/a
http://statistics.data.gov.uk/id/local-authority/38,Oxfordshire County Council,Education & Early Intervention,Oxford Nth SEN Trans,Transport Related,33101,Home to School Trans,03/04/2012,3301498721,1790.14,C A Pittaway Transport
http://statistics.data.gov.uk/id/local-authority/38,Oxfordshire County Council,Education & Early Intervention,Oxford Nth SEN Trans,Transport Related,33300,Transport (General),03/04/2012,3301498722,458.92,C A Pittaway Transport
http://statistics.data.gov.uk/id/local-authority/38,Oxfordshire County Council,Education & Early Intervention,Oxford Nth SEN Trans,Transport Related,33101,Home to School Trans,03/04/2012,3301498723,1790.14,Findlay School Transport
http://statistics.data.gov.uk/id/local-authority/38,Oxfordshire County Council,Education & Early Intervention,Oxford Nth SEN Trans,Transport Related,33300,Transport (General),03/04/2012,3301498724,734.36,Findlay School Transport
http://statistics.data.gov.uk/id/local-authority/38,Oxfordshire County Council,Education & Early Intervention,Oxford Sth SEN Trans,Transport Related,33101,Home to School Trans,03/04/2012,3301498725,2240.04,Findlay School Transport
http://statistics.data.gov.uk/id/local-authority/38,Oxfordshire County Council,Education & Early Intervention,Oxford Sth SEN Trans,Transport Related,33300,Transport (General),03/04/2012,3301498727,571.78,Findlay School Transport
http://statistics.data.gov.uk/id/local-authority/38,Oxfordshire County Council,Education & Early Intervention,Abingdon SEN Trans,Transport Related,33101,Home to School Trans,03/04/2012,3301498728,1560.46,Findlay School Transport
http://statistics.data.gov.uk/id/local-authority/38,Oxfordshire County Council,Education & Early Intervention,Abingdon SEN Trans,Transport Related,33300,Transport (General),03/04/2012,3301498729,688.6,Findlay School Transport
http://statistics.data.gov.uk/id/local-authority/38,Oxfordshire County Council,Education & Early Intervention,LDD After School Acc,Transport Related,33101,Home to School Trans,03/04/2012,3301498730,748,Findlay School Transport
http://statistics.data.gov.uk/id/local-authority/38,Oxfordshire County Council,Education & Early Intervention,Zone 5 - South,Transport Related,33101,Home to School Trans,03/04/2012,3301498741,-3206.5,M & M Coaches
http://statistics.data.gov.uk/id/local-authority/38,Oxfordshire County Council,Education & Early Intervention,Witney SEN Trans,Transport Related,33101,Home to School Trans,03/04/2012,3301498742,-2362.36,Crescent Cars Ltd
http://statistics.data.gov.uk/id/local-authority/38,Oxfordshire County Council,Education & Early Intervention,Witney SEN Trans,Transport Related,33300,Transport (General),03/04/2012,3301498743,-733.48,Crescent Cars Ltd
http://statistics.data.gov.uk/id/local-authority/38,Oxfordshire County Council,Education & Early Intervention,Oxford Sth SEN Trans,Transport Related,33101,Home to School Trans,03/04/2012,3301498744,-3008.46,Crescent Cars Ltd
http://statistics.data.gov.uk/id/local-authority/38,Oxfordshire County Council,Education & Early Intervention,Oxford Sth SEN Trans,Transport Related,33300,Transport (General),03/04/2012,3301498745,-672,Crescent Cars Ltd
http://statistics.data.gov.uk/id/local-authority/38,Oxfordshire County Council,Education & Early Intervention,Didcot SEN Trans,Transport Related,33101,Home to School Trans,03/04/2012,3301498746,-2400.2,Toot's Taxis
http://statistics.data.gov.uk/id/local-authority/38,Oxfordshire County Council,Education & Early Intervention,Didcot SEN Trans,Transport Related,33300,Transport (General),03/04/2012,3301498747,-615.12,Toot's Taxis
http://statistics.data.gov.uk/id/local-authority/38,Oxfordshire County Council,Education & Early Intervention,Abingdon SEN Trans,Transport Related,33101,Home to School Trans,03/04/2012,3301498748,-2203.74,Toot's Taxis
http://statistics.data.gov.uk/id/local-authority/38,Oxfordshire County Council,Education & Early Intervention,Abingdon SEN Trans,Transport Related,33300,Transport (General),03/04/2012,3301498749,-695.64,Toot's Taxis
http://statistics.data.gov.uk/id/local-authority/38,Oxfordshire County Council,Education & Early Intervention,Oxford Sth SEN Trans,Transport Related,33101,Home to School Trans,03/04/2012,3301498750,-2079.44,Toot's Taxis
http://statistics.data.gov.uk/id/local-authority/38,Oxfordshire County Council,Education & Early Intervention,Oxford Sth SEN Trans,Transport Related,33300,Transport (General),03/04/2012,3301498751,-990.88,Toot's Taxis
http://statistics.data.gov.uk/id/local-authority/38,Oxfordshire County Council,Education & Early Intervention,FE Special Trans,Transport Related,33101,Home to School Trans,03/04/2012,3301498752,-2200,Express Travel Oxford Limited
http://statistics.data.gov.uk/id/local-authority/38,Oxfordshire County Council,Education & Early Intervention,Oxford Sth SEN Trans,Transport Related,33101,Home to School Trans,03/04/2012,3301498753,-2590,Express Travel Oxford Limited
http://statistics.data.gov.uk/id/local-authority/38,Oxfordshire County Council,Education & Early Intervention,Oxford Sth SEN Trans,Transport Related,33300,Transport (General),03/04/2012,3301498754,-550,Express Travel Oxford Limited
http://statistics.data.gov.uk/id/local-authority/38,Oxfordshire County Council,Education & Early Intervention,LDD After School Acc,Transport Related,33101,Home to School Trans,03/04/2012,3301498755,-540,Express Travel Oxford Limited
http://statistics.data.gov.uk/id/local-authority/38,Oxfordshire County Council,Education & Early Intervention,Zone 3 - West,Transport Related,33101,Home to School Trans,03/04/2012,3301498756,-797.5,Rebound Coaches Ltd
http://statistics.data.gov.uk/id/local-authority/38,Oxfordshire County Council,Education & Early Intervention,Oxford Sth SEN Trans,Transport Related,33101,Home to School Trans,03/04/2012,3301498757,-1904.98,W Lynch T/A N J Sarney
http://statistics.data.gov.uk/id/local-authority/38,Oxfordshire County Council,Education & Early Intervention,Oxford Sth SEN Trans,Transport Related,33101,Home to School Trans,03/04/2012,3301498758,-2065.58,W Lynch T/A N J Sarney
http://statistics.data.gov.uk/id/local-authority/38,Oxfordshire County Council,Education & Early Intervention,Zone 1 - North,Transport Related,33101,Home to School Trans,03/04/2012,3301498759,-4407.92,Jeffs Coaches Limited
http://statistics.data.gov.uk/id/local-authority/38,Oxfordshire County Council,Education & Early Intervention,Zone 1 - North,Transport Related,33101,Home to School Trans,03/04/2012,3301498760,-5292.84,Jeffs Coaches Limited
http://statistics.data.gov.uk/id/local-authority/38,Oxfordshire County Council,Education & Early Intervention,Zone 1 - North,Transport Related,33101,Home to School Trans,03/04/2012,3301498761,-4849.95,Jeffs Coaches Limited
http://statistics.data.gov.uk/id/local-authority/38,Oxfordshire County Council,Education & Early Intervention,Zone 1 - North,Transport Related,33101,Home to School Trans,03/04/2012,3301498762,-5292.84,Jeffs Coaches Limited
http://statistics.data.gov.uk/id/local-authority/38,Oxfordshire County Council,Education & Early Intervention,Zone 1 - North,Transport Related,33101,Home to School Trans,03/04/2012,3301498763,-2631.89,Jeffs Coaches Limited
http://statistics.data.gov.uk/id/local-authority/38,Oxfordshire County Council,Education & Early Intervention,Free Travel,Transport Related,33101,Home to School Trans,03/04/2012,3301498764,-1075,Jeffs Coaches Limited
http://statistics.data.gov.uk/id/local-authority/38,Oxfordshire County Council,Education & Early Intervention,Witney SEN Trans,Transport Related,33101,Home to School Trans,03/04/2012,3301498765,-2671.46,Luxicars Ltd
http://statistics.data.gov.uk/id/local-authority/38,Oxfordshire County Council,Education & Early Intervention,Witney SEN Trans,Transport Related,33300,Transport (General),03/04/2012,3301498766,-504.02,Luxicars Ltd
http://statistics.data.gov.uk/id/local-authority/38,Oxfordshire County Council,Education & Early Intervention,Witney SEN Trans,Transport Related,33101,Home to School Trans,03/04/2012,3301498767,-2068,Luxicars Ltd
http://statistics.data.gov.uk/id/local-authority/38,Oxfordshire County Council,Education & Early Intervention,Witney SEN Trans,Transport Related,33300,Transport (General),03/04/2012,3301498768,-506,Luxicars Ltd
http://statistics.data.gov.uk/id/local-authority/38,Oxfordshire County Council,Education & Early Intervention,FE Special Trans,Transport Related,33101,Home to School Trans,03/04/2012,3301498769,-1365,Luxicars Ltd
http://statistics.data.gov.uk/id/local-authority/38,Oxfordshire County Council,SCS Pooled Budgets,LD CMPB - City Transport,Transport Related,34200,Client Journeys,03/04/2012,3301498771,-1638,Luxicars Ltd
http://statistics.data.gov.uk/id/local-authority/38,Oxfordshire County Council,Education & Early Intervention,FE Special Trans,Transport Related,33101,Home to School Trans,03/04/2012,3301498772,-2474.01,Luxicars Ltd
http://statistics.data.gov.uk/id/local-authority/38,Oxfordshire County Council,Education & Early Intervention,FE Special Trans,Transport Related,33300,Transport (General),03/04/2012,3301498773,-471.24,Luxicars Ltd
http://statistics.data.gov.uk/id/local-authority/38,Oxfordshire County Council,SCS Pooled Budgets,LD CMPB - City Transport,Transport Related,34200,Client Journeys,03/04/2012,3301498774,-519.75,Luxicars Ltd
http://statistics.data.gov.uk/id/local-authority/38,Oxfordshire County Council,Education & Early Intervention,Bicester SEN Trans,Transport Related,33101,Home to School Trans,03/04/2012,3301498776,-2816.6,Luxicars Ltd
http://statistics.data.gov.uk/id/local-authority/38,Oxfordshire County Council,Education & Early Intervention,Bicester SEN Trans,Transport Related,33300,Transport (General),03/04/2012,3301498777,-459,Luxicars Ltd
http://statistics.data.gov.uk/id/local-authority/38,Oxfordshire County Council,Education & Early Intervention,Abingdon SEN Trans,Transport Related,33101,Home to School Trans,03/04/2012,3301498778,-2753.96,Luxicars Ltd
http://statistics.data.gov.uk/id/local-authority/38,Oxfordshire County Council,Education & Early Intervention,Abingdon SEN Trans,Transport Related,33300,Transport (General),03/04/2012,3301498779,-688.6,Luxicars Ltd
http://statistics.data.gov.uk/id/local-authority/38,Oxfordshire County Council,Education & Early Intervention,Abingdon SEN Trans,Transport Related,33101,Home to School Trans,03/04/2012,3301498780,-2983.64,Luxicars Ltd
http://statistics.data.gov.uk/id/local-authority/38,Oxfordshire County Council,Education & Early Intervention,Abingdon SEN Trans,Transport Related,33300,Transport (General),03/04/2012,3301498781,-688.6,Luxicars Ltd
http://statistics.data.gov.uk/id/local-authority/38,Oxfordshire County Council,Education & Early Intervention,Bicester SEN Trans,Transport Related,33101,Home to School Trans,03/04/2012,3301498782,-2816.6,Luxicars Ltd
http://statistics.data.gov.uk/id/local-authority/38,Oxfordshire County Council,Education & Early Intervention,Bicester SEN Trans,Transport Related,33300,Transport (General),03/04/2012,3301498783,-459,Luxicars Ltd
http://statistics.data.gov.uk/id/local-authority/38,Oxfordshire County Council,Education & Early Intervention,Bicester SEN Trans,Transport Related,33101,Home to School Trans,03/04/2012,3301498784,-2608,Luxicars Ltd
http://statistics.data.gov.uk/id/local-authority/38,Oxfordshire County Council,Education & Early Intervention,Bicester SEN Trans,Transport Related,33300,Transport (General),03/04/2012,3301498785,-626,Luxicars Ltd
http://statistics.data.gov.uk/id/local-authority/38,Oxfordshire County Council,Education & Early Intervention,Bicester SEN Trans,Transport Related,33101,Home to School Trans,03/04/2012,3301498786,-2816.6,Luxicars Ltd
http://statistics.data.gov.uk/id/local-authority/38,Oxfordshire County Council,Education & Early Intervention,Bicester SEN Trans,Transport Related,33300,Transport (General),03/04/2012,3301498787,-459,Luxicars Ltd
http://statistics.data.gov.uk/id/local-authority/38,Oxfordshire County Council,Education & Early Intervention,Oxford Nth SEN Trans,Transport Related,33101,Home to School Trans,03/04/2012,3301498788,-2872.98,Luxicars Ltd
http://statistics.data.gov.uk/id/local-authority/38,Oxfordshire County Council,Education & Early Intervention,Oxford Nth SEN Trans,Transport Related,33300,Transport (General),03/04/2012,3301498789,-598.62,Luxicars Ltd
http://statistics.data.gov.uk/id/local-authority/38,Oxfordshire County Council,Education & Early Intervention,Oxford Sth SEN Trans,Transport Related,33101,Home to School Trans,03/04/2012,3301498790,-2513.91,Luxicars Ltd
http://statistics.data.gov.uk/id/local-authority/38,Oxfordshire County Council,Education & Early Intervention,Oxford Sth SEN Trans,Transport Related,33300,Transport (General),03/04/2012,3301498791,-685.65,Luxicars Ltd
http://statistics.data.gov.uk/id/local-authority/38,Oxfordshire County Council,Education & Early Intervention,Oxford Nth SEN Trans,Transport Related,33101,Home to School Trans,03/04/2012,3301498792,-2753.08,Luxicars Ltd
http://statistics.data.gov.uk/id/local-authority/38,Oxfordshire County Council,Education & Early Intervention,Oxford Nth SEN Trans,Transport Related,33300,Transport (General),03/04/2012,3301498793,-533.72,Luxicars Ltd
http://statistics.data.gov.uk/id/local-authority/38,Oxfordshire County Council,Education & Early Intervention,Oxford Nth SEN Trans,Transport Related,33101,Home to School Trans,03/04/2012,3301498794,-3213.1,Luxicars Ltd
http://statistics.data.gov.uk/id/local-authority/38,Oxfordshire County Council,Education & Early Intervention,Oxford Nth SEN Trans,Transport Related,33300,Transport (General),03/04/2012,3301498795,-688.6,Luxicars Ltd
http://statistics.data.gov.uk/id/local-authority/38,Oxfordshire County Council,Education & Early Intervention,Oxford Nth SEN Trans,Transport Related,33101,Home to School Trans,03/04/2012,3301498796,-2154.68,Luxicars Ltd
http://statistics.data.gov.uk/id/local-authority/38,Oxfordshire County Council,Education & Early Intervention,Oxford Sth SEN Trans,Transport Related,33101,Home to School Trans,03/04/2012,3301498798,-3452.9,Luxicars Ltd
http://statistics.data.gov.uk/id/local-authority/38,Oxfordshire County Council,Education & Early Intervention,Oxford Sth SEN Trans,Transport Related,33300,Transport (General),03/04/2012,3301498799,-598.62,Luxicars Ltd
http://statistics.data.gov.uk/id/local-authority/38,Oxfordshire County Council,Education & Early Intervention,Wantage SEN Trans,Transport Related,33101,Home to School Trans,03/04/2012,3301498800,-2958.12,Luxicars Ltd
http://statistics.data.gov.uk/id/local-authority/38,Oxfordshire County Council,Education & Early Intervention,Zone 2 - East,Transport Related,33101,Home to School Trans,03/04/2012,3301498801,-1836.12,Luxicars Ltd
http://statistics.data.gov.uk/id/local-authority/38,Oxfordshire County Council,Education & Early Intervention,Zone 2 - East,Transport Related,33101,Home to School Trans,03/04/2012,3301498802,-1376.98,Luxicars Ltd
http://statistics.data.gov.uk/id/local-authority/38,Oxfordshire County Council,Education & Early Intervention,Oxford Sth SEN Trans,Transport Related,33101,Home to School Trans,03/04/2012,3301498804,-2530,Express Travel Oxford Limited
http://statistics.data.gov.uk/id/local-authority/38,Oxfordshire County Council,Education & Early Intervention,Oxford Sth SEN Trans,Transport Related,33300,Transport (General),03/04/2012,3301498805,-550,Express Travel Oxford Limited
http://statistics.data.gov.uk/id/local-authority/38,Oxfordshire County Council,Education & Early Intervention,Zone 3 - West,Transport Related,33101,Home to School Trans,03/04/2012,3301498808,-4026,Chris Gilbert Travel
http://statistics.data.gov.uk/id/local-authority/38,Oxfordshire County Council,Education & Early Intervention,Zone 3 - West,Transport Related,33101,Home to School Trans,03/04/2012,3301498809,-3718,Chris Gilbert Travel
http://statistics.data.gov.uk/id/local-authority/38,Oxfordshire County Council,Education & Early Intervention,Zone 1 - North,Transport Related,33101,Home to School Trans,03/04/2012,3301498810,-1221,Angela's Travel
http://statistics.data.gov.uk/id/local-authority/38,Oxfordshire County Council,Education & Early Intervention,Zone 2 - East,Transport Related,33101,Home to School Trans,03/04/2012,3301498811,-1407,Premier Cars
http://statistics.data.gov.uk/id/local-authority/38,Oxfordshire County Council,Education & Early Intervention,Zone 2 - East,Transport Related,33101,Home to School Trans,03/04/2012,3301498812,-1124.64,Premier Cars
http://statistics.data.gov.uk/id/local-authority/38,Oxfordshire County Council,Education & Early Intervention,Zone 1 - North,Transport Related,33101,Home to School Trans,03/04/2012,3301498813,-2381.06,Premier Cars
http://statistics.data.gov.uk/id/local-authority/38,Oxfordshire County Council,Education & Early Intervention,Zone 2 - East,Transport Related,33101,Home to School Trans,03/04/2012,3301498814,-963.82,Premier Cars
http://statistics.data.gov.uk/id/local-authority/38,Oxfordshire County Council,Education & Early Intervention,Oxford Nth SEN Trans,Transport Related,33101,Home to School Trans,03/04/2012,3301498815,-3850,Plastow's Coaches
http://statistics.data.gov.uk/id/local-authority/38,Oxfordshire County Council,Education & Early Intervention,Oxford Nth SEN Trans,Transport Related,33101,Home to School Trans,03/04/2012,3301498816,-1641.22,Plastow's Coaches
http://statistics.data.gov.uk/id/local-authority/38,Oxfordshire County Council,Education & Early Intervention,Oxford Sth SEN Trans,Transport Related,33101,Home to School Trans,03/04/2012,3301498817,-2100,Plastow's Coaches
http://statistics.data.gov.uk/id/local-authority/38,Oxfordshire County Council,Education & Early Intervention,Oxford Sth SEN Trans,Transport Related,33300,Transport (General),03/04/2012,3301498818,-458.92,C A Pittaway Transport
http://statistics.data.gov.uk/id/local-authority/38,Oxfordshire County Council,Education & Early Intervention,Oxford Sth SEN Trans,Transport Related,33101,Home to School Trans,03/04/2012,3301498819,-1721.28,C A Pittaway Transport
http://statistics.data.gov.uk/id/local-authority/38,Oxfordshire County Council,Education & Early Intervention,Temporary Transport,Transport Related,33101,Home to School Trans,03/04/2012,3301498820,-1430,EXPRESS TRAVEL
http://statistics.data.gov.uk/id/local-authority/38,Oxfordshire County Council,Education & Early Intervention,Zone 3 - West,Transport Related,33101,Home to School Trans,03/04/2012,3301498821,-1540,EXPRESS TRAVEL
http://statistics.data.gov.uk/id/local-authority/38,Oxfordshire County Council,Education & Early Intervention,Zone 5 - South,Transport Related,33101,Home to School Trans,03/04/2012,3301498822,-2024.78,Reading Wheelchair Travel Ltd
http://statistics.data.gov.uk/id/local-authority/38,Oxfordshire County Council,Education & Early Intervention,Zone 5 - South,Transport Related,33101,Home to School Trans,03/04/2012,3301498823,-2352.24,Reading Wheelchair Travel Ltd
http://statistics.data.gov.uk/id/local-authority/38,Oxfordshire County Council,Education & Early Intervention,Zone 5 - South,Transport Related,33101,Home to School Trans,03/04/2012,3301498824,-2295.04,Reading Wheelchair Travel Ltd
http://statistics.data.gov.uk/id/local-authority/38,Oxfordshire County Council,Education & Early Intervention,Meadowbrook Transprt,Transport Related,33101,Home to School Trans,03/04/2012,3301498826,-1020,Oxon Transport Services Limited t/a
http://statistics.data.gov.uk/id/local-authority/38,Oxfordshire County Council,Education & Early Intervention,Oxford Nth SEN Trans,Transport Related,33101,Home to School Trans,03/04/2012,3301498827,-1790.14,C A Pittaway Transport
http://statistics.data.gov.uk/id/local-authority/38,Oxfordshire County Council,Education & Early Intervention,Oxford Nth SEN Trans,Transport Related,33300,Transport (General),03/04/2012,3301498828,-458.92,C A Pittaway Transport
http://statistics.data.gov.uk/id/local-authority/38,Oxfordshire County Council,Education & Early Intervention,Oxford Nth SEN Trans,Transport Related,33101,Home to School Trans,03/04/2012,3301498829,-1790.14,Findlay School Transport
http://statistics.data.gov.uk/id/local-authority/38,Oxfordshire County Council,Education & Early Intervention,Oxford Nth SEN Trans,Transport Related,33300,Transport (General),03/04/2012,3301498830,-734.36,Findlay School Transport
http://statistics.data.gov.uk/id/local-authority/38,Oxfordshire County Council,Education & Early Intervention,Oxford Sth SEN Trans,Transport Related,33101,Home to School Trans,03/04/2012,3301498831,-2240.04,Findlay School Transport
http://statistics.data.gov.uk/id/local-authority/38,Oxfordshire County Council,Education & Early Intervention,Oxford Sth SEN Trans,Transport Related,33300,Transport (General),03/04/2012,3301498832,-571.78,Findlay School Transport
http://statistics.data.gov.uk/id/local-authority/38,Oxfordshire County Council,Education & Early Intervention,Abingdon SEN Trans,Transport Related,33101,Home to School Trans,03/04/2012,3301498833,-1560.46,Findlay School Transport
http://statistics.data.gov.uk/id/local-authority/38,Oxfordshire County Council,Education & Early Intervention,Abingdon SEN Trans,Transport Related,33300,Transport (General),03/04/2012,3301498834,-688.6,Findlay School Transport
http://statistics.data.gov.uk/id/local-authority/38,Oxfordshire County Council,Education & Early Intervention,LDD After School Acc,Transport Related,33101,Home to School Trans,03/04/2012,3301498835,-748,Findlay School Transport
http://statistics.data.gov.uk/id/local-authority/38,Oxfordshire County Council,Education & Early Intervention,Zone 5 - South,Transport Related,33101,Home to School Trans,03/04/2012,3301498837,3206.5,M & M Coaches
http://statistics.data.gov.uk/id/local-authority/38,Oxfordshire County Council,Education & Early Intervention,Witney SEN Trans,Transport Related,33101,Home to School Trans,03/04/2012,3301498838,2362.36,Crescent Cars Ltd
http://statistics.data.gov.uk/id/local-authority/38,Oxfordshire County Council,Education & Early Intervention,Witney SEN Trans,Transport Related,33300,Transport (General),03/04/2012,3301498839,733.48,Crescent Cars Ltd
http://statistics.data.gov.uk/id/local-authority/38,Oxfordshire County Council,Education & Early Intervention,Oxford Sth SEN Trans,Transport Related,33101,Home to School Trans,03/04/2012,3301498840,3008.46,Crescent Cars Ltd
http://statistics.data.gov.uk/id/local-authority/38,Oxfordshire County Council,Education & Early Intervention,Oxford Sth SEN Trans,Transport Related,33300,Transport (General),03/04/2012,3301498841,672,Crescent Cars Ltd
http://statistics.data.gov.uk/id/local-authority/38,Oxfordshire County Council,Education & Early Intervention,Didcot SEN Trans,Transport Related,33101,Home to School Trans,03/04/2012,3301498842,2400.2,Toot's Taxis
http://statistics.data.gov.uk/id/local-authority/38,Oxfordshire County Council,Education & Early Intervention,Didcot SEN Trans,Transport Related,33300,Transport (General),03/04/2012,3301498843,615.12,Toot's Taxis
http://statistics.data.gov.uk/id/local-authority/38,Oxfordshire County Council,Education & Early Intervention,Abingdon SEN Trans,Transport Related,33101,Home to School Trans,03/04/2012,3301498844,2203.74,Toot's Taxis
http://statistics.data.gov.uk/id/local-authority/38,Oxfordshire County Council,Education & Early Intervention,Abingdon SEN Trans,Transport Related,33300,Transport (General),03/04/2012,3301498845,695.64,Toot's Taxis
http://statistics.data.gov.uk/id/local-authority/38,Oxfordshire County Council,Education & Early Intervention,Oxford Sth SEN Trans,Transport Related,33101,Home to School Trans,03/04/2012,3301498846,2079.44,Toot's Taxis
http://statistics.data.gov.uk/id/local-authority/38,Oxfordshire County Council,Education & Early Intervention,Oxford Sth SEN Trans,Transport Related,33300,Transport (General),03/04/2012,3301498847,990.88,Toot's Taxis
http://statistics.data.gov.uk/id/local-authority/38,Oxfordshire County Council,Education & Early Intervention,FE Special Trans,Transport Related,33101,Home to School Trans,03/04/2012,3301498848,2200,Express Travel Oxford Limited
http://statistics.data.gov.uk/id/local-authority/38,Oxfordshire County Council,Education & Early Intervention,Oxford Sth SEN Trans,Transport Related,33101,Home to School Trans,03/04/2012,3301498849,2590,Express Travel Oxford Limited
http://statistics.data.gov.uk/id/local-authority/38,Oxfordshire County Council,Education & Early Intervention,Oxford Sth SEN Trans,Transport Related,33300,Transport (General),03/04/2012,3301498850,550,Express Travel Oxford Limited
http://statistics.data.gov.uk/id/local-authority/38,Oxfordshire County Council,Education & Early Intervention,LDD After School Acc,Transport Related,33101,Home to School Trans,03/04/2012,3301498851,540,Express Travel Oxford Limited
http://statistics.data.gov.uk/id/local-authority/38,Oxfordshire County Council,Education & Early Intervention,Zone 3 - West,Transport Related,33101,Home to School Trans,03/04/2012,3301498852,797.5,Rebound Coaches Ltd
http://statistics.data.gov.uk/id/local-authority/38,Oxfordshire County Council,Education & Early Intervention,Oxford Sth SEN Trans,Transport Related,33101,Home to School Trans,03/04/2012,3301498853,1904.98,W Lynch T/A N J Sarney
http://statistics.data.gov.uk/id/local-authority/38,Oxfordshire County Council,Education & Early Intervention,Oxford Sth SEN Trans,Transport Related,33101,Home to School Trans,03/04/2012,3301498854,2065.58,W Lynch T/A N J Sarney
http://statistics.data.gov.uk/id/local-authority/38,Oxfordshire County Council,Education & Early Intervention,Zone 2 - East,Transport Related,33101,Home to School Trans,03/04/2012,3301498855,795.52,Jeffs Coaches Limited
http://statistics.data.gov.uk/id/local-authority/38,Oxfordshire County Council,Education & Early Intervention,Zone 1 - North,Transport Related,33101,Home to School Trans,03/04/2012,3301498856,4407.92,Jeffs Coaches Limited
http://statistics.data.gov.uk/id/local-authority/38,Oxfordshire County Council,Education & Early Intervention,Zone 1 - North,Transport Related,33101,Home to School Trans,03/04/2012,3301498857,5292.84,Jeffs Coaches Limited
http://statistics.data.gov.uk/id/local-authority/38,Oxfordshire County Council,Education & Early Intervention,Zone 1 - North,Transport Related,33101,Home to School Trans,03/04/2012,3301498858,4849.95,Jeffs Coaches Limited
http://statistics.data.gov.uk/id/local-authority/38,Oxfordshire County Council,Education & Early Intervention,Zone 1 - North,Transport Related,33101,Home to School Trans,03/04/2012,3301498859,5292.84,Jeffs Coaches Limited
http://statistics.data.gov.uk/id/local-authority/38,Oxfordshire County Council,Education & Early Intervention,Zone 1 - North,Transport Related,33101,Home to School Trans,03/04/2012,3301498860,2631.89,Jeffs Coaches Limited
http://statistics.data.gov.uk/id/local-authority/38,Oxfordshire County Council,Education & Early Intervention,Free Travel,Transport Related,33101,Home to School Trans,03/04/2012,3301498861,1075,Jeffs Coaches Limited
http://statistics.data.gov.uk/id/local-authority/38,Oxfordshire County Council,Education & Early Intervention,Witney SEN Trans,Transport Related,33101,Home to School Trans,03/04/2012,3301498862,2671.46,Luxicars Ltd
http://statistics.data.gov.uk/id/local-authority/38,Oxfordshire County Council,Education & Early Intervention,Witney SEN Trans,Transport Related,33300,Transport (General),03/04/2012,3301498863,504.02,Luxicars Ltd
http://statistics.data.gov.uk/id/local-authority/38,Oxfordshire County Council,Education & Early Intervention,Witney SEN Trans,Transport Related,33101,Home to School Trans,03/04/2012,3301498864,2068,Luxicars Ltd
http://statistics.data.gov.uk/id/local-authority/38,Oxfordshire County Council,Education & Early Intervention,Witney SEN Trans,Transport Related,33300,Transport (General),03/04/2012,3301498865,506,Luxicars Ltd
http://statistics.data.gov.uk/id/local-authority/38,Oxfordshire County Council,Education & Early Intervention,FE Special Trans,Transport Related,33101,Home to School Trans,03/04/2012,3301498866,1365,Luxicars Ltd
http://statistics.data.gov.uk/id/local-authority/38,Oxfordshire County Council,SCS Pooled Budgets,LD CMPB - City Transport,Transport Related,34200,Client Journeys,03/04/2012,3301498868,1638,Luxicars Ltd
http://statistics.data.gov.uk/id/local-authority/38,Oxfordshire County Council,Education & Early Intervention,FE Special Trans,Transport Related,33101,Home to School Trans,03/04/2012,3301498869,2474.01,Luxicars Ltd
http://statistics.data.gov.uk/id/local-authority/38,Oxfordshire County Council,Education & Early Intervention,FE Special Trans,Transport Related,33300,Transport (General),03/04/2012,3301498870,471.24,Luxicars Ltd
http://statistics.data.gov.uk/id/local-authority/38,Oxfordshire County Council,SCS Pooled Budgets,LD CMPB - City Transport,Transport Related,34200,Client Journeys,03/04/2012,3301498871,519.75,Luxicars Ltd
http://statistics.data.gov.uk/id/local-authority/38,Oxfordshire County Council,Education & Early Intervention,Bicester SEN Trans,Transport Related,33101,Home to School Trans,03/04/2012,3301498873,2816.6,Luxicars Ltd
http://statistics.data.gov.uk/id/local-authority/38,Oxfordshire County Council,Education & Early Intervention,Bicester SEN Trans,Transport Related,33300,Transport (General),03/04/2012,3301498874,459,Luxicars Ltd
http://statistics.data.gov.uk/id/local-authority/38,Oxfordshire County Council,Education & Early Intervention,Abingdon SEN Trans,Transport Related,33101,Home to School Trans,03/04/2012,3301498875,2753.96,Luxicars Ltd
http://statistics.data.gov.uk/id/local-authority/38,Oxfordshire County Council,Education & Early Intervention,Abingdon SEN Trans,Transport Related,33300,Transport (General),03/04/2012,3301498876,688.6,Luxicars Ltd
http://statistics.data.gov.uk/id/local-authority/38,Oxfordshire County Council,Education & Early Intervention,Abingdon SEN Trans,Transport Related,33101,Home to School Trans,03/04/2012,3301498877,2983.64,Luxicars Ltd
http://statistics.data.gov.uk/id/local-authority/38,Oxfordshire County Council,Education & Early Intervention,Abingdon SEN Trans,Transport Related,33300,Transport (General),03/04/2012,3301498878,688.6,Luxicars Ltd
http://statistics.data.gov.uk/id/local-authority/38,Oxfordshire County Council,Education & Early Intervention,Bicester SEN Trans,Transport Related,33101,Home to School Trans,03/04/2012,3301498879,2816.6,Luxicars Ltd
http://statistics.data.gov.uk/id/local-authority/38,Oxfordshire County Council,Education & Early Intervention,Bicester SEN Trans,Transport Related,33300,Transport (General),03/04/2012,3301498880,459,Luxicars Ltd
http://statistics.data.gov.uk/id/local-authority/38,Oxfordshire County Council,Education & Early Intervention,Bicester SEN Trans,Transport Related,33101,Home to School Trans,03/04/2012,3301498881,2608,Luxicars Ltd
http://statistics.data.gov.uk/id/local-authority/38,Oxfordshire County Council,Education & Early Intervention,Bicester SEN Trans,Transport Related,33300,Transport (General),03/04/2012,3301498882,626,Luxicars Ltd
http://statistics.data.gov.uk/id/local-authority/38,Oxfordshire County Council,Education & Early Intervention,Bicester SEN Trans,Transport Related,33101,Home to School Trans,03/04/2012,3301498883,2816.6,Luxicars Ltd
http://statistics.data.gov.uk/id/local-authority/38,Oxfordshire County Council,Education & Early Intervention,Bicester SEN Trans,Transport Related,33300,Transport (General),03/04/2012,3301498884,459,Luxicars Ltd
http://statistics.data.gov.uk/id/local-authority/38,Oxfordshire County Council,Education & Early Intervention,Oxford Nth SEN Trans,Transport Related,33101,Home to School Trans,03/04/2012,3301498885,2872.98,Luxicars Ltd
http://statistics.data.gov.uk/id/local-authority/38,Oxfordshire County Council,Education & Early Intervention,Oxford Nth SEN Trans,Transport Related,33300,Transport (General),03/04/2012,3301498886,598.62,Luxicars Ltd
http://statistics.data.gov.uk/id/local-authority/38,Oxfordshire County Council,Education & Early Intervention,Oxford Sth SEN Trans,Transport Related,33101,Home to School Trans,03/04/2012,3301498887,2513.91,Luxicars Ltd
http://statistics.data.gov.uk/id/local-authority/38,Oxfordshire County Council,Education & Early Intervention,Oxford Sth SEN Trans,Transport Related,33300,Transport (General),03/04/2012,3301498888,685.65,Luxicars Ltd
http://statistics.data.gov.uk/id/local-authority/38,Oxfordshire County Council,Education & Early Intervention,Oxford Nth SEN Trans,Transport Related,33101,Home to School Trans,03/04/2012,3301498889,2753.08,Luxicars Ltd
http://statistics.data.gov.uk/id/local-authority/38,Oxfordshire County Council,Education & Early Intervention,Oxford Nth SEN Trans,Transport Related,33300,Transport (General),03/04/2012,3301498890,533.72,Luxicars Ltd
http://statistics.data.gov.uk/id/local-authority/38,Oxfordshire County Council,Education & Early Intervention,Oxford Nth SEN Trans,Transport Related,33101,Home to School Trans,03/04/2012,3301498891,3213.1,Luxicars Ltd
http://statistics.data.gov.uk/id/local-authority/38,Oxfordshire County Council,Education & Early Intervention,Oxford Nth SEN Trans,Transport Related,33300,Transport (General),03/04/2012,3301498892,688.6,Luxicars Ltd
http://statistics.data.gov.uk/id/local-authority/38,Oxfordshire County Council,Education & Early Intervention,Oxford Nth SEN Trans,Transport Related,33101,Home to School Trans,03/04/2012,3301498893,2154.68,Luxicars Ltd
http://statistics.data.gov.uk/id/local-authority/38,Oxfordshire County Council,Education & Early Intervention,Oxford Sth SEN Trans,Transport Related,33101,Home to School Trans,03/04/2012,3301498895,3452.9,Luxicars Ltd
http://statistics.data.gov.uk/id/local-authority/38,Oxfordshire County Council,Education & Early Intervention,Oxford Sth SEN Trans,Transport Related,33300,Transport (General),03/04/2012,3301498896,598.62,Luxicars Ltd
http://statistics.data.gov.uk/id/local-authority/38,Oxfordshire County Council,Education & Early Intervention,Wantage SEN Trans,Transport Related,33101,Home to School Trans,03/04/2012,3301498897,2958.12,Luxicars Ltd
http://statistics.data.gov.uk/id/local-authority/38,Oxfordshire County Council,Education & Early Intervention,Zone 2 - East,Transport Related,33101,Home to School Trans,03/04/2012,3301498898,1836.12,Luxicars Ltd
http://statistics.data.gov.uk/id/local-authority/38,Oxfordshire County Council,Education & Early Intervention,Zone 2 - East,Transport Related,33101,Home to School Trans,03/04/2012,3301498899,1376.98,Luxicars Ltd
http://statistics.data.gov.uk/id/local-authority/38,Oxfordshire County Council,Education & Early Intervention,Oxford Sth SEN Trans,Transport Related,33101,Home to School Trans,03/04/2012,3301498901,2530,Express Travel Oxford Limited
http://statistics.data.gov.uk/id/local-authority/38,Oxfordshire County Council,Education & Early Intervention,Oxford Sth SEN Trans,Transport Related,33300,Transport (General),03/04/2012,3301498902,550,Express Travel Oxford Limited
http://statistics.data.gov.uk/id/local-authority/38,Oxfordshire County Council,Education & Early Intervention,Zone 3 - West,Transport Related,33101,Home to School Trans,03/04/2012,3301498905,4026,Chris Gilbert Travel
http://statistics.data.gov.uk/id/local-authority/38,Oxfordshire County Council,Education & Early Intervention,Zone 3 - West,Transport Related,33101,Home to School Trans,03/04/2012,3301498906,3718,Chris Gilbert Travel
http://statistics.data.gov.uk/id/local-authority/38,Oxfordshire County Council,Education & Early Intervention,Zone 1 - North,Transport Related,33101,Home to School Trans,03/04/2012,3301498907,1221,Angela's Travel
http://statistics.data.gov.uk/id/local-authority/38,Oxfordshire County Council,Education & Early Intervention,Zone 2 - East,Transport Related,33101,Home to School Trans,03/04/2012,3301498908,1407,Premier Cars
http://statistics.data.gov.uk/id/local-authority/38,Oxfordshire County Council,Education & Early Intervention,Zone 2 - East,Transport Related,33101,Home to School Trans,03/04/2012,3301498909,1124.64,Premier Cars
http://statistics.data.gov.uk/id/local-authority/38,Oxfordshire County Council,Education & Early Intervention,Zone 1 - North,Transport Related,33101,Home to School Trans,03/04/2012,3301498910,2381.06,Premier Cars
http://statistics.data.gov.uk/id/local-authority/38,Oxfordshire County Council,Education & Early Intervention,Zone 2 - East,Transport Related,33101,Home to School Trans,03/04/2012,3301498911,963.82,Premier Cars
http://statistics.data.gov.uk/id/local-authority/38,Oxfordshire County Council,Education & Early Intervention,Oxford Nth SEN Trans,Transport Related,33101,Home to School Trans,03/04/2012,3301498912,3850,Plastow's Coaches
http://statistics.data.gov.uk/id/local-authority/38,Oxfordshire County Council,Education & Early Intervention,Oxford Nth SEN Trans,Transport Related,33101,Home to School Trans,03/04/2012,3301498913,1641.22,Plastow's Coaches
http://statistics.data.gov.uk/id/local-authority/38,Oxfordshire County Council,Education & Early Intervention,Oxford Sth SEN Trans,Transport Related,33101,Home to School Trans,03/04/2012,3301498914,2100,Plastow's Coaches
http://statistics.data.gov.uk/id/local-authority/38,Oxfordshire County Council,Education & Early Intervention,Oxford Sth SEN Trans,Transport Related,33300,Transport (General),03/04/2012,3301498915,458.92,C A Pittaway Transport
http://statistics.data.gov.uk/id/local-authority/38,Oxfordshire County Council,Education & Early Intervention,Oxford Sth SEN Trans,Transport Related,33101,Home to School Trans,03/04/2012,3301498916,1721.28,C A Pittaway Transport
http://statistics.data.gov.uk/id/local-authority/38,Oxfordshire County Council,Education & Early Intervention,Temporary Transport,Transport Related,33101,Home to School Trans,03/04/2012,3301498917,1430,EXPRESS TRAVEL
http://statistics.data.gov.uk/id/local-authority/38,Oxfordshire County Council,Education & Early Intervention,Zone 3 - West,Transport Related,33101,Home to School Trans,03/04/2012,3301498918,1540,EXPRESS TRAVEL
http://statistics.data.gov.uk/id/local-authority/38,Oxfordshire County Council,Education & Early Intervention,Zone 5 - South,Transport Related,33101,Home to School Trans,03/04/2012,3301498919,2024.78,Reading Wheelchair Travel Ltd
http://statistics.data.gov.uk/id/local-authority/38,Oxfordshire County Council,Education & Early Intervention,Zone 5 - South,Transport Related,33101,Home to School Trans,03/04/2012,3301498920,2352.24,Reading Wheelchair Travel Ltd
http://statistics.data.gov.uk/id/local-authority/38,Oxfordshire County Council,Education & Early Intervention,Zone 5 - South,Transport Related,33101,Home to School Trans,03/04/2012,3301498921,2295.04,Reading Wheelchair Travel Ltd
http://statistics.data.gov.uk/id/local-authority/38,Oxfordshire County Council,Education & Early Intervention,Meadowbrook Transprt,Transport Related,33101,Home to School Trans,03/04/2012,3301498923,1020,Oxon Transport Services Limited t/a
http://statistics.data.gov.uk/id/local-authority/38,Oxfordshire County Council,Education & Early Intervention,Oxford Nth SEN Trans,Transport Related,33101,Home to School Trans,03/04/2012,3301498924,1790.14,C A Pittaway Transport
http://statistics.data.gov.uk/id/local-authority/38,Oxfordshire County Council,Education & Early Intervention,Oxford Nth SEN Trans,Transport Related,33300,Transport (General),03/04/2012,3301498925,458.92,C A Pittaway Transport
http://statistics.data.gov.uk/id/local-authority/38,Oxfordshire County Council,Education & Early Intervention,Oxford Nth SEN Trans,Transport Related,33101,Home to School Trans,03/04/2012,3301498926,1790.14,Findlay School Transport
http://statistics.data.gov.uk/id/local-authority/38,Oxfordshire County Council,Education & Early Intervention,Oxford Nth SEN Trans,Transport Related,33300,Transport (General),03/04/2012,3301498927,734.36,Findlay School Transport
http://statistics.data.gov.uk/id/local-authority/38,Oxfordshire County Council,Education & Early Intervention,Oxford Sth SEN Trans,Transport Related,33101,Home to School Trans,03/04/2012,3301498928,2240.04,Findlay School Transport
http://statistics.data.gov.uk/id/local-authority/38,Oxfordshire County Council,Education & Early Intervention,Oxford Sth SEN Trans,Transport Related,33300,Transport (General),03/04/2012,3301498929,571.78,Findlay School Transport
http://statistics.data.gov.uk/id/local-authority/38,Oxfordshire County Council,Education & Early Intervention,Abingdon SEN Trans,Transport Related,33101,Home to School Trans,03/04/2012,3301498930,1560.46,Findlay School Transport
http://statistics.data.gov.uk/id/local-authority/38,Oxfordshire County Council,Education & Early Intervention,Abingdon SEN Trans,Transport Related,33300,Transport (General),03/04/2012,3301498931,688.6,Findlay School Transport
http://statistics.data.gov.uk/id/local-authority/38,Oxfordshire County Council,Education & Early Intervention,LDD After School Acc,Transport Related,33101,Home to School Trans,03/04/2012,3301498932,748,Findlay School Transport
http://statistics.data.gov.uk/id/local-authority/38,Oxfordshire County Council,SCS Pooled Budgets,OP Pool Continuing Care Home Support,Other Agency and Contracted Services,57302,Home Support (Ext) Continuing Care,03/04/2012,3301498935,5017.6,Day and Nightcare Assistance
http://statistics.data.gov.uk/id/local-authority/38,Oxfordshire County Council,SCS Pooled Budgets,PD Pool Continuing Care Home Support,Other Agency and Contracted Services,57302,Home Support (Ext) Continuing Care,03/04/2012,3301498936,2208,Day and Nightcare Assistance
http://statistics.data.gov.uk/id/local-authority/38,Oxfordshire County Council,SCS Pooled Budgets,OP Pool Fast Track,Other Agency and Contracted Services,57304,Home Support (Ext) Palliative Care,03/04/2012,3301498937,4202.06,Day and Nightcare Assistance
http://statistics.data.gov.uk/id/local-authority/38,Oxfordshire County Council,SCS Other Cost Centres,Home Support trading account for PBs,Other Agency and Contracted Services,57300,Home Support (Ext) OS&HCD,03/04/2012,3301498938,9905.87,1 to 1 Care
http://statistics.data.gov.uk/id/local-authority/38,Oxfordshire County Council,SCS Other Cost Centres,Home Support trading account for PBs,Other Agency and Contracted Services,57300,Home Support (Ext) OS&HCD,03/04/2012,3301498939,14870.82,Nestor Primecare Services Ltd.
http://statistics.data.gov.uk/id/local-authority/38,Oxfordshire County Council,SCS Other Cost Centres,Home Support trading account for PBs,Other Agency and Contracted Services,57300,Home Support (Ext) OS&HCD,03/04/2012,3301498940,18714.27,Allied Healthcare Group Ltd
http://statistics.data.gov.uk/id/local-authority/38,Oxfordshire County Council,SCS Other Cost Centres,Home Support trading account for PBs,Other Agency and Contracted Services,57300,Home Support (Ext) OS&HCD,03/04/2012,3301498941,24088.82,Amber Healthcare Personnel Ltd
http://statistics.data.gov.uk/id/local-authority/38,Oxfordshire County Council,SCS Other Cost Centres,Home Support trading account for PBs,Other Agency and Contracted Services,57300,Home Support (Ext) OS&HCD,03/04/2012,3301498942,19519.36,Home Choice Care
http://statistics.data.gov.uk/id/local-authority/38,Oxfordshire County Council,SCS Other Cost Centres,Home Support trading account for PBs,Other Agency and Contracted Services,57300,Home Support (Ext) OS&HCD,03/04/2012,3301498943,51110.42,Bright Yellow Group Plc
http://statistics.data.gov.uk/id/local-authority/38,Oxfordshire County Council,SCS Other Cost Centres,Home Support trading account for PBs,Other Agency and Contracted Services,57300,Home Support (Ext) OS&HCD,03/04/2012,3301498944,19337.1,Care UK Homecare Ltd
http://statistics.data.gov.uk/id/local-authority/38,Oxfordshire County Council,SCS Other Cost Centres,Home Support trading account for PBs,Other Agency and Contracted Services,57300,Home Support (Ext) OS&HCD,03/04/2012,3301498945,22096.51,Caretree Ltd
http://statistics.data.gov.uk/id/local-authority/38,Oxfordshire County Council,SCS Other Cost Centres,Home Support trading account for PBs,Other Agency and Contracted Services,57300,Home Support (Ext) OS&HCD,03/04/2012,3301498946,6021.74,Carewatch Care Services
http://statistics.data.gov.uk/id/local-authority/38,Oxfordshire County Council,SCS Other Cost Centres,Home Support trading account for PBs,Other Agency and Contracted Services,57300,Home Support (Ext) OS&HCD,03/04/2012,3301498947,20784.07,Charterville Care At Home Ltd
http://statistics.data.gov.uk/id/local-authority/38,Oxfordshire County Council,SCS Other Cost Centres,Home Support trading account for PBs,Other Agency and Contracted Services,57300,Home Support (Ext) OS&HCD,03/04/2012,3301498948,18822.93,Cherwell Care Services
http://statistics.data.gov.uk/id/local-authority/38,Oxfordshire County Council,SCS Other Cost Centres,Home Support trading account for PBs,Other Agency and Contracted Services,57300,Home Support (Ext) OS&HCD,03/04/2012,3301498949,43266.87,Oxfordshire Crossroads
http://statistics.data.gov.uk/id/local-authority/38,Oxfordshire County Council,SCS Other Cost Centres,Home Support trading account for PBs,Other Agency and Contracted Services,57300,Home Support (Ext) OS&HCD,03/04/2012,3301498950,40915.47,Day & Night Care Assistance
http://statistics.data.gov.uk/id/local-authority/38,Oxfordshire County Council,SCS Other Cost Centres,Home Support trading account for PBs,Other Agency and Contracted Services,57300,Home Support (Ext) OS&HCD,03/04/2012,3301498951,23007.41,Delight Care Ltd
http://statistics.data.gov.uk/id/local-authority/38,Oxfordshire County Council,SCS Other Cost Centres,Home Support trading account for PBs,Other Agency and Contracted Services,57300,Home Support (Ext) OS&HCD,03/04/2012,3301498952,3036.83,Elite Care Agency
http://statistics.data.gov.uk/id/local-authority/38,Oxfordshire County Council,SCS Other Cost Centres,Home Support trading account for PBs,Other Agency and Contracted Services,57300,Home Support (Ext) OS&HCD,03/04/2012,3301498953,6285.5,Goldsmith Personnel Ltd
http://statistics.data.gov.uk/id/local-authority/38,Oxfordshire County Council,SCS Other Cost Centres,Home Support trading account for PBs,Other Agency and Contracted Services,57300,Home Support (Ext) OS&HCD,03/04/2012,3301498954,19828.63,Greigcare Home Service
http://statistics.data.gov.uk/id/local-authority/38,Oxfordshire County Council,SCS Other Cost Centres,Home Support trading account for PBs,Other Agency and Contracted Services,57300,Home Support (Ext) OS&HCD,03/04/2012,3301498955,47420.59,Heart to Heart Care Ltd
http://statistics.data.gov.uk/id/local-authority/38,Oxfordshire County Council,SCS Other Cost Centres,Home Support trading account for PBs,Other Agency and Contracted Services,57300,Home Support (Ext) OS&HCD,03/04/2012,3301498956,19398.5,HOME HELPERS CARE LTD
http://statistics.data.gov.uk/id/local-authority/38,Oxfordshire County Council,SCS Other Cost Centres,Home Support trading account for PBs,Other Agency and Contracted Services,57300,Home Support (Ext) OS&HCD,03/04/2012,3301498957,13227.17,Kcare Nursing Agency
http://statistics.data.gov.uk/id/local-authority/38,Oxfordshire County Council,SCS Other Cost Centres,Home Support trading account for PBs,Other Agency and Contracted Services,57300,Home Support (Ext) OS&HCD,03/04/2012,3301498958,19886.79,Leonard Cheshire FOR PAYMENTS ONLY
http://statistics.data.gov.uk/id/local-authority/38,Oxfordshire County Council,SCS Other Cost Centres,Home Support trading account for PBs,Other Agency and Contracted Services,57300,Home Support (Ext) OS&HCD,03/04/2012,3301498959,17031.74,Mears
http://statistics.data.gov.uk/id/local-authority/38,Oxfordshire County Council,SCS Other Cost Centres,Home Support trading account for PBs,Other Agency and Contracted Services,57300,Home Support (Ext) OS&HCD,03/04/2012,3301498960,92572.37,Oxford Private Care
http://statistics.data.gov.uk/id/local-authority/38,Oxfordshire County Council,SCS Other Cost Centres,Home Support trading account for PBs,Other Agency and Contracted Services,57300,Home Support (Ext) OS&HCD,03/04/2012,3301498961,38183.52,PLL CARE
http://statistics.data.gov.uk/id/local-authority/38,Oxfordshire County Council,SCS Other Cost Centres,Home Support trading account for PBs,Other Agency and Contracted Services,57300,Home Support (Ext) OS&HCD,03/04/2012,3301498962,23688.78,Premier Personal Care
http://statistics.data.gov.uk/id/local-authority/38,Oxfordshire County Council,SCS Other Cost Centres,Home Support trading account for PBs,Other Agency and Contracted Services,57300,Home Support (Ext) OS&HCD,03/04/2012,3301498963,26507.14,Primary Healthcare
http://statistics.data.gov.uk/id/local-authority/38,Oxfordshire County Council,SCS Other Cost Centres,Home Support trading account for PBs,Other Agency and Contracted Services,57300,Home Support (Ext) OS&HCD,03/04/2012,3301498964,9987,Radis Community Care
http://statistics.data.gov.uk/id/local-authority/38,Oxfordshire County Council,SCS Other Cost Centres,Home Support trading account for PBs,Other Agency and Contracted Services,57300,Home Support (Ext) OS&HCD,03/04/2012,3301498965,13210.97,Risborough Carers Ltd
http://statistics.data.gov.uk/id/local-authority/38,Oxfordshire County Council,SCS Other Cost Centres,Home Support trading account for PBs,Other Agency and Contracted Services,57300,Home Support (Ext) OS&HCD,03/04/2012,3301498966,35978.78,Secure Care (Oxford) Ltd
http://statistics.data.gov.uk/id/local-authority/38,Oxfordshire County Council,SCS Other Cost Centres,Home Support trading account for PBs,Other Agency and Contracted Services,57300,Home Support (Ext) OS&HCD,03/04/2012,3301498967,28529.84,Sevacare (UK) Ltd
http://statistics.data.gov.uk/id/local-authority/38,Oxfordshire County Council,SCS Other Cost Centres,Home Support trading account for PBs,Other Agency and Contracted Services,57300,Home Support (Ext) OS&HCD,03/04/2012,3301498968,9468.34,Sevacare (UK) Ltd
http://statistics.data.gov.uk/id/local-authority/38,Oxfordshire County Council,SCS Other Cost Centres,Home Support trading account for PBs,Other Agency and Contracted Services,57300,Home Support (Ext) OS&HCD,03/04/2012,3301498969,18142.37,Total Homecare Solutions Ltd
http://statistics.data.gov.uk/id/local-authority/38,Oxfordshire County Council,Education & Early Intervention,Zone 5 - South,Transport Related,33101,Home to School Trans,03/04/2012,3301498972,-3206.5,M & M Coaches
http://statistics.data.gov.uk/id/local-authority/38,Oxfordshire County Council,Education & Early Intervention,Witney SEN Trans,Transport Related,33101,Home to School Trans,03/04/2012,3301498973,-2362.36,Crescent Cars Ltd
http://statistics.data.gov.uk/id/local-authority/38,Oxfordshire County Council,Education & Early Intervention,Witney SEN Trans,Transport Related,33300,Transport (General),03/04/2012,3301498974,-733.48,Crescent Cars Ltd
http://statistics.data.gov.uk/id/local-authority/38,Oxfordshire County Council,Education & Early Intervention,Oxford Sth SEN Trans,Transport Related,33101,Home to School Trans,03/04/2012,3301498975,-3008.46,Crescent Cars Ltd
http://statistics.data.gov.uk/id/local-authority/38,Oxfordshire County Council,Education & Early Intervention,Oxford Sth SEN Trans,Transport Related,33300,Transport (General),03/04/2012,3301498976,-672,Crescent Cars Ltd
http://statistics.data.gov.uk/id/local-authority/38,Oxfordshire County Council,Education & Early Intervention,Didcot SEN Trans,Transport Related,33101,Home to School Trans,03/04/2012,3301498977,-2400.2,Toot's Taxis
http://statistics.data.gov.uk/id/local-authority/38,Oxfordshire County Council,Education & Early Intervention,Didcot SEN Trans,Transport Related,33300,Transport (General),03/04/2012,3301498978,-615.12,Toot's Taxis
http://statistics.data.gov.uk/id/local-authority/38,Oxfordshire County Council,Education & Early Intervention,Abingdon SEN Trans,Transport Related,33101,Home to School Trans,03/04/2012,3301498979,-2203.74,Toot's Taxis
http://statistics.data.gov.uk/id/local-authority/38,Oxfordshire County Council,Education & Early Intervention,Abingdon SEN Trans,Transport Related,33300,Transport (General),03/04/2012,3301498980,-695.64,Toot's Taxis
http://statistics.data.gov.uk/id/local-authority/38,Oxfordshire County Council,Education & Early Intervention,Oxford Sth SEN Trans,Transport Related,33101,Home to School Trans,03/04/2012,3301498981,-2079.44,Toot's Taxis
http://statistics.data.gov.uk/id/local-authority/38,Oxfordshire County Council,Education & Early Intervention,Oxford Sth SEN Trans,Transport Related,33300,Transport (General),03/04/2012,3301498982,-990.88,Toot's Taxis
http://statistics.data.gov.uk/id/local-authority/38,Oxfordshire County Council,Education & Early Intervention,FE Special Trans,Transport Related,33101,Home to School Trans,03/04/2012,3301498983,-2200,Express Travel Oxford Limited
http://statistics.data.gov.uk/id/local-authority/38,Oxfordshire County Council,Education & Early Intervention,Oxford Sth SEN Trans,Transport Related,33101,Home to School Trans,03/04/2012,3301498984,-2590,Express Travel Oxford Limited
http://statistics.data.gov.uk/id/local-authority/38,Oxfordshire County Council,Education & Early Intervention,Oxford Sth SEN Trans,Transport Related,33300,Transport (General),03/04/2012,3301498985,-550,Express Travel Oxford Limited
http://statistics.data.gov.uk/id/local-authority/38,Oxfordshire County Council,Education & Early Intervention,LDD After School Acc,Transport Related,33101,Home to School Trans,03/04/2012,3301498986,-540,Express Travel Oxford Limited
http://statistics.data.gov.uk/id/local-authority/38,Oxfordshire County Council,Education & Early Intervention,Zone 3 - West,Transport Related,33101,Home to School Trans,03/04/2012,3301498987,-797.5,Rebound Coaches Ltd
http://statistics.data.gov.uk/id/local-authority/38,Oxfordshire County Council,Education & Early Intervention,Oxford Sth SEN Trans,Transport Related,33101,Home to School Trans,03/04/2012,3301498988,-1904.98,W Lynch T/A N J Sarney
http://statistics.data.gov.uk/id/local-authority/38,Oxfordshire County Council,Education & Early Intervention,Oxford Sth SEN Trans,Transport Related,33101,Home to School Trans,03/04/2012,3301498989,-2065.58,W Lynch T/A N J Sarney
http://statistics.data.gov.uk/id/local-authority/38,Oxfordshire County Council,Education & Early Intervention,Zone 2 - East,Transport Related,33101,Home to School Trans,03/04/2012,3301498990,-795.52,Jeffs Coaches Limited
http://statistics.data.gov.uk/id/local-authority/38,Oxfordshire County Council,Education & Early Intervention,Zone 1 - North,Transport Related,33101,Home to School Trans,03/04/2012,3301498991,-4407.92,Jeffs Coaches Limited
http://statistics.data.gov.uk/id/local-authority/38,Oxfordshire County Council,Education & Early Intervention,Zone 1 - North,Transport Related,33101,Home to School Trans,03/04/2012,3301498992,-5292.84,Jeffs Coaches Limited
http://statistics.data.gov.uk/id/local-authority/38,Oxfordshire County Council,Education & Early Intervention,Zone 1 - North,Transport Related,33101,Home to School Trans,03/04/2012,3301498993,-4849.95,Jeffs Coaches Limited
http://statistics.data.gov.uk/id/local-authority/38,Oxfordshire County Council,Education & Early Intervention,Zone 1 - North,Transport Related,33101,Home to School Trans,03/04/2012,3301498994,-5292.84,Jeffs Coaches Limited
http://statistics.data.gov.uk/id/local-authority/38,Oxfordshire County Council,Education & Early Intervention,Zone 1 - North,Transport Related,33101,Home to School Trans,03/04/2012,3301498995,-2631.89,Jeffs Coaches Limited
http://statistics.data.gov.uk/id/local-authority/38,Oxfordshire County Council,Education & Early Intervention,Free Travel,Transport Related,33101,Home to School Trans,03/04/2012,3301498996,-1075,Jeffs Coaches Limited
http://statistics.data.gov.uk/id/local-authority/38,Oxfordshire County Council,Education & Early Intervention,Witney SEN Trans,Transport Related,33101,Home to School Trans,03/04/2012,3301498997,-2671.46,Luxicars Ltd
http://statistics.data.gov.uk/id/local-authority/38,Oxfordshire County Council,Education & Early Intervention,Witney SEN Trans,Transport Related,33300,Transport (General),03/04/2012,3301498998,-504.02,Luxicars Ltd
http://statistics.data.gov.uk/id/local-authority/38,Oxfordshire County Council,Education & Early Intervention,Witney SEN Trans,Transport Related,33101,Home to School Trans,03/04/2012,3301498999,-2068,Luxicars Ltd
http://statistics.data.gov.uk/id/local-authority/38,Oxfordshire County Council,Education & Early Intervention,Witney SEN Trans,Transport Related,33300,Transport (General),03/04/2012,3301499000,-506,Luxicars Ltd
http://statistics.data.gov.uk/id/local-authority/38,Oxfordshire County Council,Education & Early Intervention,FE Special Trans,Transport Related,33101,Home to School Trans,03/04/2012,3301499001,-1365,Luxicars Ltd
http://statistics.data.gov.uk/id/local-authority/38,Oxfordshire County Council,SCS Pooled Budgets,LD CMPB - City Transport,Transport Related,34200,Client Journeys,03/04/2012,3301499003,-1638,Luxicars Ltd
http://statistics.data.gov.uk/id/local-authority/38,Oxfordshire County Council,Education & Early Intervention,FE Special Trans,Transport Related,33101,Home to School Trans,03/04/2012,3301499004,-2474.01,Luxicars Ltd
http://statistics.data.gov.uk/id/local-authority/38,Oxfordshire County Council,Education & Early Intervention,FE Special Trans,Transport Related,33300,Transport (General),03/04/2012,3301499005,-471.24,Luxicars Ltd
http://statistics.data.gov.uk/id/local-authority/38,Oxfordshire County Council,SCS Pooled Budgets,LD CMPB - City Transport,Transport Related,34200,Client Journeys,03/04/2012,3301499006,-519.75,Luxicars Ltd
http://statistics.data.gov.uk/id/local-authority/38,Oxfordshire County Council,Education & Early Intervention,Bicester SEN Trans,Transport Related,33101,Home to School Trans,03/04/2012,3301499008,-2816.6,Luxicars Ltd
http://statistics.data.gov.uk/id/local-authority/38,Oxfordshire County Council,Education & Early Intervention,Bicester SEN Trans,Transport Related,33300,Transport (General),03/04/2012,3301499009,-459,Luxicars Ltd
http://statistics.data.gov.uk/id/local-authority/38,Oxfordshire County Council,Education & Early Intervention,Abingdon SEN Trans,Transport Related,33101,Home to School Trans,03/04/2012,3301499010,-2753.96,Luxicars Ltd
http://statistics.data.gov.uk/id/local-authority/38,Oxfordshire County Council,Education & Early Intervention,Abingdon SEN Trans,Transport Related,33300,Transport (General),03/04/2012,3301499011,-688.6,Luxicars Ltd
http://statistics.data.gov.uk/id/local-authority/38,Oxfordshire County Council,Education & Early Intervention,Abingdon SEN Trans,Transport Related,33101,Home to School Trans,03/04/2012,3301499012,-2983.64,Luxicars Ltd
http://statistics.data.gov.uk/id/local-authority/38,Oxfordshire County Council,Education & Early Intervention,Abingdon SEN Trans,Transport Related,33300,Transport (General),03/04/2012,3301499013,-688.6,Luxicars Ltd
http://statistics.data.gov.uk/id/local-authority/38,Oxfordshire County Council,Education & Early Intervention,Bicester SEN Trans,Transport Related,33101,Home to School Trans,03/04/2012,3301499014,-2816.6,Luxicars Ltd
http://statistics.data.gov.uk/id/local-authority/38,Oxfordshire County Council,Education & Early Intervention,Bicester SEN Trans,Transport Related,33300,Transport (General),03/04/2012,3301499015,-459,Luxicars Ltd
http://statistics.data.gov.uk/id/local-authority/38,Oxfordshire County Council,Education & Early Intervention,Bicester SEN Trans,Transport Related,33101,Home to School Trans,03/04/2012,3301499016,-2608,Luxicars Ltd
http://statistics.data.gov.uk/id/local-authority/38,Oxfordshire County Council,Education & Early Intervention,Bicester SEN Trans,Transport Related,33300,Transport (General),03/04/2012,3301499017,-626,Luxicars Ltd
http://statistics.data.gov.uk/id/local-authority/38,Oxfordshire County Council,Education & Early Intervention,Bicester SEN Trans,Transport Related,33101,Home to School Trans,03/04/2012,3301499018,-2816.6,Luxicars Ltd
http://statistics.data.gov.uk/id/local-authority/38,Oxfordshire County Council,Education & Early Intervention,Bicester SEN Trans,Transport Related,33300,Transport (General),03/04/2012,3301499019,-459,Luxicars Ltd
http://statistics.data.gov.uk/id/local-authority/38,Oxfordshire County Council,Education & Early Intervention,Oxford Nth SEN Trans,Transport Related,33101,Home to School Trans,03/04/2012,3301499020,-2872.98,Luxicars Ltd
http://statistics.data.gov.uk/id/local-authority/38,Oxfordshire County Council,Education & Early Intervention,Oxford Nth SEN Trans,Transport Related,33300,Transport (General),03/04/2012,3301499021,-598.62,Luxicars Ltd
http://statistics.data.gov.uk/id/local-authority/38,Oxfordshire County Council,Education & Early Intervention,Oxford Sth SEN Trans,Transport Related,33101,Home to School Trans,03/04/2012,3301499022,-2513.91,Luxicars Ltd
http://statistics.data.gov.uk/id/local-authority/38,Oxfordshire County Council,Education & Early Intervention,Oxford Sth SEN Trans,Transport Related,33300,Transport (General),03/04/2012,3301499023,-685.65,Luxicars Ltd
http://statistics.data.gov.uk/id/local-authority/38,Oxfordshire County Council,Education & Early Intervention,Oxford Nth SEN Trans,Transport Related,33101,Home to School Trans,03/04/2012,3301499024,-2753.08,Luxicars Ltd
http://statistics.data.gov.uk/id/local-authority/38,Oxfordshire County Council,Education & Early Intervention,Oxford Nth SEN Trans,Transport Related,33300,Transport (General),03/04/2012,3301499025,-533.72,Luxicars Ltd
http://statistics.data.gov.uk/id/local-authority/38,Oxfordshire County Council,Education & Early Intervention,Oxford Nth SEN Trans,Transport Related,33101,Home to School Trans,03/04/2012,3301499026,-3213.1,Luxicars Ltd
http://statistics.data.gov.uk/id/local-authority/38,Oxfordshire County Council,Education & Early Intervention,Oxford Nth SEN Trans,Transport Related,33300,Transport (General),03/04/2012,3301499027,-688.6,Luxicars Ltd
http://statistics.data.gov.uk/id/local-authority/38,Oxfordshire County Council,Education & Early Intervention,Oxford Nth SEN Trans,Transport Related,33101,Home to School Trans,03/04/2012,3301499028,-2154.68,Luxicars Ltd
http://statistics.data.gov.uk/id/local-authority/38,Oxfordshire County Council,Education & Early Intervention,Oxford Sth SEN Trans,Transport Related,33101,Home to School Trans,03/04/2012,3301499030,-3452.9,Luxicars Ltd
http://statistics.data.gov.uk/id/local-authority/38,Oxfordshire County Council,Education & Early Intervention,Oxford Sth SEN Trans,Transport Related,33300,Transport (General),03/04/2012,3301499031,-598.62,Luxicars Ltd
http://statistics.data.gov.uk/id/local-authority/38,Oxfordshire County Council,Education & Early Intervention,Wantage SEN Trans,Transport Related,33101,Home to School Trans,03/04/2012,3301499032,-2958.12,Luxicars Ltd
http://statistics.data.gov.uk/id/local-authority/38,Oxfordshire County Council,Education & Early Intervention,Zone 2 - East,Transport Related,33101,Home to School Trans,03/04/2012,3301499033,-1836.12,Luxicars Ltd
http://statistics.data.gov.uk/id/local-authority/38,Oxfordshire County Council,Education & Early Intervention,Zone 2 - East,Transport Related,33101,Home to School Trans,03/04/2012,3301499034,-1376.98,Luxicars Ltd
http://statistics.data.gov.uk/id/local-authority/38,Oxfordshire County Council,Education & Early Intervention,Oxford Sth SEN Trans,Transport Related,33101,Home to School Trans,03/04/2012,3301499036,-2530,Express Travel Oxford Limited
http://statistics.data.gov.uk/id/local-authority/38,Oxfordshire County Council,Education & Early Intervention,Oxford Sth SEN Trans,Transport Related,33300,Transport (General),03/04/2012,3301499037,-550,Express Travel Oxford Limited
http://statistics.data.gov.uk/id/local-authority/38,Oxfordshire County Council,Education & Early Intervention,Zone 3 - West,Transport Related,33101,Home to School Trans,03/04/2012,3301499040,-4026,Chris Gilbert Travel
http://statistics.data.gov.uk/id/local-authority/38,Oxfordshire County Council,Education & Early Intervention,Zone 3 - West,Transport Related,33101,Home to School Trans,03/04/2012,3301499041,-3718,Chris Gilbert Travel
http://statistics.data.gov.uk/id/local-authority/38,Oxfordshire County Council,Education & Early Intervention,Zone 1 - North,Transport Related,33101,Home to School Trans,03/04/2012,3301499042,-1221,Angela's Travel
http://statistics.data.gov.uk/id/local-authority/38,Oxfordshire County Council,Education & Early Intervention,Zone 2 - East,Transport Related,33101,Home to School Trans,03/04/2012,3301499043,-1407,Premier Cars
http://statistics.data.gov.uk/id/local-authority/38,Oxfordshire County Council,Education & Early Intervention,Zone 2 - East,Transport Related,33101,Home to School Trans,03/04/2012,3301499044,-1124.64,Premier Cars
http://statistics.data.gov.uk/id/local-authority/38,Oxfordshire County Council,Education & Early Intervention,Zone 1 - North,Transport Related,33101,Home to School Trans,03/04/2012,3301499045,-2381.06,Premier Cars
http://statistics.data.gov.uk/id/local-authority/38,Oxfordshire County Council,Education & Early Intervention,Zone 2 - East,Transport Related,33101,Home to School Trans,03/04/2012,3301499046,-963.82,Premier Cars
http://statistics.data.gov.uk/id/local-authority/38,Oxfordshire County Council,Education & Early Intervention,Oxford Nth SEN Trans,Transport Related,33101,Home to School Trans,03/04/2012,3301499047,-3850,Plastow's Coaches
http://statistics.data.gov.uk/id/local-authority/38,Oxfordshire County Council,Education & Early Intervention,Oxford Nth SEN Trans,Transport Related,33101,Home to School Trans,03/04/2012,3301499048,-1641.22,Plastow's Coaches
http://statistics.data.gov.uk/id/local-authority/38,Oxfordshire County Council,Education & Early Intervention,Oxford Sth SEN Trans,Transport Related,33101,Home to School Trans,03/04/2012,3301499049,-2100,Plastow's Coaches
http://statistics.data.gov.uk/id/local-authority/38,Oxfordshire County Council,Education & Early Intervention,Oxford Sth SEN Trans,Transport Related,33300,Transport (General),03/04/2012,3301499050,-458.92,C A Pittaway Transport
http://statistics.data.gov.uk/id/local-authority/38,Oxfordshire County Council,Education & Early Intervention,Oxford Sth SEN Trans,Transport Related,33101,Home to School Trans,03/04/2012,3301499051,-1721.28,C A Pittaway Transport
http://statistics.data.gov.uk/id/local-authority/38,Oxfordshire County Council,Education & Early Intervention,Temporary Transport,Transport Related,33101,Home to School Trans,03/04/2012,3301499052,-1430,EXPRESS TRAVEL
http://statistics.data.gov.uk/id/local-authority/38,Oxfordshire County Council,Education & Early Intervention,Zone 3 - West,Transport Related,33101,Home to School Trans,03/04/2012,3301499053,-1540,EXPRESS TRAVEL
http://statistics.data.gov.uk/id/local-authority/38,Oxfordshire County Council,Education & Early Intervention,Zone 5 - South,Transport Related,33101,Home to School Trans,03/04/2012,3301499054,-2024.78,Reading Wheelchair Travel Ltd
http://statistics.data.gov.uk/id/local-authority/38,Oxfordshire County Council,Education & Early Intervention,Zone 5 - South,Transport Related,33101,Home to School Trans,03/04/2012,3301499055,-2352.24,Reading Wheelchair Travel Ltd
http://statistics.data.gov.uk/id/local-authority/38,Oxfordshire County Council,Education & Early Intervention,Zone 5 - South,Transport Related,33101,Home to School Trans,03/04/2012,3301499056,-2295.04,Reading Wheelchair Travel Ltd
http://statistics.data.gov.uk/id/local-authority/38,Oxfordshire County Council,Education & Early Intervention,Meadowbrook Transprt,Transport Related,33101,Home to School Trans,03/04/2012,3301499058,-1020,Oxon Transport Services Limited t/a
http://statistics.data.gov.uk/id/local-authority/38,Oxfordshire County Council,Education & Early Intervention,Oxford Nth SEN Trans,Transport Related,33101,Home to School Trans,03/04/2012,3301499059,-1790.14,C A Pittaway Transport
http://statistics.data.gov.uk/id/local-authority/38,Oxfordshire County Council,Education & Early Intervention,Oxford Nth SEN Trans,Transport Related,33300,Transport (General),03/04/2012,3301499060,-458.92,C A Pittaway Transport
http://statistics.data.gov.uk/id/local-authority/38,Oxfordshire County Council,Education & Early Intervention,Oxford Nth SEN Trans,Transport Related,33101,Home to School Trans,03/04/2012,3301499061,-1790.14,Findlay School Transport
http://statistics.data.gov.uk/id/local-authority/38,Oxfordshire County Council,Education & Early Intervention,Oxford Nth SEN Trans,Transport Related,33300,Transport (General),03/04/2012,3301499062,-734.36,Findlay School Transport
http://statistics.data.gov.uk/id/local-authority/38,Oxfordshire County Council,Education & Early Intervention,Oxford Sth SEN Trans,Transport Related,33101,Home to School Trans,03/04/2012,3301499063,-2240.04,Findlay School Transport
http://statistics.data.gov.uk/id/local-authority/38,Oxfordshire County Council,Education & Early Intervention,Oxford Sth SEN Trans,Transport Related,33300,Transport (General),03/04/2012,3301499064,-571.78,Findlay School Transport
http://statistics.data.gov.uk/id/local-authority/38,Oxfordshire County Council,Education & Early Intervention,Abingdon SEN Trans,Transport Related,33101,Home to School Trans,03/04/2012,3301499065,-1560.46,Findlay School Transport
http://statistics.data.gov.uk/id/local-authority/38,Oxfordshire County Council,Education & Early Intervention,Abingdon SEN Trans,Transport Related,33300,Transport (General),03/04/2012,3301499066,-688.6,Findlay School Transport
http://statistics.data.gov.uk/id/local-authority/38,Oxfordshire County Council,Education & Early Intervention,LDD After School Acc,Transport Related,33101,Home to School Trans,03/04/2012,3301499067,-748,Findlay School Transport
http://statistics.data.gov.uk/id/local-authority/38,Oxfordshire County Council,Education & Early Intervention,Zone 5 - South,Transport Related,33101,Home to School Trans,03/04/2012,3301499070,3206.5,M & M Coaches
http://statistics.data.gov.uk/id/local-authority/38,Oxfordshire County Council,Education & Early Intervention,Witney SEN Trans,Transport Related,33101,Home to School Trans,03/04/2012,3301499071,2362.36,Crescent Cars Ltd
http://statistics.data.gov.uk/id/local-authority/38,Oxfordshire County Council,Education & Early Intervention,Witney SEN Trans,Transport Related,33300,Transport (General),03/04/2012,3301499072,733.48,Crescent Cars Ltd
http://statistics.data.gov.uk/id/local-authority/38,Oxfordshire County Council,Education & Early Intervention,Oxford Sth SEN Trans,Transport Related,33101,Home to School Trans,03/04/2012,3301499073,3008.46,Crescent Cars Ltd
http://statistics.data.gov.uk/id/local-authority/38,Oxfordshire County Council,Education & Early Intervention,Oxford Sth SEN Trans,Transport Related,33300,Transport (General),03/04/2012,3301499074,672,Crescent Cars Ltd
http://statistics.data.gov.uk/id/local-authority/38,Oxfordshire County Council,Education & Early Intervention,Didcot SEN Trans,Transport Related,33101,Home to School Trans,03/04/2012,3301499075,2400.2,Toot's Taxis
http://statistics.data.gov.uk/id/local-authority/38,Oxfordshire County Council,Education & Early Intervention,Didcot SEN Trans,Transport Related,33300,Transport (General),03/04/2012,3301499076,615.12,Toot's Taxis
http://statistics.data.gov.uk/id/local-authority/38,Oxfordshire County Council,Education & Early Intervention,Abingdon SEN Trans,Transport Related,33101,Home to School Trans,03/04/2012,3301499077,2203.74,Toot's Taxis
http://statistics.data.gov.uk/id/local-authority/38,Oxfordshire County Council,Education & Early Intervention,Abingdon SEN Trans,Transport Related,33300,Transport (General),03/04/2012,3301499078,695.64,Toot's Taxis
http://statistics.data.gov.uk/id/local-authority/38,Oxfordshire County Council,Education & Early Intervention,Oxford Sth SEN Trans,Transport Related,33101,Home to School Trans,03/04/2012,3301499079,2079.44,Toot's Taxis
http://statistics.data.gov.uk/id/local-authority/38,Oxfordshire County Council,Education & Early Intervention,Oxford Sth SEN Trans,Transport Related,33300,Transport (General),03/04/2012,3301499080,990.88,Toot's Taxis
http://statistics.data.gov.uk/id/local-authority/38,Oxfordshire County Council,Education & Early Intervention,FE Special Trans,Transport Related,33101,Home to School Trans,03/04/2012,3301499081,2200,Express Travel Oxford Limited
http://statistics.data.gov.uk/id/local-authority/38,Oxfordshire County Council,Education & Early Intervention,Oxford Sth SEN Trans,Transport Related,33101,Home to School Trans,03/04/2012,3301499082,2590,Express Travel Oxford Limited
http://statistics.data.gov.uk/id/local-authority/38,Oxfordshire County Council,Education & Early Intervention,Oxford Sth SEN Trans,Transport Related,33300,Transport (General),03/04/2012,3301499083,550,Express Travel Oxford Limited
http://statistics.data.gov.uk/id/local-authority/38,Oxfordshire County Council,Education & Early Intervention,LDD After School Acc,Transport Related,33101,Home to School Trans,03/04/2012,3301499084,540,Express Travel Oxford Limited
http://statistics.data.gov.uk/id/local-authority/38,Oxfordshire County Council,Education & Early Intervention,Zone 3 - West,Transport Related,33101,Home to School Trans,03/04/2012,3301499085,797.5,Rebound Coaches Ltd
http://statistics.data.gov.uk/id/local-authority/38,Oxfordshire County Council,Education & Early Intervention,Oxford Sth SEN Trans,Transport Related,33101,Home to School Trans,03/04/2012,3301499086,1904.98,W Lynch T/A N J Sarney
http://statistics.data.gov.uk/id/local-authority/38,Oxfordshire County Council,Education & Early Intervention,Oxford Sth SEN Trans,Transport Related,33101,Home to School Trans,03/04/2012,3301499087,2065.58,W Lynch T/A N J Sarney
http://statistics.data.gov.uk/id/local-authority/38,Oxfordshire County Council,Education & Early Intervention,Zone 2 - East,Transport Related,33101,Home to School Trans,03/04/2012,3301499088,795.52,Jeffs Coaches Limited
http://statistics.data.gov.uk/id/local-authority/38,Oxfordshire County Council,Education & Early Intervention,Zone 1 - North,Transport Related,33101,Home to School Trans,03/04/2012,3301499089,4407.92,Jeffs Coaches Limited
http://statistics.data.gov.uk/id/local-authority/38,Oxfordshire County Council,Education & Early Intervention,Zone 1 - North,Transport Related,33101,Home to School Trans,03/04/2012,3301499090,5292.84,Jeffs Coaches Limited
http://statistics.data.gov.uk/id/local-authority/38,Oxfordshire County Council,Education & Early Intervention,Zone 1 - North,Transport Related,33101,Home to School Trans,03/04/2012,3301499091,4849.95,Jeffs Coaches Limited
http://statistics.data.gov.uk/id/local-authority/38,Oxfordshire County Council,Education & Early Intervention,Zone 1 - North,Transport Related,33101,Home to School Trans,03/04/2012,3301499092,5292.84,Jeffs Coaches Limited
http://statistics.data.gov.uk/id/local-authority/38,Oxfordshire County Council,Education & Early Intervention,Zone 1 - North,Transport Related,33101,Home to School Trans,03/04/2012,3301499093,2631.89,Jeffs Coaches Limited
http://statistics.data.gov.uk/id/local-authority/38,Oxfordshire County Council,Education & Early Intervention,Free Travel,Transport Related,33101,Home to School Trans,03/04/2012,3301499094,1075,Jeffs Coaches Limited
http://statistics.data.gov.uk/id/local-authority/38,Oxfordshire County Council,Education & Early Intervention,Witney SEN Trans,Transport Related,33101,Home to School Trans,03/04/2012,3301499095,2671.46,Luxicars Ltd
http://statistics.data.gov.uk/id/local-authority/38,Oxfordshire County Council,Education & Early Intervention,Witney SEN Trans,Transport Related,33300,Transport (General),03/04/2012,3301499096,504.02,Luxicars Ltd
http://statistics.data.gov.uk/id/local-authority/38,Oxfordshire County Council,Education & Early Intervention,Witney SEN Trans,Transport Related,33101,Home to School Trans,03/04/2012,3301499097,2068,Luxicars Ltd
http://statistics.data.gov.uk/id/local-authority/38,Oxfordshire County Council,Education & Early Intervention,Witney SEN Trans,Transport Related,33300,Transport (General),03/04/2012,3301499098,506,Luxicars Ltd
http://statistics.data.gov.uk/id/local-authority/38,Oxfordshire County Council,Education & Early Intervention,FE Special Trans,Transport Related,33101,Home to School Trans,03/04/2012,3301499099,1365,Luxicars Ltd
http://statistics.data.gov.uk/id/local-authority/38,Oxfordshire County Council,SCS Pooled Budgets,LD CMPB - City Transport,Transport Related,34200,Client Journeys,03/04/2012,3301499101,1638,Luxicars Ltd
http://statistics.data.gov.uk/id/local-authority/38,Oxfordshire County Council,Education & Early Intervention,FE Special Trans,Transport Related,33101,Home to School Trans,03/04/2012,3301499102,2474.01,Luxicars Ltd
http://statistics.data.gov.uk/id/local-authority/38,Oxfordshire County Council,Education & Early Intervention,FE Special Trans,Transport Related,33300,Transport (General),03/04/2012,3301499103,471.24,Luxicars Ltd
http://statistics.data.gov.uk/id/local-authority/38,Oxfordshire County Council,SCS Pooled Budgets,LD CMPB - City Transport,Transport Related,34200,Client Journeys,03/04/2012,3301499104,519.75,Luxicars Ltd
http://statistics.data.gov.uk/id/local-authority/38,Oxfordshire County Council,Education & Early Intervention,Bicester SEN Trans,Transport Related,33101,Home to School Trans,03/04/2012,3301499106,2816.6,Luxicars Ltd
http://statistics.data.gov.uk/id/local-authority/38,Oxfordshire County Council,Education & Early Intervention,Bicester SEN Trans,Transport Related,33300,Transport (General),03/04/2012,3301499107,459,Luxicars Ltd
http://statistics.data.gov.uk/id/local-authority/38,Oxfordshire County Council,Education & Early Intervention,Abingdon SEN Trans,Transport Related,33101,Home to School Trans,03/04/2012,3301499108,2753.96,Luxicars Ltd
http://statistics.data.gov.uk/id/local-authority/38,Oxfordshire County Council,Education & Early Intervention,Abingdon SEN Trans,Transport Related,33300,Transport (General),03/04/2012,3301499109,688.6,Luxicars Ltd
http://statistics.data.gov.uk/id/local-authority/38,Oxfordshire County Council,Education & Early Intervention,Abingdon SEN Trans,Transport Related,33101,Home to School Trans,03/04/2012,3301499111,2983.64,Luxicars Ltd
http://statistics.data.gov.uk/id/local-authority/38,Oxfordshire County Council,Education & Early Intervention,Abingdon SEN Trans,Transport Related,33300,Transport (General),03/04/2012,3301499112,688.6,Luxicars Ltd
http://statistics.data.gov.uk/id/local-authority/38,Oxfordshire County Council,Education & Early Intervention,Bicester SEN Trans,Transport Related,33101,Home to School Trans,03/04/2012,3301499113,2816.6,Luxicars Ltd
http://statistics.data.gov.uk/id/local-authority/38,Oxfordshire County Council,Education & Early Intervention,Bicester SEN Trans,Transport Related,33300,Transport (General),03/04/2012,3301499114,459,Luxicars Ltd
http://statistics.data.gov.uk/id/local-authority/38,Oxfordshire County Council,Education & Early Intervention,Bicester SEN Trans,Transport Related,33101,Home to School Trans,03/04/2012,3301499115,2608,Luxicars Ltd
http://statistics.data.gov.uk/id/local-authority/38,Oxfordshire County Council,Education & Early Intervention,Bicester SEN Trans,Transport Related,33300,Transport (General),03/04/2012,3301499116,626,Luxicars Ltd
http://statistics.data.gov.uk/id/local-authority/38,Oxfordshire County Council,Education & Early Intervention,Bicester SEN Trans,Transport Related,33101,Home to School Trans,03/04/2012,3301499117,2816.6,Luxicars Ltd
http://statistics.data.gov.uk/id/local-authority/38,Oxfordshire County Council,Education & Early Intervention,Bicester SEN Trans,Transport Related,33300,Transport (General),03/04/2012,3301499118,459,Luxicars Ltd
http://statistics.data.gov.uk/id/local-authority/38,Oxfordshire County Council,Education & Early Intervention,Oxford Nth SEN Trans,Transport Related,33101,Home to School Trans,03/04/2012,3301499119,2872.98,Luxicars Ltd
http://statistics.data.gov.uk/id/local-authority/38,Oxfordshire County Council,Education & Early Intervention,Oxford Nth SEN Trans,Transport Related,33300,Transport (General),03/04/2012,3301499120,598.62,Luxicars Ltd
http://statistics.data.gov.uk/id/local-authority/38,Oxfordshire County Council,Education & Early Intervention,Oxford Sth SEN Trans,Transport Related,33101,Home to School Trans,03/04/2012,3301499121,2513.91,Luxicars Ltd
http://statistics.data.gov.uk/id/local-authority/38,Oxfordshire County Council,Education & Early Intervention,Oxford Sth SEN Trans,Transport Related,33300,Transport (General),03/04/2012,3301499122,685.65,Luxicars Ltd
http://statistics.data.gov.uk/id/local-authority/38,Oxfordshire County Council,Education & Early Intervention,Oxford Nth SEN Trans,Transport Related,33101,Home to School Trans,03/04/2012,3301499123,2753.08,Luxicars Ltd
http://statistics.data.gov.uk/id/local-authority/38,Oxfordshire County Council,Education & Early Intervention,Oxford Nth SEN Trans,Transport Related,33300,Transport (General),03/04/2012,3301499124,533.72,Luxicars Ltd
http://statistics.data.gov.uk/id/local-authority/38,Oxfordshire County Council,Education & Early Intervention,Oxford Nth SEN Trans,Transport Related,33101,Home to School Trans,03/04/2012,3301499125,3213.1,Luxicars Ltd
http://statistics.data.gov.uk/id/local-authority/38,Oxfordshire County Council,Education & Early Intervention,Oxford Nth SEN Trans,Transport Related,33300,Transport (General),03/04/2012,3301499126,688.6,Luxicars Ltd
http://statistics.data.gov.uk/id/local-authority/38,Oxfordshire County Council,Education & Early Intervention,Oxford Nth SEN Trans,Transport Related,33101,Home to School Trans,03/04/2012,3301499127,2154.68,Luxicars Ltd
http://statistics.data.gov.uk/id/local-authority/38,Oxfordshire County Council,Education & Early Intervention,Oxford Sth SEN Trans,Transport Related,33101,Home to School Trans,03/04/2012,3301499129,3452.9,Luxicars Ltd
http://statistics.data.gov.uk/id/local-authority/38,Oxfordshire County Council,Education & Early Intervention,Oxford Sth SEN Trans,Transport Related,33300,Transport (General),03/04/2012,3301499130,598.62,Luxicars Ltd
http://statistics.data.gov.uk/id/local-authority/38,Oxfordshire County Council,Education & Early Intervention,Wantage SEN Trans,Transport Related,33101,Home to School Trans,03/04/2012,3301499131,2958.12,Luxicars Ltd
http://statistics.data.gov.uk/id/local-authority/38,Oxfordshire County Council,Education & Early Intervention,Zone 2 - East,Transport Related,33101,Home to School Trans,03/04/2012,3301499132,1836.12,Luxicars Ltd
http://statistics.data.gov.uk/id/local-authority/38,Oxfordshire County Council,Education & Early Intervention,Zone 2 - East,Transport Related,33101,Home to School Trans,03/04/2012,3301499133,1376.98,Luxicars Ltd
http://statistics.data.gov.uk/id/local-authority/38,Oxfordshire County Council,Education & Early Intervention,Oxford Sth SEN Trans,Transport Related,33101,Home to School Trans,03/04/2012,3301499135,2530,Express Travel Oxford Limited
http://statistics.data.gov.uk/id/local-authority/38,Oxfordshire County Council,Education & Early Intervention,Oxford Sth SEN Trans,Transport Related,33300,Transport (General),03/04/2012,3301499136,550,Express Travel Oxford Limited
http://statistics.data.gov.uk/id/local-authority/38,Oxfordshire County Council,Education & Early Intervention,Zone 3 - West,Transport Related,33101,Home to School Trans,03/04/2012,3301499139,4026,Chris Gilbert Travel
http://statistics.data.gov.uk/id/local-authority/38,Oxfordshire County Council,Education & Early Intervention,Zone 3 - West,Transport Related,33101,Home to School Trans,03/04/2012,3301499140,3718,Chris Gilbert Travel
http://statistics.data.gov.uk/id/local-authority/38,Oxfordshire County Council,Education & Early Intervention,Zone 1 - North,Transport Related,33101,Home to School Trans,03/04/2012,3301499141,1221,Angela's Travel
http://statistics.data.gov.uk/id/local-authority/38,Oxfordshire County Council,Education & Early Intervention,Zone 2 - East,Transport Related,33101,Home to School Trans,03/04/2012,3301499142,1407,Premier Cars
http://statistics.data.gov.uk/id/local-authority/38,Oxfordshire County Council,Education & Early Intervention,Zone 2 - East,Transport Related,33101,Home to School Trans,03/04/2012,3301499143,1124.64,Premier Cars
http://statistics.data.gov.uk/id/local-authority/38,Oxfordshire County Council,Education & Early Intervention,Zone 1 - North,Transport Related,33101,Home to School Trans,03/04/2012,3301499144,2381.06,Premier Cars
http://statistics.data.gov.uk/id/local-authority/38,Oxfordshire County Council,Education & Early Intervention,Zone 2 - East,Transport Related,33101,Home to School Trans,03/04/2012,3301499145,963.82,Premier Cars
http://statistics.data.gov.uk/id/local-authority/38,Oxfordshire County Council,Education & Early Intervention,Oxford Nth SEN Trans,Transport Related,33101,Home to School Trans,03/04/2012,3301499146,3850,Plastow's Coaches
http://statistics.data.gov.uk/id/local-authority/38,Oxfordshire County Council,Education & Early Intervention,Oxford Nth SEN Trans,Transport Related,33101,Home to School Trans,03/04/2012,3301499147,1641.22,Plastow's Coaches
http://statistics.data.gov.uk/id/local-authority/38,Oxfordshire County Council,Education & Early Intervention,Oxford Sth SEN Trans,Transport Related,33101,Home to School Trans,03/04/2012,3301499148,2100,Plastow's Coaches
http://statistics.data.gov.uk/id/local-authority/38,Oxfordshire County Council,Education & Early Intervention,Oxford Sth SEN Trans,Transport Related,33300,Transport (General),03/04/2012,3301499149,458.92,C A Pittaway Transport
http://statistics.data.gov.uk/id/local-authority/38,Oxfordshire County Council,Education & Early Intervention,Oxford Sth SEN Trans,Transport Related,33101,Home to School Trans,03/04/2012,3301499150,1721.28,C A Pittaway Transport
http://statistics.data.gov.uk/id/local-authority/38,Oxfordshire County Council,Education & Early Intervention,Temporary Transport,Transport Related,33101,Home to School Trans,03/04/2012,3301499151,1430,EXPRESS TRAVEL
http://statistics.data.gov.uk/id/local-authority/38,Oxfordshire County Council,Education & Early Intervention,Zone 3 - West,Transport Related,33101,Home to School Trans,03/04/2012,3301499152,1540,EXPRESS TRAVEL
http://statistics.data.gov.uk/id/local-authority/38,Oxfordshire County Council,Education & Early Intervention,Zone 5 - South,Transport Related,33101,Home to School Trans,03/04/2012,3301499153,2024.78,Reading Wheelchair Travel Ltd
http://statistics.data.gov.uk/id/local-authority/38,Oxfordshire County Council,Education & Early Intervention,Zone 5 - South,Transport Related,33101,Home to School Trans,03/04/2012,3301499154,2352.24,Reading Wheelchair Travel Ltd
http://statistics.data.gov.uk/id/local-authority/38,Oxfordshire County Council,Education & Early Intervention,Zone 5 - South,Transport Related,33101,Home to School Trans,03/04/2012,3301499155,2295.04,Reading Wheelchair Travel Ltd
http://statistics.data.gov.uk/id/local-authority/38,Oxfordshire County Council,Education & Early Intervention,Meadowbrook Transprt,Transport Related,33101,Home to School Trans,03/04/2012,3301499157,1020,Oxon Transport Services Limited t/a
http://statistics.data.gov.uk/id/local-authority/38,Oxfordshire County Council,Education & Early Intervention,Oxford Nth SEN Trans,Transport Related,33101,Home to School Trans,03/04/2012,3301499158,1790.14,C A Pittaway Transport
http://statistics.data.gov.uk/id/local-authority/38,Oxfordshire County Council,Education & Early Intervention,Oxford Nth SEN Trans,Transport Related,33300,Transport (General),03/04/2012,3301499159,458.92,C A Pittaway Transport
http://statistics.data.gov.uk/id/local-authority/38,Oxfordshire County Council,Education & Early Intervention,Oxford Nth SEN Trans,Transport Related,33101,Home to School Trans,03/04/2012,3301499160,1790.14,Findlay School Transport
http://statistics.data.gov.uk/id/local-authority/38,Oxfordshire County Council,Education & Early Intervention,Oxford Nth SEN Trans,Transport Related,33300,Transport (General),03/04/2012,3301499161,734.36,Findlay School Transport
http://statistics.data.gov.uk/id/local-authority/38,Oxfordshire County Council,Education & Early Intervention,Oxford Sth SEN Trans,Transport Related,33101,Home to School Trans,03/04/2012,3301499162,2240.04,Findlay School Transport
http://statistics.data.gov.uk/id/local-authority/38,Oxfordshire County Council,Education & Early Intervention,Oxford Sth SEN Trans,Transport Related,33300,Transport (General),03/04/2012,3301499163,571.78,Findlay School Transport
http://statistics.data.gov.uk/id/local-authority/38,Oxfordshire County Council,Education & Early Intervention,Abingdon SEN Trans,Transport Related,33101,Home to School Trans,03/04/2012,3301499164,1560.46,Findlay School Transport
http://statistics.data.gov.uk/id/local-authority/38,Oxfordshire County Council,Education & Early Intervention,Abingdon SEN Trans,Transport Related,33300,Transport (General),03/04/2012,3301499165,688.6,Findlay School Transport
http://statistics.data.gov.uk/id/local-authority/38,Oxfordshire County Council,Education & Early Intervention,LDD After School Acc,Transport Related,33101,Home to School Trans,03/04/2012,3301499166,748,Findlay School Transport
